Workbook

Sheet 5471 OneSource
A1: 111015 | B1: Cash | C1: =ROUND('Bal Sheet'!N8*'Bal Sheet'!$N$4,0) -> 543254 | E1: Assets
A2: 111400 | B2: Short-Term Investments | C2: =ROUND('Bal Sheet'!N9*'Bal Sheet'!$N$4,0) -> 0 | E2: =SUM(C1:C53) -> 1267523
A3: 113118 | B3: Accounts Receivable | C3: =ROUND('Bal Sheet'!N10*'Bal Sheet'!$N$4,0) -> 1898
A4: 114101 | B4: Inventory - Product | C4: =ROUND('Bal Sheet'!N11*'Bal Sheet'!$N$4,0) -> 535581 | E4: Liab & Equity
A5: 114201 | B5: Inventory - Sales Aids | C5: =ROUND('Bal Sheet'!N12*'Bal Sheet'!$N$4,0) -> 62780 | E5: =SUM(C54:C88)+E8 -> -1267523
A6: 114301 | B6: Inventory - Starter Kits | C6: =ROUND('Bal Sheet'!N13*'Bal Sheet'!$N$4,0) -> 2602
A7: 114408 | B7: Inventory - Shipping Supplies | C7: =ROUND('Bal Sheet'!N14*'Bal Sheet'!$N$4,0) -> 0 | E7: Net Income
A8: 114405 | B8: Inventory - Other Supplies | C8: =ROUND('Bal Sheet'!N15*'Bal Sheet'!$N$4,0) -> 0 | E8: =SUM(C89:C219) -> 636672 | F8: =+E8+'Inc Stmt'!J158 -> -0.1160000768
A9: 114119 | B9: Inventory - In Transit | C9: =ROUND('Bal Sheet'!N16*'Bal Sheet'!$N$4,0) -> 0
A10: 114500 | B10: Inventory Reserve | C10: =ROUND('Bal Sheet'!N17*'Bal Sheet'!$N$4,0) -> 0
A11: 115723 | B11: Prepaid Rent | C11: =ROUND('Bal Sheet'!N18*'Bal Sheet'!$N$4,0) -> 34914
A12: 115721 | B12: Prepaid Insurance | C12: =ROUND('Bal Sheet'!N19*'Bal Sheet'!$N$4,0) -> 2981
A13: 115101 | B13: Prepaid VAT | C13: =ROUND('Bal Sheet'!N20*'Bal Sheet'!$N$4,0) -> 0
A14: 800110 | B14: Distributor Stock Options | C14: =ROUND('Bal Sheet'!N21*'Bal Sheet'!$N$4,0) -> 0
A15: 113338 | B15: Cash Advances | C15: =ROUND('Bal Sheet'!N22*'Bal Sheet'!$N$4,0) -> 0
A16: 124189 | B16: Other Prepayments | C16: =ROUND('Bal Sheet'!N23*'Bal Sheet'!$N$4,0) -> 5241
A17: 113398 | B17: Other Current Assets | C17: =ROUND('Bal Sheet'!N24*'Bal Sheet'!$N$4,0) -> 0
A18: 124002 | B18: Refundable Deposits - S/T | C18: =ROUND('Bal Sheet'!N25*'Bal Sheet'!$N$4,0) -> 0
A19: 113302 | B19: Accrued Interest Income | C19: =ROUND('Bal Sheet'!N26*'Bal Sheet'!$N$4,0) -> 0
A20: 124175 | B20: Prepaid Duty & Freight | C20: =ROUND('Bal Sheet'!N27*'Bal Sheet'!$N$4,0) -> 2240
A21: 124021 | B21: Hedges/FAS 133 | C21: =ROUND('Bal Sheet'!N28*'Bal Sheet'!$N$4,0) -> 0
A22: 124020 | B22: Forward Contracts | C22: =ROUND('Bal Sheet'!N29*'Bal Sheet'!$N$4,0) -> 0
A23: 124016 | B23: Deferred Tax Assets - Cur | C23: =ROUND('Bal Sheet'!N30*'Bal Sheet'!$N$4,0) -> 0
A24: 113000 | B24: Intercompany Receivables | C24: =ROUND('Bal Sheet'!N31*'Bal Sheet'!$N$4,0) -> 0
A25: 113300 | B25: Related Party Receivables | C25: =ROUND('Bal Sheet'!N32*'Bal Sheet'!$N$4,0) -> 0
A26: 121100 | B26: Land | C26: =ROUND('Bal Sheet'!N35*'Bal Sheet'!$N$4,0) -> 0
A27: 121200 | B27: Buildings | C27: =ROUND('Bal Sheet'!N36*'Bal Sheet'!$N$4,0) -> 0
A28: 121401 | B28: Furniture & Equipment | C28: =ROUND('Bal Sheet'!N37*'Bal Sheet'!$N$4,0) -> 21798
A29: 121300 | B29: Leasehold Improvements | C29: =ROUND('Bal Sheet'!N38*'Bal Sheet'!$N$4,0) -> 8541
A30: 121402 | B30: Computer & Software | C30: =ROUND('Bal Sheet'!N39*'Bal Sheet'!$N$4,0) -> 27749
A31: 121500 | B31: Vehicles | C31: =ROUND('Bal Sheet'!N40*'Bal Sheet'!$N$4,0) -> 0
A32: 121600 | B32: SAP Equipment in Use | C32: =ROUND('Bal Sheet'!N41*'Bal Sheet'!$N$4,0) -> 128095
A33: 121000 | B33: Construction in Progress | C33: =ROUND('Bal Sheet'!N42*'Bal Sheet'!$N$4,0) -> 0
A34: 122301 | B34: Accumulated Depreciation | C34: =ROUND('Bal Sheet'!N43*'Bal Sheet'!$N$4,0) -> -110151
A35: 123160 | B35: Asia Distribution Rights | C35: =ROUND('Bal Sheet'!N46*'Bal Sheet'!$N$4,0) -> 0
A36: 193100 | B36: Receivables from Developing Mkts | C36: =ROUND('Bal Sheet'!N47*'Bal Sheet'!$N$4,0) -> 0
A37: 192712 | B37: Key Money/Lease Deposits | C37: =ROUND('Bal Sheet'!N48*'Bal Sheet'!$N$4,0) -> 0
A38: 124150 | B38: Other Long-Term Assets | C38: =ROUND('Bal Sheet'!N49*'Bal Sheet'!$N$4,0) -> 0
A39: 124136 | B39: Insurance | C39: =ROUND('Bal Sheet'!N50*'Bal Sheet'!$N$4,0) -> 0
A40: 159910 | B40: Telephone Lines Right | C40: =ROUND('Bal Sheet'!N51*'Bal Sheet'!$N$4,0) -> 0
A41: 124034 | B41: Deferred Tax Assets - Non Curr | C41: =ROUND('Bal Sheet'!N52*'Bal Sheet'!$N$4,0) -> 0
A42: 250011 | B42: Deferrer Compensation (CSV) | C42: =ROUND('Bal Sheet'!N53*'Bal Sheet'!$N$4,0) -> 0
A43: 124209 | B43: Loan Receivable | C43: =ROUND('Bal Sheet'!N54*'Bal Sheet'!$N$4,0) -> 0
A44: 124187 | B44: Refundable Deposits | C44: =ROUND('Bal Sheet'!N55*'Bal Sheet'!$N$4,0) -> 0
A45: 124100 | B45: Intangibles (Trademarks/Patents) | C45: =ROUND('Bal Sheet'!N56*'Bal Sheet'!$N$4,0) -> 0
A46: 122504 | B46: Accumulated Amortization | C46: =ROUND('Bal Sheet'!N57*'Bal Sheet'!$N$4,0) -> 0
A47: 123008 | B47: Investment in NSE Stock | C47: =ROUND('Bal Sheet'!N58*'Bal Sheet'!$N$4,0) -> 0
A48: 123100 | B48: Investment in Branch | C48: =ROUND('Bal Sheet'!N59*'Bal Sheet'!$N$4,0) -> 0
A49: 950020 | B49: Investment in Nonconsolidated | C49: =ROUND('Bal Sheet'!N60*'Bal Sheet'!$N$4,0) -> 0
A50: 113313 | B50: Eliminating Receivable | C50: =ROUND('Bal Sheet'!N61*'Bal Sheet'!$N$4,0) -> 0
A51: 124311 | B51: Deposits with the IRS | C51: =ROUND('Bal Sheet'!N62*'Bal Sheet'!$N$4,0) -> 0
A52: 124008 | B52: Foreign Taxes Paid | C52: =ROUND('Bal Sheet'!N63*'Bal Sheet'!$N$4,0) -> 0
A53: 250009 | B53: Distributor Withholding/Violations | C53: =ROUND('Bal Sheet'!N64*'Bal Sheet'!$N$4,0) -> 0
A54: 211057 | B54: Accounts Payable | C54: =-ROUND('Bal Sheet'!N71*'Bal Sheet'!$N$4,0) -> 0
A55: 230004 | B55: Accrued Payroll and Taxes | C55: =-ROUND('Bal Sheet'!N72*'Bal Sheet'!$N$4,0) -> 0
A56: 231054 | B56: Accrued Comp Absences | C56: =-ROUND('Bal Sheet'!N73*'Bal Sheet'!$N$4,0) -> 0
A57: 230189 | B57: Accrued Income Taxes | C57: =-ROUND('Bal Sheet'!N74*'Bal Sheet'!$N$4,0) -> 0
A58: 230084 | B58: Accrued Customs Duties | C58: =-ROUND('Bal Sheet'!N75*'Bal Sheet'!$N$4,0) -> 0
A59: 261411 | B59: Accrued Property/Withholding Tax | C59: =-ROUND('Bal Sheet'!N76*'Bal Sheet'!$N$4,0) -> 0
A60: 950040 | B60: Deferred Director's Bonus | C60: =-ROUND('Bal Sheet'!N77*'Bal Sheet'!$N$4,0) -> 0
A61: 231055 | B61: Reserve for Retirement Benefits | C61: =-ROUND('Bal Sheet'!N78*'Bal Sheet'!$N$4,0) -> 0
A62: 230071 | B62: Deferred Income | C62: =-ROUND('Bal Sheet'!N79*'Bal Sheet'!$N$4,0) -> 0
A63: 250043 | B63: Other Current Liabilities | C63: =-ROUND('Bal Sheet'!N80*'Bal Sheet'!$N$4,0) -> -841609
A64: 250018 | B64: Deferred Tax Liab - Current | C64: =-ROUND('Bal Sheet'!N81*'Bal Sheet'!$N$4,0) -> 0
A65: 212041 | B65: S-T Line of Credit - Bank Loan | C65: =-ROUND('Bal Sheet'!N82*'Bal Sheet'!$N$4,0) -> 0
A66: 220000 | B66: Accrued Commissions | C66: =-ROUND('Bal Sheet'!N83*'Bal Sheet'!$N$4,0) -> -58839
A67: 230050 | B67: Advances Received from Distrib | C67: =-ROUND('Bal Sheet'!N84*'Bal Sheet'!$N$4,0) -> -23519
A68: 211010 | B68: Intercompany Payable | C68: =-ROUND('Bal Sheet'!N85*'Bal Sheet'!$N$4,0) -> 0
A69: 212034 | B69: Related Party Payable | C69: =-ROUND('Bal Sheet'!N86*'Bal Sheet'!$N$4,0) -> -339643
A70: 212022 | B70: Eliminating Payable | C70: =-ROUND('Bal Sheet'!N87*'Bal Sheet'!$N$4,0) -> 0
A71: 220019 | B71: Sales Return & Allowances | C71: =-ROUND('Bal Sheet'!N88*'Bal Sheet'!$N$4,0) -> 0
A72: 220013 | B72: Accrued Bonus | C72: =-ROUND('Bal Sheet'!N89*'Bal Sheet'!$N$4,0) -> 0
A73: 240002 | B73: General Reserve | C73: =-ROUND('Bal Sheet'!N90*'Bal Sheet'!$N$4,0) -> 0
A74: 250014 | B74: L-T Line of Credit - Bank Loan | C74: =-ROUND('Bal Sheet'!N93*'Bal Sheet'!$N$4,0) -> 0
A75: 800060 | B75: Minority Interest | C75: =-ROUND('Bal Sheet'!N94*'Bal Sheet'!$N$4,0) -> 0
A76: 250019 | B76: Deferred Tax Liab - Non Current | C76: =-ROUND('Bal Sheet'!N95*'Bal Sheet'!$N$4,0) -> 0
A77: 300019 | B77: Deferred Compensation (CSV) | C77: =-ROUND('Bal Sheet'!N96*'Bal Sheet'!$N$4,0) -> 0
A78: 295900 | B78: Other L-T Liabilities | C78: =-ROUND('Bal Sheet'!N97*'Bal Sheet'!$N$4,0) -> 0
A79: 300001 | B79: Capital Stock | C79: =-ROUND('Bal Sheet'!N100*'Bal Sheet'!$N$4,0) -> -102000 | E79: =-'Bal Sheet'!N100 -> -8500 | F79: =E79/C79 -> 0.08333333333
A80: 300002 | B80: Additional Paid in Capital | C80: =-ROUND('Bal Sheet'!N101*'Bal Sheet'!$N$4,0) -> 0 | E80: 0 | F80: none
A81: 300003 | B81: Retained Earnings | C81: =-SUM(C1:C80)-SUM(C82:C219) -> -552369
A82: 953025 | B82: Foreign Currency Adjustment | C82: =-ROUND('Bal Sheet'!W104*'Bal Sheet'!$N$4,0) -> 13784 | E82: =-'Bal Sheet'!W104 -> 1148.646623 | F82: =E82/C82 -> 0.08333187918
A83: 300014 | B83: Dividends | C83: 0
A84: 300010 | B84: Legal Reserve | C84: =-ROUND('Bal Sheet'!N106*'Bal Sheet'!$N$4,0) -> 0
A85: 124033 | B85: Deferred Compensation | C85: =-ROUND('Bal Sheet'!N107*'Bal Sheet'!$N$4,0) -> 0
A86: 250012 | B86: Unrealized Gain or Loss - Stock | C86: =-ROUND('Bal Sheet'!N108*'Bal Sheet'!$N$4,0) -> 0
A87: 300015 | B87: Other Comprehensive Inc - FAS 133 | C87: =-ROUND('Bal Sheet'!N109*'Bal Sheet'!$N$4,0) -> 0
A88: 300023 | B88: Note Receivable from NSI | C88: =-ROUND('Bal Sheet'!N110*'Bal Sheet'!$N$4,0) -> 0
A89: 411000 | B89: Total Rev (excluding returns) | C89: =-ROUND('Inc Stmt'!J5,0) -> -8924612
A90: 411100 | B90: Sales Returns | C90: =-ROUND('Inc Stmt'!J7,0) -> 1194896
A91: 600001 | B91: Distributor Commissions | C91: =ROUND('Inc Stmt'!J18,0) -> 1605620
A92: 600008 | B92: Taxes - W/H Commissions | C92: =ROUND('Inc Stmt'!J19,0) -> 0
A93: 710001 | B93: Employee Benefits | C93: =ROUND('Inc Stmt'!J20,0) -> 0
A94: 710055 | B94: Employee Retirement Plan | C94: =ROUND('Inc Stmt'!J21,0) -> 0
A95: 710056 | B95: Employee Medical Benefits | C95: =ROUND('Inc Stmt'!J22,0) -> 0
A96: 710004 | B96: Insurance - Health | C96: =ROUND('Inc Stmt'!J23,0) -> 14612
A97: 710005 | B97: Insurance - Life | C97: =ROUND('Inc Stmt'!J24,0) -> 0
A98: 710074 | B98: Temporary Employees | C98: =ROUND('Inc Stmt'!J25,0) -> 0
A99: 710006 | B99: Employee Training | C99: =ROUND('Inc Stmt'!J26,0) -> 0
A100: 710026 | B100: Employee Stock Awards | C100: =ROUND('Inc Stmt'!J27,0) -> 0
A101: 710009 | B101: Salaries & Wages | C101: =ROUND('Inc Stmt'!J30,0) -> 738928
A102: 710008 | B102: Salaries & Wages Exec. | C102: =ROUND('Inc Stmt'!J31,0) -> 0
A103: 710012 | B103: Deferred Compensation Exp | C103: =ROUND('Inc Stmt'!J32,0) -> 0
A104: 710013 | B104: Recruitment | C104: =ROUND('Inc Stmt'!J33,0) -> 49163
A105: 710014 | B105: Employee Relocation | C105: =ROUND('Inc Stmt'!J34,0) -> 0
A106: 710015 | B106: Cafeteria Expense | C106: =ROUND('Inc Stmt'!J35,0) -> 0
A107: 710016 | B107: Compensation Reimbursement | C107: =ROUND('Inc Stmt'!J36,0) -> 0
A108: 710011 | B108: Taxes - Payroll | C108: =ROUND('Inc Stmt'!J37,0) -> 264203
A109: 720001 | B109: Repairs & Maintenance | C109: =ROUND('Inc Stmt'!J38,0) -> 0
A110: 720002 | B110: Maintenance Contracts | C110: =ROUND('Inc Stmt'!J39,0) -> 0
A111: 720003 | B111: Depreciation | C111: =ROUND('Inc Stmt'!J40,0) -> 118663
A112: 720004 | B112: Amortization | C112: =ROUND('Inc Stmt'!J41,0) -> 0
A113: 720005 | B113: Insurance General | C113: =ROUND('Inc Stmt'!J45,0) -> 1206
A114: 720006 | B114: Equipment Rental | C114: =ROUND('Inc Stmt'!J46,0) -> 0
A115: 720007 | B115: Laundry & Cleaning | C115: =ROUND('Inc Stmt'!J47,0) -> 20927
A116: 720008 | B116: Office Supplies | C116: =ROUND('Inc Stmt'!J48,0) -> 54194
A117: 720009 | B117: Postage & Mail | C117: =ROUND('Inc Stmt'!J49,0) -> 0
A118: 720010 | B118: Rent - Buildings & Warehouses | C118: =ROUND('Inc Stmt'!J50,0) -> 624460
A119: 720012 | B119: Utilities | C119: =ROUND('Inc Stmt'!J51,0) -> 53066
A120: 720013 | B120: Telephone & Telegraph | C120: =ROUND('Inc Stmt'!J52,0) -> 135428
A121: 720014 | B121: Security Services | C121: =ROUND('Inc Stmt'!J53,0) -> 11250
A122: 720016 | B122: Taxes - Property | C122: =ROUND('Inc Stmt'!J54,0) -> 0
A123: 720015 | B123: Office Relocation | C123: =ROUND('Inc Stmt'!J55,0) -> 0
A124: 600010 | B124: License Fees | C124: =ROUND('Inc Stmt'!J56,0) -> 0
A125: 730006 | B125: Taxes - W/H License Fees | C125: =ROUND('Inc Stmt'!J57,0) -> 0
A126: 725001 | B126: Merch Discount & Bank Charges | C126: =ROUND('Inc Stmt'!J58,0) -> 118993
A127: 730001 | B127: Management Fees | C127: =ROUND('Inc Stmt'!J59,0) -> 8256
A128: 725020 | B128: Direct Service Fee | C128: =ROUND('Inc Stmt'!J60,0) -> 0
A129: 730003 | B129: Expatriate Relocation | C129: =ROUND('Inc Stmt'!J61,0) -> 0
A130: 730004 | B130: Expatriate - General | C130: =ROUND('Inc Stmt'!J62,0) -> 0
A131: 730005 | B131: Allocated Overhead | C131: =ROUND('Inc Stmt'!J63,0) -> 0
A132: 740001 | B132: Advertising & Promotions | C132: =ROUND('Inc Stmt'!J64,0) -> 0
A133: 740014 | B133: Bad Debt Expense | C133: =ROUND('Inc Stmt'!J65,0) -> 0
A134: 740002 | B134: Promotion - No Charge Product | C134: =ROUND('Inc Stmt'!J66,0) -> 19843
A135: 740004 | B135: Distributor Awards | C135: =ROUND('Inc Stmt'!J67,0) -> 0
A136: 740005 | B136: Distributor Incentives | C136: =ROUND('Inc Stmt'!J68,0) -> 0
A137: 740006 | B137: Distributor Medical Reimburse | C137: =ROUND('Inc Stmt'!J69,0) -> 0
A138: 740007 | B138: Donations | C138: =ROUND('Inc Stmt'!J70,0) -> 0
A139: 740035 | B139: Dues & Memberships | C139: =ROUND('Inc Stmt'!J71,0) -> 80130
A140: 740009 | B140: Subscriptions | C140: =ROUND('Inc Stmt'!J72,0) -> 0
A141: 740010 | B141: Printing Services | C141: =ROUND('Inc Stmt'!J73,0) -> 54550
A142: 740016 | B142: Material Fee | C142: =ROUND('Inc Stmt'!J74,0) -> 0
A143: 740011 | B143: Distributor Training & Seminar | C143: =ROUND('Inc Stmt'!J75,0) -> 319965
A144: 740012 | B144: Convention Expenses | C144: =ROUND('Inc Stmt'!J76,0) -> 0
A145: 740013 | B145: Film Projects | C145: =ROUND('Inc Stmt'!J77,0) -> 0
A146: 450017 | B146: Seminar Income | C146: =ROUND('Inc Stmt'!J78,0) -> 0
A147: 750001 | B147: Legal Service | C147: =ROUND('Inc Stmt'!J79,0) -> 16327
A148: 750002 | B148: Accounting Service | C148: =ROUND('Inc Stmt'!J80,0) -> 0
A149: 750003 | B149: Professional Consulting | C149: =ROUND('Inc Stmt'!J81,0) -> 1295
A150: 760001 | B150: Travel | C150: =ROUND('Inc Stmt'!J82,0) -> 47260
A151: 760002 | B151: Meals & Entertainment | C151: =ROUND('Inc Stmt'!J83,0) -> 0
A152: 760014 | B152: Non-Deductible Entertainment | C152: =ROUND('Inc Stmt'!J84,0) -> 0
A153: 770001 | B153: Automobile & Truck | C153: =ROUND('Inc Stmt'!J86,0) -> 0
A154: 770003 | B154: Computer Programming | C154: =ROUND('Inc Stmt'!J87,0) -> 0
A155: 770004 | B155: Licenses & Permits | C155: =ROUND('Inc Stmt'!J88,0) -> 9176
A156: 770005 | B156: Insurance - Product Liability | C156: =ROUND('Inc Stmt'!J89,0) -> 0
A157: 770007 | B157: Research & Development | C157: =ROUND('Inc Stmt'!J90,0) -> 0
A158: 730015 | B158: Adj for License, Royalty, & Com | C158: =ROUND('Inc Stmt'!J91,0) -> 0
A159: 770015 | B159: Miscellaneous Expense | C159: =ROUND('Inc Stmt'!J92,0)-'Inc Stmt'!$D$149 -> 0
A160: 770008 | B160: Taxes - Sales & Use | C160: =ROUND('Inc Stmt'!J93,0) -> 0
A161: 770009 | B161: Taxes - Other | C161: =ROUND('Inc Stmt'!J94,0) -> 107610
A162: 951020 | B162: State Tax Expense/(Refund) | C162: =ROUND('Inc Stmt'!J95,0) -> 0
A163: 601500 | B163: Distributor Stock Option Expense | C163: =ROUND('Inc Stmt'!J96,0) -> 0
A164: 770071 | B164: Commissionaire Commissions | C164: =ROUND('Inc Stmt'!J97,0) -> 0
A165: 450018 | B165: Machine Income/Emp Service Inc | C165: =-ROUND('Inc Stmt'!J108,0) -> 0
A166: 450019 | B166: Rental Income | C166: =-ROUND('Inc Stmt'!J109,0) -> 0
A167: 431002 | B167: Miscellaneous Income | C167: =-ROUND('Inc Stmt'!J110,0) -> 377542
A168: 450026 | B168: Cash Over & Short | C168: =-ROUND('Inc Stmt'!J111,0) -> 0
A169: 770025 | B169: Inter-company net sales (not NSI/NSEP) | C169: =-ROUND('Inc Stmt'!J112,0) -> 0
A170: 800103 | B170: Intercompany Interest Income | C170: =-ROUND('Inc Stmt'!J113,0) -> 0
A171: 800001 | B171: Interest Income | C171: =-ROUND('Inc Stmt'!J114,0) -> 0
A172: 800003 | B172: Interest Expense | C172: =-ROUND('Inc Stmt'!J115,0) -> 16172
A173: 800104 | B173: Intercompany Interest Expense | C173: =-ROUND('Inc Stmt'!J116,0) -> 0
A174: 450043 | B174: Dividend Income | C174: =-ROUND('Inc Stmt'!J117,0) -> 0
A175: 951085 | B175: Gain/(Loss) - Sale of Assets | C175: =-'Inc Stmt'!J125 -> 0
A176: 800006 | B176: Gain/(Loss) - Sale of Securities | C176: =-'Inc Stmt'!J131 -> 0
A177: 800007 | B177: For Currency G/(L) - Realized | C177: =-'Inc Stmt'!J132 -> 0
A178: 800016 | B178: For Currency G/(L) - Unrealized | C178: =-'Inc Stmt'!J133 -> 29467
A179: 951097 | B179: Capital Gain/(Loss) | C179: =-'Inc Stmt'!J134 -> 0
A180: 800002 | B180: Tax-Exempt Interest Income | C180: =-'Inc Stmt'!J135 -> 0
A181: 952000 | B181: §987 Gain/(Loss) | C181: =-'Inc Stmt'!J136 -> 0
A182: 951090 | B182: §367 Gain/(Loss) | C182: =-'Inc Stmt'!J137 -> 0
A183: 450020 | B183: Income - Dist Stock Op Reimb | C183: =-'Inc Stmt'!J138 -> 0
A184: 770020 | B184: Forgiveness of Debt | C184: =-'Inc Stmt'!J139 -> 0
A185: 450015 | B185: Management Fee Income | C185: =-'Inc Stmt'!J140 -> 0
A186: 952015 | B186: Dual Consolidated Loss Limitation | C186: =ROUND(-'Inc Stmt'!J142,0) -> 0
A187: 952020 | B187: Income Tax Provision (Foreign FTC) | C187: =ROUND('Inc Stmt'!J155,0) -> 359156
A188: 955035 | B188: Beginning Inventory for Sch A | C188: ='263A Calc'!H20 -> 2144192.45
A189: 955020 | B189: Ending Inventory for Sch A | C189: =-SUM(C4:C10) -> -600963
A190: 955005 | B190: Purchases | C190: ='Inc Stmt'!J13-C188-C189 -> 1565696.55

Sheet Greg (hidden)
B1: Expected | C1: Found
A2: Total Cash | B2: 11 | C2: 11
A3: Total Accounts Receivable | B3: 16 | C3: 16
A4: Nu Skin Product Inventory | B4: 19 | C4: 19
A5: Pharmanex Product Inventory | B5: 20 | C5: 20
A6: Nu Skin Sales Aid Inventory | B6: 22 | C6: 22
A7: Pharmanex Sales Aid Inventory | B7: 23 | C7: 23
A8: Big Planet Sales Aid Inventory | B8: 25 | C8: 24 | D8: $D$24
A9: Nu Skin Starter Kit Inventory | B9: 26 | C9: 25 | D9: $D$25
A10: Prepaid Rent | B10: 34 | C10: 33 | D10: $D$33
A11: Prepaid Insurance | B11: 35 | C11: 34 | D11: $D$34
A12: Other Prepayments (list out above if over 10% of Prepaids) | B12: 39 | C12: 38 | D12: $D$38
A13: Prepaid Duty and Freight | B13: 46 | C13: 45 | D13: $D$45
A14: Deferred Tax Payment | B14: 37 | C14: 36 | D14: $D$36
A15: Total Intercompany Receivable | B15: 73 | C15: 72 | D15: $D$72
A16: Fixed Assets - Furniture and Equipment | B16: 81 | C16: 80 | D16: $D$80
A17: Fixed Assets - Leasehold Improvements | B17: 82 | C17: 81 | D17: $D$81
A18: Fixed Assets - Computers and Software | B18: 83 | C18: 82 | D18: $D$82
A19: Fixed Assets - Scanner | B19: 84 | C19: 83 | D19: $D$83
A20: Accumulated Depreciation | B20: 86 | C20: 85 | D20: $D$85
A21: Accrued Commissions - Local | B21: 124 | C21: 123 | D21: $D$123
A22: Advances Received from Distributors | B22: 125 | C22: 124 | D22: $D$124
A23: Total Intercompany Payable | B23: 151 | C23: 150 | D23: $D$150
A24: Capital Stock | B24: 164 | C24: 163 | D24: $D$163
A25: Retained Earnings | B25: 168 | C25: 167 | D25: $D$167
A26: Current Earnings | B26: 169 | C26: 168 | D26: $D$168
A28: Ignore These
A29: Cash
A30: Receivable from Credit Card Company
A31: Total Inventory
A32: Total Prepaid Assets
A33: Int. Co. Rec. ACQ ENTITIES - NSEP Other (list if over 10%)
A34: Total Fixed Assets
A35: Total Assets
A36: Total Accrued Liabilities
A37: Int. Co. Pay. ACQ ENTITIES - NSIMG
A38: Int. Co. Pay. ASIA - NSEP INC Purchase
A39: Total Retained Earnings
A40: Total Liabilities and Equity

Sheet Tester (hidden)
B1: Summary Row | C1: Expected | D1: Found | E1: Changed Addresses
A2: Total Cash | B2: 8 | C2: 11 | D2: 11
A3: Total Accounts Receivable | C3: 16 | D3: 16
A4: Nu Skin Product Inventory | C4: 19 | D4: 19
A5: Pharmanex Product Inventory | C5: 20 | D5: 20
A6: Nu Skin Sales Aid Inventory | C6: 22 | D6: 22
A7: Pharmanex Sales Aid Inventory | C7: 23 | D7: 23
A8: Nu Skin Starter Kit Inventory | C8: 25 | D8: 26 | E8: $D$26
A9: Pharmanex Starter Kit Inventory | C9: 26 | D9: 27 | E9: $D$27
A10: Total Inventory | C10: 30 | D10: 31 | E10: $D$31
A11: Prepaid Insurance | C11: 34 | D11: 35 | E11: $D$35
A12: Refundable Rental Deposits - Current/Short Term | C12: 43 | D12: 44 | E12: $D$44
A13: Prepaid Duty and Freight | C13: 45 | D13: 46 | E13: $D$46
A14: Total Prepaid Assets | C14: 46 | D14: 47 | E14: $D$47
A15: Fixed Assets - Leasehold Improvements | C15: 81 | D15: 82 | E15: $D$82
A16: Fixed Assets - Computers and Software | C16: 82 | D16: 83 | E16: $D$83
A17: Fixed Assets - Scanner | C17: 83 | D17: 84 | E17: $D$84
A18: Total Fixed Assets | C18: 86 | D18: 87 | E18: $D$87
A19: Advances Received from Distributors | C19: 124 | D19: 125 | E19: $D$125
A20: Total Accrued Liabilities | C20: 125 | D20: 126 | E20: $D$126
A21: Current Earnings | C21: 168 | D21: 169 | E21: $D$169
A23: Ignore These
A24: Cash
A25: Receivable from Credit Card Company
A26: Other Receivables/Deposits (list out above if over 10% of Accts Rec)
A27: Prepaid Rent
A28: Other Prepayments (list out above if over 10% of Prepaids)
A29: Fixed Assets - Furniture and Equipment
A30: Accumulated Depreciation
A31: Total Assets
A32: Accrued Customs Duties/Border Taxes
A33: Other Current Liabilities (list out above if over 10% of Accd Liab)
A34: Accrued Commissions - Local
A35: Int. Co. Pay. ACQ ENTITIES - NSIMG
A36: Int. Co. Pay. ASIA - NSEP INC Purchase
A37: Total Intercompany Payable
A38: Capital Stock
A39: Retained Earnings
A40: Total Retained Earnings
A41: Total Liabilities and Equity

Sheet Joe (hidden)
B1: Summary Row | C1: Expected | D1: Found | E1: Changed Addresses
A2: Total Cash | B2: ='Bal Sheet Detail'!D11 -> 543253.869 | C2: 11 | D2: 11 | E2: $D$11
A3: Total Accounts Receivable | B3: ='Bal Sheet Detail'!D16 -> 1897.62 | C3: 16 | D3: 16 | E3: $D$16
A4: Nu Skin Product Inventory | B4: ='Bal Sheet Detail'!D19 -> 535581.411 | C4: 19 | D4: 19 | E4: $D$19
A5: Pharmanex Product Inventory | B5: ='Bal Sheet Detail'!D19 -> 535581.411 | C5: 20 | D5: 20 | E5: $D$20
A6: Nu Skin Sales Aid Inventory | B6: ='Bal Sheet Detail'!D22 -> 62779.872 | C6: 22 | D6: 22 | E6: $D$22
A7: Pharmanex Sales Aid Inventory | B7: ='Bal Sheet Detail'!D22 -> 62779.872 | C7: 23 | D7: 23 | E7: $D$23
A8: Big Planet Sales Aid Inventory | B8: ='Bal Sheet Detail'!D25 -> 2602.062 | C8: 25 | D8: 24 | E8: $D$24
A9: Nu Skin Starter Kit Inventory | B9: ='Bal Sheet Detail'!D25 -> 2602.062 | C9: 26 | D9: 25 | E9: $D$25
A10: Prepaid Rent | B10: ='Bal Sheet Detail'!D34 -> 34914.3 | C10: 34 | D10: 33 | E10: $D$33
A11: Prepaid Insurance | B11: ='Bal Sheet Detail'!D35 -> 2981.4 | C11: 35 | D11: 34 | E11: $D$34
A12: Other Prepayments (list out above if over 10% of Prepaids) | B12: ='Bal Sheet Detail'!D39 -> 5240.517 | C12: 39 | D12: 38 | E12: $D$38
A13: Prepaid Duty and Freight | B13: ='Bal Sheet Detail'!D46 -> 2240.373 | C13: 46 | D13: 45 | E13: $D$45
A14: Deferred Tax Payment | B14: ='Bal Sheet Detail'!D37 -> 58317.6 | C14: 37 | D14: 36 | E14: $D$36
A15: Total Intercompany Receivable | B15: ='Bal Sheet Detail'!D73 -> 41366.46 | C15: 73 | D15: 72 | E15: $D$72
A16: Fixed Assets - Furniture and Equipment | B16: ='Bal Sheet Detail'!D81 -> 21798.009 | C16: 81 | D16: 80 | E16: $D$80
A17: Fixed Assets - Leasehold Improvements | B17: ='Bal Sheet Detail'!D82 -> 8540.55 | C17: 82 | D17: 81 | E17: $D$81
A18: Fixed Assets - Computers and Software | B18: ='Bal Sheet Detail'!D83 -> 27749.094 | C18: 83 | D18: 82 | E18: $D$82
A19: Fixed Assets - Scanner | B19: ='Bal Sheet Detail'!D84 -> 128094.972 | C19: 84 | D19: 83 | E19: $D$83
A20: Accumulated Depreciation | B20: ='Bal Sheet Detail'!D86 -> -110150.652 | C20: 86 | D20: 85 | E20: $D$85
A21: Accrued Commissions - Local | B21: ='Bal Sheet Detail'!D124 -> 58838.673 | C21: 124 | D21: 123 | E21: $D$123
A22: Advances Received from Distributors | B22: ='Bal Sheet Detail'!D125 -> 23519.469 | C22: 125 | D22: 124 | E22: $D$124
A23: Total Intercompany Payable | B23: ='Bal Sheet Detail'!D151 -> 1181251.455 | C23: 151 | D23: 150 | E23: $D$150
A24: Capital Stock | B24: ='Bal Sheet Detail'!D164 -> 19533 | C24: 164 | D24: 163 | E24: $D$163
A25: Retained Earnings | B25: ='Bal Sheet Detail'!D168 -> 161803.764 | C25: 168 | D25: 167 | E25: $D$167
A26: Current Earnings | B26: ='Bal Sheet Detail'!D169 -> -77739 | C26: 169 | D26: 168 | E26: $D$168
A28: Ignore These
A29: Cash
A30: Receivable from Credit Card Company
A31: Total Inventory
A32: Total Prepaid Assets
A33: Int. Co. Rec. ACQ ENTITIES - NSEP Other (list if over 10%)
A34: Total Fixed Assets
A35: Total Assets
A36: Total Accrued Liabilities
A37: Int. Co. Pay. ACQ ENTITIES - NSIMG
A38: Int. Co. Pay. ASIA - NSEP INC Purchase
A39: Total Retained Earnings
A40: Total Liabilities and Equity

Sheet Last (hidden)
B1: Summary Row | C1: Expected | D1: Found | E1: Changed Addresses
A2: Total Cash | B2: 8 | C2: 11 | D2: 11
A3: Total Accounts Receivable | B3: 10 | C3: 16 | D3: 16
A4: Nu Skin Product Inventory | B4: 11 | C4: 19 | D4: 19
A5: Pharmanex Product Inventory | B5: 11 | C5: 20 | D5: 20
A6: Nu Skin Sales Aid Inventory | B6: 12 | C6: 22 | D6: 22
A7: Pharmanex Sales Aid Inventory | B7: 12 | C7: 23 | D7: 23
A8: Nu Skin Starter Kit Inventory | B8: 13 | C8: 25 | D8: 25
A9: Pharmanex Starter Kit Inventory | B9: 13 | C9: 26 | D9: 26
A10: Total Inventory | B10: 15 | C10: 30 | D10: 31 | E10: $D$31
A11: Prepaid Insurance | B11: 18 | C11: 34 | D11: 35 | E11: $D$35
A12: Refundable Rental Deposits - Current/Short Term | B12: 24 | C12: 43 | D12: 44 | E12: $D$44
A13: Prepaid Duty and Freight | B13: 26 | C13: 45 | D13: 46 | E13: $D$46
A14: Total Prepaid Assets | B14: 27 | C14: 46 | D14: 47 | E14: $D$47
A15: Fixed Assets - Leasehold Improvements | B15: 37 | C15: 81 | D15: 82 | E15: $D$82
A16: Fixed Assets - Computers and Software | B16: 38 | C16: 82 | D16: 83 | E16: $D$83
A17: Fixed Assets - Scanner | B17: 39 | C17: 83 | D17: 84 | E17: $D$84
A18: Total Fixed Assets | B18: 43 | C18: 86 | D18: 87 | E18: $D$87
A19: Advances Received from Distributors | B19: 83 | C19: 124 | D19: 125 | E19: $D$125
A20: Total Accrued Liabilities | B20: 84 | C20: 125 | D20: 126 | E20: $D$126
A21: Current Earnings | B21: 102 | C21: 168 | D21: 169 | E21: $D$169
A23: Ignore These
A24: Cash
A25: Receivable from Credit Card Company
A26: Other Receivables/Deposits (list out above if over 10% of Accts Rec)
A27: Prepaid Rent
A28: Other Prepayments (list out above if over 10% of Prepaids)
A29: Fixed Assets - Furniture and Equipment
A30: Accumulated Depreciation
A31: Total Assets
A32: Accrued Customs Duties/Border Taxes
A33: Other Current Liabilities (list out above if over 10% of Accd Liab)
A34: Accrued Commissions - Local
A35: Int. Co. Pay. ACQ ENTITIES - NSIMG
A36: Int. Co. Pay. ASIA - NSEP INC Purchase
A37: Total Intercompany Payable
A38: Capital Stock
A39: Retained Earnings
A40: Total Retained Earnings
A41: Total Liabilities and Equity

Sheet Bal Sheet
A1: Tahiti | W1: A1
A2: BALANCE SHEET
A3: 12/31/2010 | M3: Exchange Rate
N4: 12
D5: FC BALANCE | G5: GAAP ADJUSTMENTS | J5: ADJUSTED FC BALANCE | M5: ADJUSTED US$ BALANCE | P5: N/A | S5: Adjusting Entries | V5: US$ CONSOLIDATED BALANCE
A6: ASSETS
B7: Current Assets
C8: Cash | E8: ='Bal Sheet Detail'!D11 -> 543253.869 | K8: =+E8+H8 -> 543253.869 | N8: =+K8/$N$4 -> 45271.15575 | W8: =+N8+Q8+T8 -> 45271.15575
C9: Short-Term Investments | E9: 0 | K9: =E9+H9 -> 0 | N9: 0 | W9: 0
C10: Accounts Receivable | E10: ='Bal Sheet Detail'!D16 -> 1897.62 | K10: =E10+H10 -> 1897.62 | N10: 158.135 | W10: 158.135
C11: Inventory - Product | E11: ='Bal Sheet Detail'!D19+'Bal Sheet Detail'!D20 -> 535581.411 | K11: 535581.411 | N11: 44631.78425 | W11: 44631.78425
C12: Inventory - Sales Aids | E12: ='Bal Sheet Detail'!D22+'Bal Sheet Detail'!D23 -> 62779.872 | K12: 62779.872 | N12: 5231.656 | W12: 5231.656
C13: Inventory - Starter Kits | E13: ='Bal Sheet Detail'!D25+'Bal Sheet Detail'!D26 -> 2602.062 | K13: 2602.062 | N13: 216.8385 | W13: 216.8385
C14: Inventory - Shipping Supplies | E14: 0 | K14: 0 | N14: 0 | W14: 0
C15: Inventory - Other Supplies | E15: ='Bal Sheet Detail'!$D$29 -> 0 | K15: 0 | N15: 0 | W15: 0
C16: Inventory - In Transit | E16: 0 | K16: 0 | N16: 0 | W16: 0
C17: Inventory Reserve | E17: 0 | K17: 0 | N17: 0 | W17: 0
C18: Prepaid Rent | E18: ='Bal Sheet Detail'!$D$34 -> 34914.3 | K18: 34914.3 | N18: 2909.525 | W18: 2909.525
C19: Prepaid Insurance | E19: ='Bal Sheet Detail'!$D$35 -> 2981.4 | K19: 2981.4 | N19: 248.45 | W19: 248.45
C20: Prepaid VAT | E20: ='Bal Sheet Detail'!D36 -> 0 | K20: 0 | N20: 0 | W20: 0
C21: Distributor Stock Options | E21: 0 | K21: =+E21+H21 -> 0 | N21: =+K21/$N$4 -> 0 | W21: 0
C22: Cash Advances | E22: 0 | K22: 0 | N22: 0 | W22: 0
C23: Other Prepayments | E23: ='Bal Sheet Detail'!$D$39 -> 5240.517 | K23: 5240.517 | N23: 436.70975 | W23: 436.70975
C24: Other Current Assets | E24: ='Bal Sheet Detail'!D42 -> 0 | K24: 0 | N24: 0 | W24: 0
C25: Refundable Deposits - S/T | E25: ='Bal Sheet Detail'!$D$44 -> 0 | K25: 0 | N25: 0 | W25: 0
C26: Accrued Interest Income | E26: ='Bal Sheet Detail'!D44 -> 0 | K26: 0 | N26: 0 | W26: 0
C27: Prepaid Duty & Freight | E27: ='Bal Sheet Detail'!$D$46 -> 2240.373 | K27: 2240.373 | N27: 186.69775 | W27: 186.69775
C28: Hedges/FAS 133 | E28: 0 | K28: =+E28+H28 -> 0 | N28: =+K28/$N$4 -> 0 | W28: 0
C29: Forward Contracts | E29: 0 | K29: =+E29+H29 -> 0 | N29: =+K29/$N$4 -> 0 | W29: 0
C30: Deferred Tax Assets - Cur | E30: ='Bal Sheet Detail'!$D$36 -> 0 | K30: 0 | N30: 0 | W30: 0
C31: Intercompany Receivables | E31: ='Bal Sheet Detail'!$D$72 -> 0 | K31: 0 | N31: 0 | W31: 0
C32: Related Party Receivables | E32: 0 | K32: 0 | N32: 0 | W32: 0
B34: Fixed Assets
C35: Land | E35: 0 | K35: =+E35+H35 -> 0 | N35: =+K35/$N$4 -> 0 | W35: =+N35+Q35+T35 -> 0
C36: Buildings | E36: 0 | K36: 0 | N36: 0 | W36: =+N36+Q36+T36 -> 0
C37: Furniture & Equipment | E37: ='Bal Sheet Detail'!$D$81 -> 21798.009 | K37: 21798.009 | N37: 1816.50075 | W37: =+N37+Q37+T37 -> 1816.50075
C38: Leasehold Improvements | E38: ='Bal Sheet Detail'!$D$82 -> 8540.55 | K38: 8540.55 | N38: 711.7125 | W38: 711.7125
C39: Computer & Software | E39: ='Bal Sheet Detail'!$D$83 -> 27749.094 | K39: 27749.094 | N39: 2312.4245 | W39: 2312.4245
C40: Vehicles | E40: 0 | K40: 0 | N40: 0 | W40: 0
C41: Scanners | E41: ='Bal Sheet Detail'!$D$84 -> 128094.972 | K41: 128094.972 | N41: 10674.581 | W41: 10674.581
C42: Construction in Progress | E42: 0 | K42: 0 | N42: 0 | W42: 0
C43: Accumulated Depreciation | E43: ='Bal Sheet Detail'!$D$86 -> -110150.652 | K43: -110150.652 | N43: -9179.221 | W43: -9179.221
B45: Other Assets
C46: Asia Distribution Rights | E46: 0 | K46: =+E46+H46 -> 0 | N46: =+K46/$N$4 -> 0 | W46: =+N46+Q46+T46 -> 0
C47: Receivables from Developing Mkts | E47: 0 | K47: =+E47+H47 -> 0 | N47: 0 | W47: 0
C48: Key Money/Lease Deposits | E48: 0 | K48: =+E48+H48 -> 0 | N48: 0 | W48: 0
C49: Other Long-Term Assets | E49: 0 | K49: =+E49+H49 -> 0 | N49: =+K49/$N$4 -> 0 | W49: 0
C50: Insurance | E50: 0 | K50: =+E50+H50 -> 0 | N50: 0 | W50: 0
C51: Telephone Lines Right | E51: 0 | K51: =+E51+H51 -> 0 | N51: 0 | W51: 0
C52: Deferred Tax Assets - Non Curr | E52: 0 | K52: =+E52+H52 -> 0 | N52: =+K52/$N$4 -> 0 | W52: =+N52+Q52+T52 -> 0
C53: Deferred Compensation (CSV) | E53: 0 | K53: =+E53+H53 -> 0 | N53: =+K53/$N$4 -> 0 | W53: =+N53+Q53+T53 -> 0
C54: Loan Receivable | E54: 0 | K54: =+E54+H54 -> 0 | N54: =+K54/$N$4 -> 0 | W54: =+N54+Q54+T54 -> 0
C55: Refundable Deposits | E55: 0 | K55: =+E55+H55 -> 0 | N55: =+K55/$N$4 -> 0 | W55: =+N55+Q55+T55 -> 0
C56: Intangibles (Trademarks/Patents) | E56: 0 | K56: =+E56+H56 -> 0 | N56: =+K56/$N$4 -> 0 | W56: =+N56+Q56+T56 -> 0
C57: Accumulated Amortization | E57: 0 | K57: 0 | N57: 0 | W57: 0
C58: Investment in Branch | E58: 0 | K58: 0 | N58: 0 | W58: 0
C59: Investment in NSE Stock | E59: 0 | K59: =+E59+H59 -> 0 | N59: =+K59/$N$4 -> 0 | W59: =+N59+Q59+T59 -> 0
C60: Investment in Nonconsolidated | E60: 0 | K60: =+E60+H60 -> 0 | N60: =+K60/$N$4 -> 0 | W60: =+N60+Q60+T60 -> 0
C61: Eliminating Receivable | E61: 0 | K61: 0 | N61: 0 | W61: 0
C62: Deposits with the IRS | E62: 0 | K62: 0 | N62: 0 | W62: 0
C63: Foreign Taxes Paid | E63: 0 | K63: 0 | N63: 0 | W63: 0
C64: Distributor Withholding/Violations | E64: 0 | K64: 0 | N64: 0 | W64: 0
Y65: PYR | Z65: AVG
A66: TOTAL ASSETS | E66: =SUM(E8:E64) -> 1267523.397 | K66: =SUM(K8:K61) -> 1267523.397 | N66: =SUM(N7:N65) -> 105626.9497 | Q66: =SUM(Q8:Q61) -> 0 | W66: =SUM(W8:W61) -> 105626.9497 | Y66: 613445.431 | Z66: =AVERAGE(W66,Y66) -> 359536.1904
A69: LIABILITIES
B70: Current Liabilities
C71: Accounts Payable | E71: ='Bal Sheet Detail'!D102 -> 0 | K71: =+E71-H71 -> 0 | N71: =+K71/$N$4 -> 0 | W71: =+Q71+N71-T71 -> 0
C72: Accrued Payroll and Taxes | E72: ='Bal Sheet Detail'!D105 -> 0 | K72: 0 | N72: 0 | W72: =+Q72+N72-T72 -> 0
C73: Accrued Comp Absences | E73: 0 | K73: 0 | N73: 0 | W73: 0
C74: Accrued Income Taxes | E74: 0 | K74: 0 | N74: 0 | W74: 0
C75: Accrued Customs Duties | E75: ='Bal Sheet Detail'!$D$109 -> 0 | K75: 0 | N75: 0 | W75: 0
C76: Accrued Property/Withholding Tax | E76: 0 | K76: 0 | N76: 0 | W76: 0
C77: Deferred Director's Bonus | E77: 0 | K77: 0 | N77: 0 | W77: 0
C78: Reserve for Retirement Benefits | E78: 0 | K78: =+E78-H78 -> 0 | N78: 0 | W78: =+Q78+N78-T78 -> 0
C79: Deferred Income | E79: 0 | K79: 0 | N79: 0 | W79: 0
C80: Other Current Liabilities | E80: ='Bal Sheet Detail'!$D$114 -> 0 | H80: =-SUM(H85:H86) -> -841608.845 | K80: 841608.845 | N80: 70134.07042 | W80: 70134.07042
C81: Deferred Tax Liab - Current | E81: 0 | K81: =+E81-H81 -> 0 | N81: 0 | W81: =+Q81+N81-T81 -> 0
C82: S-T Line of Credit - Bank Loan | E82: 0 | K82: 0 | N82: 0 | W82: 0
C83: Accrued Commissions | E83: ='Bal Sheet Detail'!$D$124 -> 58838.673 | K83: 58838.673 | N83: 4903.22275 | W83: 4903.22275
C84: Advances Received from Distrib | E84: ='Bal Sheet Detail'!$D$125 -> 23519.469 | K84: 23519.469 | N84: 1959.95575 | W84: 1959.95575
C85: Intercompany Payable | E85: ='Bal Sheet Detail'!$D$151 -> 1181251.455 | H85: =+'Bal Sheet'!E85 -> 1181251.455 | K85: 0 | N85: 0 | W85: 0
C86: Related Party Payable | E86: 0 | H86: =-'Loan Balances'!C24*'Bal Sheet'!N4 -> -339642.61 | K86: 339642.61 | N86: 28303.55083 | W86: 28303.55083
C87: Eliminating Payable | E87: 0 | K87: 0 | N87: 0 | W87: 0
C88: Sales Return & Allowances | E88: 0 | K88: =+E88-H88 -> 0 | N88: 0 | W88: =+Q88+N88-T88 -> 0
C89: Accrued Bonus | E89: 0 | K89: =+E89-H89 -> 0 | N89: 0 | W89: =+Q89+N89-T89 -> 0
C90: General Reserve | E90: 0 | K90: =+E90-H90 -> 0 | N90: 0 | W90: =+Q90+N90-T90 -> 0
B92: Fixed Liabilities
C93: L-T Line of Credit - Bank Loan | E93: 0 | K93: =+E93-H93 -> 0 | N93: =+K93/$N$4 -> 0 | W93: =+Q93+N93-T93 -> 0
C94: Minority Interest | E94: 0 | K94: =+E94-H94 -> 0 | N94: =+K94/$N$4 -> 0 | W94: =+Q94+N94-T94 -> 0
C95: Deferred Tax Liab - Non Current | E95: 0 | K95: =+E95-H95 -> 0 | N95: =+K95/$N$4 -> 0 | W95: =+Q95+N95-T95 -> 0
C96: Deferred Compensation (CSV) | E96: 0 | K96: =+E96-H96 -> 0 | N96: =+K96/$N$4 -> 0 | W96: =+Q96+N96-T96 -> 0
C97: Other L-T Liabilities | E97: 0 | K97: =+E97-H97 -> 0 | N97: =+K97/$N$4 -> 0 | W97: =+Q97+N97-T97 -> 0
A99: EQUITY
C100: Capital Stock | E100: ='Bal Sheet Detail'!$D$164 -> 19533 | K100: =+E100-H100 -> 19533 | N100: =FCA!E39 -> 8500 | W100: =+Q100+N100-T100 -> 8500
C101: Additional Paid in Capital | E101: 0 | K101: =+E101-H101 -> 0 | N101: =FCA!E40 -> 0 | W101: 0
C102: Retained Earnings | E102: ='Bal Sheet Detail'!$D$168 -> 161803.764 | F102: C | H102: ='Inc Stmt'!G163 -> -377542.116 | K102: =+E102-H102 -> 539345.88 | L102: A | N102: =FCA!E41 -> 69618.27027 | O102: B | W102: 69618.27027 | X102: B
C103: Current Earnings | E103: ='Bal Sheet Detail'!$D$169 -> -77739 | F103: C | K103: =+E103-H103 -> -77739 | L103: A | N103: =FCA!E42 -> -79654.31665 | O103: B | W103: -79654.31665 | X103: B
C104: Foreign Currency Adjustment | E104: 0 | K104: 0 | N104: =FCA!I45 -> -1148.646623 | W104: =+Q104+N104-T104 -> -1148.646623
C105: Dividends | E105: 0 | K105: 0 | N105: =FCA!E43 -> 0 | W105: 0 | X105: B
C106: Legal Reserve | E106: 0 | K106: 0 | N106: =K106/N$4 -> 0 | W106: 0
C107: Deferred Compensation | E107: 0 | K107: 0 | N107: =K107/N$4 -> 0 | W107: 0
C108: Unrealized Gain/Loss | E108: 0 | K108: 0 | N108: =K108/N$4 -> 0 | W108: 0
C109: Other Comprehensive Inc -- Fas 133 | E109: 0 | K109: =+E109-H109 -> 0 | N109: =K109/N$4 -> 0 | W109: =+Q109+N109-T109 -> 0
C110: Note Receivable from NSI | E110: 0 | K110: 0 | N110: =K110/N$4 -> 0 | W110: 0
A112: TOTAL LIABILITIES & EQUITY | E112: =SUM(E71:E111) -> 1367207.361 | J112: B3, B10 | K112: =SUM(K71:K111) -> 1744749.477 | N112: =SUM(N71:N111) -> 102616.1068 | Q112: =SUM(Q71:Q111) -> 0 | T112: =SUM(T71:T111) -> 0 | W112: =SUM(W71:W111) -> 102616.1068
E113: =E112-E66 -> 99683.964 | K113: =K112-K66 -> 477226.08 | N113: =N112-N66 -> -3010.843 | W113: =W112-W66 -> -3010.843
D114: SC= | E114: =SUM(E102,E103) -> 84064.764 | I114: SA= | J114: B3, B10 | K114: =K102+K103+K105 -> 461606.88 | M114: SB= | N114: =SUM(N102:N103) -> -10036.04638 | V114: SB= | W114: =W102+W103+W105 -> -10036.04638
N117: 554582.82
N118: =N117-E102 -> 392779.056
N119: =N118/N4 -> 32731.588

Sheet Bal Sheet Detail
A1: Nu Skin Tahiti
A2: Balance Sheet - Detailed
A3: As of 1943 | D3: 1943
B5: Acct | D5: Local | E5: As a %
A6: Account Description | B6: Code | D6: Currency | E6: of Total
A9: Cash | B9: 100 | D9: 543253.869 | E9: =+D9/D$96 -> 0.3973456012
A10: Other Cash/Cash Equivalents (list out above if over 10% of cash) | B10: 100-149 | E10: =+D10/D$96 -> 0
A11: Total Cash | D11: =SUM(D9:D10) -> 543253.869 | E11: =+D11/D$96 -> 0.3973456012
E12: =+D12/D$96 -> 0
A14: Receivable from Credit Card Company | B14: 150 | D14: 1897.62 | E14: =+D14/D$96 -> 0.001387953226
A15: Other Receivables/Deposits (list out above if over 10% of Accts Rec) | B15: 150-159 | E15: =+D15/D$96 -> 0
A16: Total Accounts Receivable | D16: =SUM(D14:D15) -> 1897.62 | E16: =+D16/D$96 -> 0.001387953226
A19: Nu Skin Product Inventory | B19: 160 | D19: 535581.411 | E19: =+D19/D$96 -> 0.3917338281
A20: Pharmanex Product Inventory | B20: 161 | E20: 0
A21: Big Planet Product Inventory | B21: 162 | E21: 0
A22: Nu Skin Sales Aid Inventory | B22: 165 | D22: 62779.872 | E22: 0.04591832182
A23: Pharmanex Sales Aid Inventory | B23: 166 | E23: 0
A24: Big Planet Sales Aid Inventory | B24: 167 | E24: 0
A25: Nu Skin Starter Kit Inventory | B25: 170 | D25: 2602.062 | E25: 0.00190319471
A26: Pharmanex Starter Kit Inventory | B26: 171 | E26: 0
A27: Big Planet Starter Kit Inventory | B27: 172 | E27: 0
A28: Govex Starter Kit Inventory
A29: Inventory Reserve | B29: 175 | E29: =+D29/D$96 -> 0
A30: Other Inventory (list out above if over 10% of Inventory) | B30: 160-179 | E30: =+D30/D$96 -> 0
A31: Total Inventory | D31: =SUM(D19:D30) -> 600963.345 | E31: =+D31/D$96 -> 0.4395553447
A34: Prepaid Rent | B34: 180 | D34: 34914.3 | E34: =+D34/D$96 -> 0.02553694381
A35: Prepaid Insurance | B35: 182 | D35: 2981.4 | E35: 0.002180649312
A36: Prepaid VAT | B36: 184 | E36: 0
A37: Deferred Tax Payment | B37: 185 | D37: 58317.6 | E37: 0.04265453622
A38: Cash Advances | B38: 186 | E38: 0
A39: Other Prepayments (list out above if over 10% of Prepaids) | B39: 180-199 | C39: major breakdown: | D39: 5240.517 | E39: 0.003833007912
A40: - Prepaid for certification
A41: - Prepaid local suppliers
A42: - Payrol taxes | C42: 17468.39
A43: Other Current Assets (list out above if over 10% of Prepaids) | B43: 200-215
A44: Refundable Rental Deposits - Current/Short Term | B44: 210 | E44: =+D44/D$96 -> 0
A45: Accrued Interest Income | B45: 212 | E45: =+D45/D$96 -> 0
A46: Prepaid Duty and Freight | B46: 215 | D46: 2240.373 | E46: =+D46/D$96 -> 0.001638648903
A47: Total Prepaid Assets | D47: =SUM(D34:D46) -> 103694.19 | E47: =+D47/D$96 -> 0.07584378616
A50: Int. Co. Rec. ASIA - NSE (Nu Skin Enterprises) | B50: 220 | E50: =+D50/D$96 -> 0
A51: Int. Co. Rec. ASIA - NSHK | B51: 221 | E51: 0
A52: Int. Co. Rec. ASIA - NSTW | B52: 222 | D52: 0 | E52: 0
A53: Int. Co. Rec. ASIA - NSJ | B53: 223 | D53: 0 | E53: 0
A54: Int. Co. Rec. ASIA - NS Macau | B54: 224 | E54: 0
A55: Int. Co. Rec. ASIA - NSK | B55: 225 | D55: 0 | E55: 0
A56: Int. Co. Rec. ASIA - NSTHAI | B56: 226 | D56: 0 | E56: 0
A57: Int. Co. Rec. ASIA - NSPH | B57: 227 | D57: 0 | E57: 0
A58: Int. Co. Rec. ASIA - NSPH Regional | B58: 228 | D58: 0 | E58: 0
A59: Int. Co. Rec. ASIA - NS CHINA | B59: 229 | E59: 0
A60: Int. Co. Rec. ASIA - NS CINOGEN | B60: 230 | D60: 0 | E60: 0
A61: Int. Co. Rec. ASIA - NS INDONESIA | B61: 231 | D61: 0 | E61: 0
A62: Int. Co. Rec. ASIA - NS Singapore | B62: 248 | D62: 0 | E62: 0
A63: Int. Co. Rec. ASIA - NS Malaysia | B63: 249 | D63: 0 | E63: 0
A64: Int. Co. Rec. ASIA - NS Brunie | B64: 250 | D64: 0 | E64: 0
A65: Int. Co. Rec. ASIA - NS AUS | B65: 245 | D65: 0 | E65: 0
A66: Int. Co. Rec. ASIA - NS NZ | B66: 247 | D66: 0 | E66: 0
A67: Int. Co. Rec. ACQ ENTITIES - NSIMG | B67: 285 | E67: 0
A68: Int. Co. Rec. ACQ ENTITIES - Loan to NSI | E68: 0
A69: Int. Co. Rec. ACQ ENTITIES - NSI Dist. Comm. | B69: 296 | E69: 0
A70: Int. Co. Rec. ACQ ENTITIES - NSI License Fees | B70: 297 | E70: 0
A71: Int. Co. Rec. ACQ ENTITIES - NSEP Other (list if over 10%) | B71: 298 | D71: 41366.46 | E71: 0.03025616909
A72: Int. Co. Rec. ACQ ENTITIES - NSI Other (list if over 10%) | B72: 299 | E72: 0
A73: Total Intercompany Receivable | D73: =SUM(D50:D72) -> 41366.46 | E73: 0.03025616909
A76: Related Party Receivable - Shareholders | B76: 244 | E76: =+D76/D$96 -> 0
A77: Related Party Receivable - Other (list out if over 10% of Rel Prty) | B77: 245 | E77: =+D77/D$96 -> 0
A78: Total Related Party Receivables | D78: =SUM(D76:D77) -> 0 | E78: =+D78/D$96 -> 0
A81: Fixed Assets - Furniture and Equipment | B81: 260 | D81: 21798.009 | E81: =+D81/D$96 -> 0.01594345385
A82: Fixed Assets - Leasehold Improvements | B82: 265 | D82: 8540.55 | E82: 0.006246711102
A83: Fixed Assets - Computers and Software | B83: 270 | D83: 27749.094 | E83: 0.02029618392
A84: Fixed Assets - Scanner | B84: 271 | D84: 128094.972 | E84: 0.09369095476
A85: Fixed Assets - Construction in Progress Vechicl | B85: 275 | E85: 0
A86: Accumulated Depreciation | B86: 280 | D86: -110150.652 | E86: -0.080566158
A87: Total Fixed Assets | D87: =SUM(D81:D86) -> 76031.973 | E87: 0.05561114563
A90: Asia Distribution Rights | B90: 301 | D90: 0 | E90: =+D90/D$96 -> 0
A91: Receivables from Developing Markets | B91: 302-305 | E91: =+D91/D$96 -> 0
A92: Key Money/Lease Deposits | B92: 306-309 | E92: =+D92/D$96 -> 0
A93: Other Long-term Assets (list out above if over 10% of LT assets) | B93: 310-317 | D93: 0 | E93: =+D93/D$96 -> 0
A94: Total Other Long-term Assets | D94: =SUM(D90:D93) -> 0 | E94: =+D94/D$96 -> 0
A96: Total Assets | D96: =+D11+D16+D31+D47+D73+D78+D87+D94 -> 1367207.457 | E96: =+D96/D$96 -> 1
A99: Accounts Payable - Trade | B99: 341 | E99: =+D99/D$96 -> 0
A100: Accounts Payable - NonTrade | B100: 342 | E100: =+D100/D$96 -> 0
A101: Accounts Payable - Other (list out above if over 10% of Accts Pay) | B101: 343 | E101: =+D101/D$96 -> 0
A102: Total Accounts Payable | D102: =SUM(D99:D101) -> 0 | E102: =+D102/D$96 -> 0
A105: Accrued Payroll and Taxes | B105: 350 | E105: =+D105/D$96 -> 0
A106: Accrued Bonuses | E106: 0
A107: Accrued Vacation / Sick Leave | B107: 355 | E107: 0
A108: Accrued Income Taxes | B108: 360 | E108: 0
A109: Accrued Customs Duties/Border Taxes | B109: 365 | E109: 0
A110: Accrued Property/Consumption/Withholding Taxes | B110: 370 | E110: =+D110/D$96 -> 0
A111: Deferred Director's Bonus | B111: 375 | E111: 0
A112: Reserve for Retirement Benefits | B112: 380 | E112: 0
A113: Deferred Income | B113: 385 | E113: 0
A114: Other Current Liabilities (list out above if over 10% of Accd Liab) | B114: 390 | C114: major breakdown : | E114: =+D114/D$96 -> 0
E115: 0
E116: 0
E117: 0
A118: Short-term Line of Credit - Bank Loan | B118: 395 | E118: 0
A119: Reserve for Sales Returns | B119: 395 | E119: 0
A120: Reserve for Lost or damaged Scanners | B120: 395 | E120: 0
A121: Other Reserves: (please list each and describe) | E121: 0
A122: Accrued Commissions - Comp Plan | B122: 470 | E122: 0
A123: Accrued Commissions - GRP | B123: 470 | E123: 0
A124: Accrued Commissions - Local | B124: 470 | D124: 58838.673 | E124: 0.04303565834
A125: Advances Received from Distributors | B125: 480 | D125: 23519.469 | E125: 0.0172025605
A126: Total Accrued Liabilities | D126: =SUM(D105:D125) -> 82358.142 | E126: 0.06023821884
A129: Int. Co. Pay. ASIA - NSE (Nu Skin Enterprises) | B129: 400 | E129: =+D129/D$96 -> 0
A130: Int. Co. Pay. ASIA - NSHK | B130: 401 | E130: 0
A131: Int. Co. Pay. ASIA - NSK | D131: 0 | E131: 0
A132: Int. Co. Pay. ASIA - NSTHAI | D132: 0 | E132: 0
A133: Int. Co.Pay. ASIA - NS Singapore | E133: 0
A134: Int. Co. Pay. ASIA - NS Malaysia | E134: 0
A135: Int. Co. Pay. ASIA - NS PH | E135: 0
A136: Int. Co. Pay. ASIA - NS NZ | E136: 0
A137: Int. Co. Pay. ASIA - NSTW | E137: 0
A138: Int. Co. Pay. ASIA - NS AU | B138: 319 | E138: 0
A139: Int. Co. Pay. ASIA - NSJ | E139: 0
A140: Intercompany Loan Payable - NSJ | B140: 420 | E140: 0
A141: Intercompany Loan Payable - NS Korea | B141: 421 | E141: 0
A142: Int. Co. Pay. Russia - NSI (IC Debit Notes) | E142: 0
A143: Intercompany Loan - Interest Payable - NSI | B143: 426 | E143: 0
A144: Dividends Payable - NSE Group | B144: 430 | E144: 0
A145: Int. Co. Pay. ACQ ENTITIES - NSIMG | B145: 435 | D145: 95099.763 | E145: 0.06955766845
A146: Int. Co. Pay. ACQ ENTITIES - NSI Dist. Comm. | B146: 446 | E146: 0
A147: Int. Co. Pay. ACQ ENTITIES - NSI License Fees | B147: 447 | E147: 0
A148: Int. Co. Pay. ACQ ENTITIES - NSEP Royalties (NSI as at Dec 04) | B148: 448 | E148: 0
A149: Int. Co. Pay. ASIA - NSEP INC Purchase | B149: 448 | D149: 1086151.692 | E149: 0.794430784
A150: Int. Co. Pay. ACQ ENTITIES - NSEP Other (list if over 10%) | B150: 449 | E150: 0
A151: Total Intercompany Payable | D151: =SUM(D129:D150) -> 1181251.455 | E151: 0.8639884525
A154: Related Party Payable - Shareholders | B154: 454 | E154: =+D154/D$96 -> 0
A155: Related Party Payable - Other (list out above if over 10% of Rel Prty) | B155: 455 | E155: =+D155/D$96 -> 0
A156: Total Related Party Payables | D156: =SUM(D154:D155) -> 0 | E156: =+D156/D$96 -> 0
A159: Long-term Line of Credit - Bank Loan | B159: 490 | E159: =+D159/D$96 -> 0
A160: Other long-term Liabilities (list out above if over 10% of other LT liab) | B160: 491 | E160: =+D160/D$96 -> 0
A161: Total Other Long-term Liabilities | D161: =SUM(D159:D160) -> 0 | E161: =+D161/D$96 -> 0
A164: Capital Stock | B164: 500 | D164: 19533 | E164: =+D164/D$96 -> 0.01428678574
A166: Additional Paid-in Capital/Amount due from HO | B166: 520 | E166: =+D166/D$96 -> 0
A168: Retained Earnings | B168: 530 | D168: 161803.764 | E168: =+D168/D$96 -> 0.1183461684
A169: Current Earnings | B169: 540 | D169: -77739 | E169: -0.05685969573
A170: Translation Adjustment | B170: 550 | E170: 0
A171: Dividends | B171: 560 | E171: 0
A172: Legal Reserve | B172: 570 | E172: 0
A173: Other (list out above if over 10% of retained earnings) | B173: 571-599 | E173: 0
A174: Total Retained Earnings | D174: =SUM(D168:D173) -> 84064.764 | E174: 0.06148647271
A176: Total Liabilities and Equity | D176: =+D102+D126+D151+D156+D161+D164+D166+D174 -> 1367207.361 | E176: =+D176/D$96 -> 0.9999999298
D178: =+D96-D176 -> 0.09599996684 | E178: 7.021609361e-08

Sheet Inc Stmt (hidden)
A1: ='Bal Sheet'!A1 -> Tahiti | L1: Exchange Rate | X1: A2
A2: INCOME STATEMENT | M2: 7.993 | R2: M-1s | Z2: M-1s
A3: ='Bal Sheet'!A3 -> 12/31/2010 | C3: LC BALANCE | F3: GAAP Adjustments | I3: Adj LC BALANCE | M3: US$ BALANCE | O3: Home Office | S3: Debits | U3: Credits | W3: COMBINED US$ BALANCE | AA3: Debits | AC3: Credits | AE3: TAXABLE INCOME
A4: SALES REVENUE
B5: Total Rev (excluding returns) | D5: ='IS Detail'!E6+'IS Detail'!E28+'IS Detail'!E38+'IS Detail'!E47 -> 8924612 | J5: =D5+G5 -> 8924612 | M5: =ROUND(J5/$M$2,0) -> 1116553 | X5: =M5+P5-U5 -> 1116553 | AE5: =X5+AC5-AA5 -> 1116553
B6: Deferred Revenue | D6: 0 | J6: =D6+G6 -> 0 | M6: =ROUND(J6/$M$2,0) -> 0 | X6: =M6+P6-U6 -> 0
B7: Sales Returns | D7: ='IS Detail'!E13+'IS Detail'!E19 -> -1194896 | J7: =D7+G7 -> -1194896 | M7: =J7/$M$2 -> -149492.8062 | X7: =M7+P7-U7 -> -149492.8062 | AE7: =X7+AC7-AA7 -> -149492.8062
A8: TOTAL SALES REVENUE | D8: =SUM(D5:D7) -> 7729716 | J8: =SUM(J5:J7) -> 7729716 | M8: =SUM(M5:M7) -> 967060.1938 | P8: =SUM(P5:P7) -> 0 | X8: =SUM(X5:X7) -> 967060.1938 | AE8: =SUM(AE5:AE7) -> 967060.1938
A10: COST OF SALES
B11: Cost of Goods Sold | D11: ='IS Detail'!E69+'IS Detail'!E76+'IS Detail'!E83+'IS Detail'!E88+'IS Detail'!E105 -> 3108926 | J11: =D11+G11 -> 3108926 | M11: =ROUND(J11/$M$2,0) -> 388956 | P11: 0 | X11: =M11+P11-U11 -> 388956 | AE11: =+X11+AA11-AC11 -> 388956
B12: Section 263A | D12: 0 | J12: =D12+G12 -> 0 | M12: 0 | P12: 0 | S12: =AJEs!K15 -> 0 | U12: =AJEs!M20 -> 0 | X12: =M12+P12-U12 -> 0 | AE12: =+X12+AA12-AC12 -> 0
A13: TOTAL COST OF SALES | D13: =SUM(D11:D12) -> 3108926 | J13: =SUM(J11:J12) -> 3108926 | M13: =SUM(M11:M12) -> 388956 | X13: =+M13+P13 -> 388956 | AE13: =SUM(AE11:AE12) -> 388956
A15: GROSS MARGIN | D15: =D8-D13 -> 4620790 | J15: =J8-J13 -> 4620790 | M15: =M8-M13 -> 578104.1938 | P15: =P8-P13 -> 0 | X15: =+M15+P15 -> 578104.1938 | AE15: =AE8-AE13 -> 578104.1938
A17: OPERATING EXPENSES
B18: Distributor Commissions | D18: ='IS Detail'!E121+'IS Detail'!E123+'IS Detail'!E124+'IS Detail'!E125+'IS Detail'!E126 -> 1605620 | J18: =D18+G18 -> 1605620 | M18: =ROUND(J18/$M$2,0) -> 200878 | X18: =M18+S18-U18 -> 200878 | AE18: =+X18+AA18-AC18 -> 200878
B19: Taxes - W/H Commissions | D19: ='IS Detail'!E122 -> 0 | J19: =D19+G19 -> 0 | M19: =J19/$M$2 -> 0 | X19: =M19+P19-U19 -> 0 | AE19: =+X19+AA19-AC19 -> 0
B20: Employee Benefits | D20: 0 | J20: 0 | M20: 0 | X20: 0 | AE20: 0
B21: Employee Retirement Plan | D21: 0 | J21: 0 | M21: 0 | X21: 0 | AE21: 0
B22: Employee Medical Benefits | D22: 0 | J22: 0 | M22: 0 | X22: 0 | AE22: 0
B23: Insurance - Health | D23: ='IS Detail'!E139 -> 14612 | J23: 14612 | M23: 1828.099587 | X23: 1828.099587 | AE23: 1828.099587
B24: Insurance - Life | D24: 0 | J24: 0 | M24: 0 | X24: 0 | AE24: 0
B25: Temporary Employees | D25: 0 | J25: 0 | M25: 0 | X25: 0 | AE25: 0
B26: Employee Training | D26: 0 | J26: 0 | M26: 0 | X26: 0 | AE26: 0
B27: Employee Stock Awards | D27: 0 | J27: 0 | M27: 0 | X27: 0 | AE27: 0
B28: Employee Stock Options | D28: 0 | J28: 0 | M28: 0 | X28: 0 | AE28: 0
B29: Non Qualified Stock Options | D29: 0 | J29: 0 | M29: 0 | X29: 0 | AE29: 0
B30: Salaries & Wages | D30: ='IS Detail'!E144+'IS Detail'!E145 -> 738928 | J30: 738928 | M30: 92446.89103 | X30: 92446.89103 | AE30: 92446.89103
B31: Salaries & Wages Exec. | D31: 0 | J31: 0 | M31: 0 | X31: 0 | AE31: 0
B32: Deferred Compensation Exp | D32: 0 | J32: 0 | M32: 0 | X32: 0 | AE32: 0
B33: Recruitment | D33: ='IS Detail'!E147 -> 49163 | J33: 49163 | M33: 6150.756912 | X33: 6150.756912 | AE33: 6150.756912
B34: Employee Relocation | D34: ='IS Detail'!E148 -> 0 | J34: 0 | M34: 0 | X34: 0 | AE34: 0
B35: Cafeteria Expense | D35: 0 | J35: 0 | M35: 0 | X35: 0 | AE35: 0
B36: Compensation Reimbursement | D36: 0 | J36: 0 | M36: 0 | X36: 0 | AE36: 0
B37: Taxes - Payroll | D37: ='IS Detail'!E149 -> 264203 | J37: 264203 | M37: 33054.29751 | X37: 33054.29751 | AE37: 33054.29751
B38: Repairs & Maintenance | D38: ='IS Detail'!E154 -> 0 | J38: 0 | M38: 0 | X38: 0 | AE38: 0
B39: Maintenance Contracts | D39: ='IS Detail'!E155 -> 0 | J39: 0 | M39: 0 | X39: 0 | AE39: 0
B40: Depreciation | D40: ='IS Detail'!E156+'IS Detail'!E157 -> 118663 | J40: 118663 | M40: 14845.86513 | T40: AJE1 | U40: =AJEs!K10 -> 1001.015132 | X40: 13844.85 | AE40: 13844.85
B41: Amortization | D41: ='IS Detail'!E158 -> 0 | J41: 0 | M41: =J41/$M$2 -> 0 | X41: 0 | AE41: 0
B42: Amort. (CY Acquisition / Re-org, Other) | D42: 0 | J42: 0 | M42: 0 | X42: 0 | AE42: 0
B43: Amort. (Impairment / Goodwill) | D43: 0 | J43: 0 | M43: 0 | X43: 0 | AE43: 0
B44: Amort. (Acquisition, Re-org, Start-up) | D44: 0 | J44: 0 | M44: 0 | X44: 0 | AE44: 0
B45: Insurance General | D45: ='IS Detail'!E159 -> 1206 | J45: 1206 | M45: 150.8820218 | X45: 150.8820218 | AE45: 150.8820218
B46: Equipment Rental | D46: 0 | J46: 0 | M46: 0 | X46: 0 | AE46: 0
B47: Laundry & Cleaning | D47: ='IS Detail'!E161 -> 20927 | J47: 20927 | M47: 2618.165895 | X47: 2618.165895 | AE47: 2618.165895
B48: Office Supplies | D48: ='IS Detail'!E162 -> 54194 | J48: 54194 | M48: 6780.18266 | X48: 6780.18266 | AE48: 6780.18266
B49: Postage & Mail | D49: ='IS Detail'!E163 -> 0 | J49: 0 | M49: 0 | X49: 0 | AE49: 0
B50: Rent - Buildings & Warehouses | D50: ='IS Detail'!E164 -> 624460 | J50: 624460 | M50: 78125.86013 | X50: 78125.86013 | AE50: 78125.86013
B51: Utilities | D51: ='IS Detail'!E165 -> 53066 | J51: 53066 | M51: =J51/$M$2 -> 6639.059177 | X51: 6639.059177 | AE51: 6639.059177
B52: Telephone & Telegraph | D52: ='IS Detail'!E166 -> 135428 | J52: 135428 | M52: 16943.32541 | X52: 16943.32541 | AE52: 16943.32541
B53: Security Services | D53: ='IS Detail'!E167 -> 11250 | J53: 11250 | M53: 1407.481546 | X53: 1407.481546 | AE53: 1407.481546
B54: Taxes - Property | D54: 0 | J54: 0 | M54: 0 | X54: 0 | AE54: 0 | AF54: =SUM(X20:X54) -> 259989.8519
B55: Office Relocation | D55: 0 | J55: 0 | M55: 0 | X55: 0 | AE55: 0
B56: License Fees | D56: 0 | J56: 0 | M56: 0 | X56: 0 | AE56: 0
B57: Taxes - W/H License Fees | D57: 0 | J57: 0 | M57: 0 | X57: 0 | AE57: 0
B58: Merch Discount & Bank Charges | D58: ='IS Detail'!E172 -> 118993 | J58: 118993 | M58: 14887.15126 | X58: 14887.15126 | AE58: =+X58+AA59-AC58 -> 14887.15126
B59: Management Fees | D59: ='IS Detail'!E179 -> 8256 | J59: 8256 | M59: =ROUND(J59/$M$2,0) -> 1033 | X59: 1033 | AE59: =+X59+AA60-AC59 -> 1033 | AF59: =SUM(X59:X60) -> 1033
B60: Direct Service Fee | D60: 0 | J60: 0 | M60: 0 | X60: 0 | AE60: 0
B61: Expatriate Relocation | D61: 0 | J61: 0 | M61: 0 | X61: 0 | AE61: 0
B62: Expatriate - General | D62: 0 | J62: 0 | M62: 0 | X62: 0 | AE62: 0
B63: Allocated Overhead | D63: ='IS Detail'!E183 -> 0 | J63: 0 | M63: 0 | X63: 0 | AE63: 0
B64: Advertising & Promotions | D64: ='IS Detail'!E187+'IS Detail'!E188 -> 0 | J64: 0 | M64: 0 | X64: 0 | AE64: 0 | AF64: =SUM(X64:X75) -> 59363.72163
B65: Bad Debt Expense | D65: ='IS Detail'!E189 -> 0 | J65: 0 | M65: 0 | X65: 0 | AE65: 0
B66: Promotion - No Charge Product | D66: ='IS Detail'!E190 -> 19843 | J66: 19843 | M66: 2483 | X66: 2483 | AE66: 2483
B67: Distributor Awards | D67: 0 | J67: 0 | M67: 0 | X67: 0 | AE67: 0
B68: Distributor Incentives | D68: 0 | J68: 0 | M68: 0 | X68: 0 | AE68: 0
B69: Distributor Medical Reimburse | D69: ='IS Detail'!E191 -> 0 | J69: 0 | M69: 0 | X69: 0 | AE69: 0
B70: Donations | D70: ='IS Detail'!E192 -> 0 | J70: 0 | M70: 0 | X70: 0 | AE70: 0
B71: Dues & Memberships | D71: ='IS Detail'!E193 -> 80130 | J71: 80130 | M71: 10025 | X71: 10025 | AE71: 10025
B72: Subscriptions | D72: ='IS Detail'!E194 -> 0 | J72: 0 | M72: 0 | X72: 0 | AE72: 0
B73: Printing Services | D73: ='IS Detail'!E195 -> 54550 | J73: 54550 | M73: =J73/$M$2 -> 6824.721631 | X73: 6824.721631 | AE73: 6824.721631
B74: Material Fee | D74: ='IS Detail'!E196 -> 0 | J74: 0 | M74: 0 | X74: =M74+P74-U74 -> 0 | AE74: =+X74+AA74-AC74 -> 0
B75: Distributor Training & Seminar | D75: ='IS Detail'!E197 -> 319965 | J75: 319965 | M75: 40031 | X75: 40031 | AE75: 40031
B76: Convention Expenses | D76: 0 | J76: 0 | M76: 0 | X76: 0 | AE76: 0
B77: Film Projects | D77: 0 | J77: 0 | M77: 0 | X77: 0 | AE77: 0
B78: Seminar Income | J78: 0 | M78: =J78/$M$2 -> 0 | X78: 0 | AE78: 0
B79: Legal Service | D79: ='IS Detail'!E202 -> 16327 | J79: 16327 | M79: 2042.66233 | X79: 2042.66233 | AE79: 2042.66233 | AF79: =SUM(X79:X81) -> 2204.679094
B80: Accounting Service | D80: ='IS Detail'!E204 -> 0 | J80: 0 | M80: 0 | X80: 0 | AE80: 0
B81: Professional Consulting | D81: ='IS Detail'!E205 -> 1295 | J81: 1295 | M81: 162.0167647 | X81: 162.0167647 | AE81: 162.0167647
B82: Travel | D82: ='IS Detail'!E209 -> 47260 | J82: 47260 | M82: 5912.673589 | X82: 5912.673589 | AE82: 5912.673589 | AF82: =SUM(X82:X83) -> 5912.673589
B83: Meals & Entertainment | D83: 0 | J83: 0 | M83: 0 | X83: 0 | AE83: 0
B84: Non-Deductible Entertainment | D84: 0 | J84: 0 | M84: 0 | X84: 0 | AE84: 0
B85: Non-Deductible Fines / Penalties | D85: 0 | J85: 0 | M85: 0 | X85: 0 | AE85: 0
B86: Automobile & Truck | D86: ='IS Detail'!E215 -> 0 | J86: 0 | M86: 0 | X86: 0 | AE86: 0 | AF86: =SUM(X86:X90) -> 1148
B87: Computer Programming | D87: ='IS Detail'!E216 -> 0 | J87: 0 | M87: 0 | X87: 0 | AE87: 0
B88: Licenses & Permits | D88: ='IS Detail'!E217 -> 9176 | J88: 9176 | M88: 1148 | X88: 1148 | AE88: 1148
B89: Insurance - Product Liability | D89: ='IS Detail'!E218 -> 0 | J89: 0 | M89: 0 | X89: 0 | AE89: 0
B90: Research & Development | D90: ='IS Detail'!E219 -> 0 | J90: =D90+G90 -> 0 | M90: 0 | X90: =M90+P90-U90 -> 0 | AE90: =+X90+AA90-AC90 -> 0
B91: Adj for License, Royalty, & Com | J91: 0 | M91: 0 | X91: 0 | AE91: 0
B92: Miscellaneous Expense | D92: ='IS Detail'!E220 -> 0 | J92: 0 | M92: 0 | X92: 0 | AE92: 0
B93: Taxes - Sales & Use | D93: ='IS Detail'!E223 -> 0 | J93: 0 | M93: 0 | X93: 0 | AE93: 0
B94: Taxes - Other | D94: ='IS Detail'!E224 -> 107610 | J94: 107610 | M94: 13463 | X94: 13463 | AE94: 13463
B95: State Tax Expense/(Refund) | D95: 0 | J95: =D95+G95 -> 0 | M95: =ROUND(J95/$M$2,0) -> 0 | X95: =M95+P95-U95 -> 0
B96: Distributor Stock Option Expense | D96: 0 | J96: 0 | M96: 0 | X96: 0 | AE96: 0
B97: Commissionaire Commissions | D97: 0 | J97: =D97+G97 -> 0 | M97: =ROUND(J97/$M$2,0) -> 0 | X97: =M97+P97-U97 -> 0 | AE97: =+X97+AA97-AC97 -> 0
B98: 0 | D98: 0 | J98: =D98+G98 -> 0 | M98: =ROUND(J98/$M$2,0) -> 0 | X98: =M98+P98-U98 -> 0 | AE98: =+X98+AA98-AC98 -> 0
B99: 0 | D99: 0 | J99: =D99+G99 -> 0 | M99: =ROUND(J99/$M$2,0) -> 0 | X99: =M99+P99-U99 -> 0 | AE99: =+X99+AA99-AC99 -> 0
B100: 0 | D100: 0 | J100: =D100+G100 -> 0 | M100: =ROUND(J100/$M$2,0) -> 0 | X100: =M100+P100-U100 -> 0 | AE100: =+X100+AA100-AC100 -> 0
B101: 0 | D101: 0 | J101: =D101+G101 -> 0 | M101: =ROUND(J101/$M$2,0) -> 0 | X101: =M101+P101-U101 -> 0 | AE101: =+X101+AA101-AC101 -> 0
B102: 0 | D102: 0 | J102: 0 | M102: 0 | X102: 0 | AE102: 0
AE103: 0
AE104: 0
A105: TOTAL OPERATING EXPENSES | D105: =SUM(D18:D104) -> 4475125 | J105: =SUM(J18:J104) -> 4475125 | M105: =SUM(M18:M104) -> 559881.0926 | P105: =SUM(P18:P104) -> 0 | X105: =SUM(X18:X104) -> 558880.0774 | AE105: =SUM(AE18:AE104) -> 558880.0774
A107: OTHER INCOME
B108: Employee Service Inc | D108: 0 | J108: =D108+G108 -> 0 | M108: =ROUND(J108/$M$2,0) -> 0 | X108: =M108-S108+U108 -> 0 | AE108: =+X108-AA108+AC108 -> 0
B109: Rental Income | D109: 0 | J109: =D109+G109 -> 0 | M109: 0 | X109: 0 | AE109: 0
B110: Miscellaneous Income | D110: ='IS Detail'!E233 -> 0 | G110: =G163 -> -377542.116 | J110: =D110+G110 -> -377542.116 | M110: =ROUND(J110/$M$2,0) -> -47234 | X110: -47234 | AE110: -47234
B111: Cash Over & Short | D111: 0 | J111: =D111+G111 -> 0 | M111: 0 | X111: 0 | AE111: 0
B112: Inter-company net sales (not NSI/NSEP) | D112: 0 | J112: 0 | M112: 0 | X112: 0 | AE112: 0
B113: Intercompany Interest Income | D113: 0 | J113: 0 | M113: 0 | X113: 0 | AE113: 0
B114: Interest Income | D114: ='IS Detail'!E236 -> 0 | J114: 0 | M114: 0 | X114: 0 | AE114: 0
B115: Interest Expense | D115: 0 | G115: =-G116 -> -16172 | J115: -16172 | M115: -2023 | X115: -2023 | AE115: -2023
B116: Intercompany Interest Expense | D116: =-'IS Detail'!E238 -> -16172 | G116: =-D116 -> 16172 | J116: 0 | M116: =J116/$M$2 -> 0 | X116: 0 | AE116: 0
B117: Dividend Income | D117: ='IS Detail'!E240 -> 0 | J117: 0 | M117: 0 | X117: 0 | AE117: 0
B118: Div Inc.(Gross Foreign Dist Previously Taxed) | D118: 0 | J118: 0 | M118: 0 | X118: 0 | AE118: 0
B119: Div Inc. (956, Other div from for. Corp) | D119: 0 | J119: 0 | M119: 0 | X119: 0 | AE119: 0
B120: Div Inc. (Section 78 gross-up) | D120: 0 | J120: 0 | M120: 0 | X120: 0 | AE120: 0
B121: Div Inc. (Foreign subj 100% ded) | D121: 0 | J121: 0 | M121: 0 | X121: 0 | AE121: 0
B122: Div Inc. (Inc from CFC - subpart F) | D122: 0 | J122: 0 | M122: 0 | X122: 0 | AE122: 0
B123: Hedging Transactions | D123: 0 | J123: 0 | M123: 0 | X123: 0 | AE123: 0
B124: Mark-to-Market Income / Loss | D124: 0 | J124: 0 | M124: 0 | X124: 0 | AE124: 0
B125: Gain/(Loss) - Sale of Assets | D125: 0 | J125: 0 | M125: 0 | R125: AJE 8 | S125: =AJEs!K55 -> 0 | X125: =M125-S125+U125 -> 0 | AE125: 0
B126: Capital Gain account | D126: 0 | J126: 0 | M126: 0 | X126: =M126-S126+U126 -> 0 | AE126: 0
B127: Capital Loss account | D127: 0 | J127: 0 | M127: 0 | X127: 0 | AE127: 0
B128: Net Ordinary 4797 account | D128: 0 | J128: 0 | M128: 0 | X128: 0 | AE128: 0
B129: Abandonment Losses account | D129: 0 | J129: 0 | M129: 0 | X129: 0 | AE129: 0
B130: Other Gain/Loss from assets acct. | D130: 0 | J130: 0 | M130: 0 | X130: 0 | AE130: 0
B131: Gain/(Loss) - Sale of Securities | D131: 0 | J131: 0 | M131: 0 | X131: 0 | AE131: 0
B132: For Currency G/(L) - Realized | D132: ='IS Detail'!E244 -> 0 | J132: 0 | M132: 0 | X132: 0 | AE132: 0
B133: For Currency G/(L) - Unrealized | D133: =-'IS Detail'!E245 -> -29467 | J133: -29467 | M133: -3686.600776 | X133: -3686.600776 | AE133: -3686.600776
B134: Capital Gain/(Loss) | D134: 0 | J134: 0 | M134: 0 | X134: 0 | AE134: 0
B135: Tax-Exempt Interest Income | D135: 0 | J135: 0 | M135: 0 | X135: 0 | AE135: 0
B136: §987 Gain/(Loss) | D136: 0 | J136: 0 | M136: 0 | X136: 0 | AE136: 0
B137: §367 Gain/(Loss) | D137: 0 | J137: 0 | M137: 0 | X137: 0 | AE137: 0
B138: Income - Dist Stock Op Reimb | D138: 0 | J138: 0 | M138: 0 | X138: 0 | AE138: 0
B139: Forgiveness of Debt | D139: 0 | J139: 0 | M139: 0 | X139: 0 | AE139: 0
B140: Management Fee Income | D140: 0 | J140: 0 | M140: 0 | X140: 0 | AE140: 0
B141: Dual Consolidated Loss Recapture | D141: 0 | J141: 0 | M141: 0 | X141: 0
B142: Dual Consolidated Loss Limitation | D142: 0 | J142: 0 | M142: 0 | X142: 0 | AE142: =+X142-AA142+AC142 -> 0
B143: Exchange G/L on Distribution of PTI-5471 | D143: 0 | J143: 0 | M143: 0 | X143: =M143+P143-U143 -> 0
B144: 0 | D144: 0 | J144: 0 | M144: 0 | X144: 0
B145: 0 | D145: 0 | J145: 0 | M145: 0 | X145: 0
B146: 0 | D146: 0 | J146: 0 | M146: 0 | X146: 0
B147: 0 | D147: 0 | J147: 0 | M147: 0 | X147: 0
B148: 0 | D148: 0 | J148: 0 | M148: 0 | X148: 0 | AE148: 0
A150: TOTAL OTHER INCOME | D150: =SUM(D108:D149) -> -45639 | J150: =SUM(J108:J149) -> -423181.116 | M150: =SUM(M110:M149) -> -52943.60078 | P150: =SUM(P110:P149) -> 0 | X150: =SUM(X110:X149) -> -52943.60078 | AE150: =SUM(AE110:AE149) -> -52943.60078
A152: INCOME BEFORE TAXES | D152: =D15-D105+D150 -> 100026 | J152: =J15-J105+J150 -> -277516.116 | M152: =M15-M105+M150 -> -34720.49956 | P152: =P15-P105+P150 -> 0 | X152: =X15-X105+X150 -> -33719.48443 | AE152: =AE15-AE105+AE150 -> -33719.48443
B153: Minority Interest | D153: 0 | J153: =D153+G153 -> 0 | M153: =J153/$M$2 -> 0 | X153: =+M153+P153 -> 0 | AE153: =+X153+AA153-AC153 -> 0
B154: Income Tax Provision (US) | J154: =D154+G154 -> 0 | M154: =J154/$M$2 -> 0 | X154: =+M154+P154 -> 0 | AE154: =+X154+AA154-AC154 -> 0
B155: Income Tax Provision (Foreign FTC) | D155: ='IS Detail'!E251 -> 359156 | J155: =D155+G155 -> 359156 | M155: =J155/$M$2 -> 44933.81709 | T155: AJE 6 | U155: =AJEs!K43 -> 17864.88177 | X155: =M155+S155-U155 -> 27068.93532
B156: Income Tax Provision (Foreign Deferred) | D156: 0
B157: Foreign Withholding Tax
A158: NET INCOME AFTER TAX | D158: =D152-SUM(D153:D157) -> -259130 | I158: B5, B12 | J158: =J152-SUM(J153:J157) -> -636672.116 | M158: =M152-SUM(M153:M157) -> -79654.31665 | P158: =P152-SUM(P153:P157) -> 0 | X158: =X152-SUM(X153:X157) -> -60788.41975 | AE158: =+AE152-AE153 -> -33719.48443
B159: 1999 FTC | D159: =+D158-'IS Detail'!E255 -> 0
A160: TAXABLE INCOME LESS FTC | X160: =X158+X92 -> -60788.41975 | AE160: =+AE158+AE159 -> -33719.48443
D161: End R/E 2009 | G161: 539345.88
D162: Beg R/E 2010 | G162: ='Bal Sheet'!E102 -> 161803.764
G163: =G162-G161 -> -377542.116 | H163: Difference

Sheet IS Detail (hidden)
A1: Nu Skin Enterprises Tahiti
A2: Income Statement | E2: 2010 | F2: As a % | G2: 2009 | H2: As a % | I2: Local
A3: For the year ended Dec 31, 2010 | E3: Local | F3: of Total | G3: Local | H3: of Total | I3: Currency | J3: %
E4: Currency | F4: Revenue | G4: Currency | H4: Revenue | I4: Variance | J4: Variance
A5: Revenue:
B6: Product Revenue | D6: 600 | E6: 8785228 | F6: 1.136552494 | G6: 10735436 | H6: 1.077873505 | I6: -1950208 | J6: -0.1816608101
A7: 601 | B7: NS | C7: Nu Skin Product Sales | D7: 600 | E7: 8785228 | F7: 1.136552494 | G7: 10735436 | H7: 1.077873505 | I7: -1950208 | J7: -0.1816608101
A8: 619 | B8: PX | C8: Pharmanex - Product | D8: 600 | F8: 0 | H8: 0 | I8: 0 | J8: -
A9: 602 | B9: PX | C9: NTC Revenue | D9: 600 | F9: 0 | H9: 0 | I9: 0 | J9: -
A10: 621 | B10: BP | C10: Big Planet Product Sales | D10: 600 | F10: 0 | H10: 0 | I10: 0 | J10: -
B13: Sales Returns | D13: 604 | E13: -26601 | F13: -0.003441394225 | G13: -24148.3 | H13: -0.002424569693 | I13: -2452.7 | J13: 0.1015682263
A14: 661 | B14: NS | C14: Sales Returns - Nu Skin Products | D14: 604 | E14: -26601 | F14: -0.003441394225 | G14: -24148.3 | H14: -0.002424569693 | I14: -2452.7 | J14: 0.1015682263
A15: 679 | B15: PX | C15: Sales Returns - Pharmanex Product | D15: 604 | F15: 0 | H15: 0 | I15: 0 | J15: -
A16: 681 | B16: BP | C16: Sales Returns - Big Planet Products | F16: 0 | H16: 0 | I16: 0 | J16: -
B19: Sales Promotions/Discounts - Product Revenue | D19: 607 | E19: -1168295 | F19: -0.1511433279 | G19: -921534.24 | H19: -0.09252510484 | I19: -246760.76 | J19: 0.2677716674
A20: 650 | B20: NS | C20: Sales Promotions/Discounts - Nu Skin Products | D20: 607 | E20: -1168295 | F20: -0.1511433279 | G20: -921534.24 | H20: -0.09252510484 | I20: -246760.76 | J20: 0.2677716674
A21: 651 | B21: NS | C21: ADP/ARO Discounts - Nu Skin Products | D21: 607 | F21: 0 | H21: 0 | I21: 0 | J21: -
A22: 655 | B22: PX | C22: Sales Promotions/Discounts - Pharmanex Product | D22: 607 | F22: 0 | H22: 0 | I22: 0 | J22: -
A23: 656 | B23: PX | C23: ADP/ARO Discounts - Pharmanex Products | D23: 607 | F23: 0 | H23: 0 | I23: 0 | J23: -
A24: 652 | B24: BP | C24: Sales Promotions/Discounts - Big Planet Products | D24: 607 | F24: 0 | H24: 0 | I24: 0 | J24: -
A25: 653 | B25: BP | C25: ADP/ARO Discounts - Big Planet Products | D25: 607 | F25: 0 | H25: 0 | I25: 0 | J25: -
B28: Sales Aids Revenue | D28: 610 | E28: 69973 | F28: 0.009052467128 | G28: 101932.9 | H28: 0.01023440242 | I28: -31959.9 | J28: -0.3135386122
A29: 604 | B29: NS | C29: Nu Skin - Sales Aids | D29: 610 | E29: 33098 | F29: 0.004281916697 | G29: 64433.29 | H29: 0.006469316769 | I29: -31335.29 | J29: -0.4863214342
A30: 612 | B30: PX | C30: Scanner Lease Revenue | D30: 610 | E30: 36875 | F30: 0.004770550432 | G30: 37499.61 | H30: 0.003765085654 | I30: -624.61 | J30: -0.01665643989
A31: 620 | B31: PX | C31: Pharmanex - Sales Aids | D31: 610 | F31: 0 | H31: 0 | I31: 0 | J31: -
A32: 622 | B32: BP | C32: Big Planet - Sales Aids | D32: 610 | F32: 0 | H32: 0 | I32: 0 | J32: -
A33: 664 | B33: NS | C33: Sales Returns - Nu Skin Sales Aids | D33: 610 | F33: 0 | H33: 0 | I33: 0 | J33: -
A34: 680 | B34: PX | C34: Sales Returns - Pharamanex Slaes Aids | D34: 610 | F34: 0 | H34: 0 | I34: 0 | J34: -
A35: 682 | B35: BP | C35: Sales Returns - Big Planet Sales Aids | D35: 610 | F35: 0 | H35: 0 | I35: 0 | J35: -
B38: Starter Kit Revenue | D38: 620 | E38: 582 | F38: 7.529384003e-05 | G38: 583.54 | H38: 5.85893582e-05 | I38: -1.54 | J38: -0.002639065017
A39: 605 | B39: NS | C39: Nu Skin - Starter Kits & Intro Packets | D39: 620 | E39: 582 | F39: 7.529384003e-05 | G39: 583.54 | H39: 5.85893582e-05 | I39: -1.54 | J39: -0.002639065017
A40: 617 | B40: PX | C40: Pharmanex - Starter Kits & Intro Packets | D40: 620 | F40: 0 | H40: 0 | I40: 0 | J40: -
A41: 636 | B41: NS | C41: Introductory Packet Sales | D41: 620 | F41: 0 | H41: 0 | I41: 0 | J41: -
A42: 640 | B42: NS | C42: Materials Fees | D42: 620 | F42: 0 | H42: 0 | I42: 0 | J42: -
A43: 665 | B43: NS | C43: Sales Returns - Nu Skin Starter Kits | D43: 620 | F43: 0 | H43: 0 | I43: 0 | J43: -
A44: 677 | B44: PX | C44: Sales Returns - PX Starter Kits | D44: 620 | F44: 0 | H44: 0 | I44: 0 | J44: -
B47: Other Revenue | D47: 640 | E47: 68829 | F47: 0.008904466865 | G47: 67559.29 | H47: 0.006783177574 | I47: 1269.71 | J47: 0.01879401042
A48: 635 | B48: SS | C48: Consigned Inventory Sales | D48: 630 | F48: 0 | H48: 0 | I48: 0 | J48: -
A49: 606 | B49: SS | C49: VIP Income | D49: 640 | F49: 0 | H49: 0 | I49: 0 | J49: -
A50: 641 | B50: SS | C50: Amended Agreements | D50: 640 | F50: 0 | H50: 0 | I50: 0 | J50: -
A51: 642 | B51: SS | C51: Handling Fees | D51: 640 | E51: 68829 | F51: 0.008904466865 | G51: 67559.29 | H51: 0.006783177574 | I51: 1269.71 | J51: 0.01879401042
A52: 643 | B52: SS | C52: Genealogy Report Fees | D52: 640 | F52: 0 | H52: 0 | I52: 0 | J52: -
A53: 644 | B53: SS | C53: Retail Advantage Fees | D53: 640 | F53: 0 | H53: 0 | I53: 0 | J53: -
A54: 646 | B54: SS | C54: Media Duplication Income | D54: 640 | F54: 0 | H54: 0 | I54: 0 | J54: -
A55: 649 | B55: SS | C55: Magazine Subscriptions | D55: 640 | F55: 0 | H55: 0 | I55: 0 | J55: -
A56: 660 | B56: SS | C56: Credit Card Charge Backs | D56: 640 | F56: 0 | H56: 0 | I56: 0 | J56: -
A57: 684 | B57: SS | C57: Service Charges - Business Center | D57: 640 | F57: 0 | H57: 0 | I57: 0 | J57: -
A58: 685 | B58: SS | C58: Copying and Fax Charges - Business Center | D58: 640 | F58: 0 | H58: 0 | I58: 0 | J58: -
A59: 686 | B59: SS | C59: Sundry Charges - Business Center | D59: 640 | F59: 0 | H59: 0 | I59: 0 | J59: -
A60: 687 | B60: SS | C60: Tickets for Rooms | D60: 640 | F60: 0 | H60: 0 | I60: 0 | J60: -
A61: 688 | B61: SS | C61: Hosting Fees | D61: 640 | F61: 0 | H61: 0 | I61: 0 | J61: -
A62: 689 | B62: NS | C62: Other Revenue - Unpick NS Product | D62: 640 | F62: 0 | H62: 0 | I62: 0 | J62: -
A63: 690 | B63: PX | C63: Other Revenue - Unpick PX Product | D63: 640 | F63: 0 | H63: 0 | I63: 0 | J63: -
A66: Total Revenue | E66: 7729716 | F66: 1 | G66: 9959829.19 | H66: 1 | I66: -2230113.19 | J66: -0.2239107868
B69: Product COGS | D69: 700 | E69: 2207491 | F69: 0.2855850073 | G69: 3130692.65 | H69: 0.314331962 | I69: -923201.65 | J69: -0.2948873471
A70: 701 | B70: NS | C70: Nu Skin COGS - Products | D70: 700 | E70: 2207491 | F70: 0.2855850073 | G70: 3130692.65 | H70: 0.314331962 | I70: -923201.65 | J70: -0.2948873471
A71: 719 | B71: PX | C71: Pharmanex COGS - Products | D71: 700 | F71: 0 | H71: 0 | I71: 0 | J71: -
A72: 702 | B72: PX | C72: NTC COGS - Products | D72: 700 | F72: 0 | H72: 0 | I72: 0 | J72: -
A73: 721 | B73: BP | C73: Big Planet COGS - Products | D73: 700 | F73: 0 | H73: 0 | I73: 0 | J73: -
B76: Sales Aids COGS | D76: 710 | E76: 67001 | F76: 0.008667976935 | G76: 54797.39 | H76: 0.005501840338 | I76: 12203.61 | J76: 0.22270422
A77: 705 | B77: NS | C77: Nu Skin COGS - Sales Aids | D77: 710 | E77: 67001 | F77: 0.008667976935 | G77: 54797.39 | H77: 0.005501840338 | I77: 12203.61 | J77: 0.22270422
A78: 712 | B78: PX | C78: Scanner COGS - Depreciation | D78: 710 | F78: 0 | H78: 0 | I78: 0 | J78: -
A79: 720 | B79: PX | C79: PX COGS - Sales Aids | D79: 710 | F79: 0 | H79: 0 | I79: 0 | J79: -
A80: 722 | B80: BP | C80: Big Planet COGS - Sales Aids | D80: 710 | F80: 0 | H80: 0 | I80: 0 | J80: -
B83: Starter Kit COGS | D83: 720 | E83: 11457 | F83: 0.001482201933 | G83: 19815.25 | H83: 0.001989517051 | I83: -8358.25 | J83: -0.4218089603
A84: 706 | B84: NS | C84: Nu Skin COGS - Starter Kits & Intro Packets | D84: 720 | E84: 11457 | F84: 0.001482201933 | G84: 19815.25 | H84: 0.001989517051 | I84: -8358.25 | J84: -0.4218089603
A85: 717 | B85: PX | C85: PX COGS - Starter Kits & Intro Packets | D85: 720 | F85: 0 | H85: 0 | I85: 0 | J85: -
B88: Other COGS | D88: 740 | E88: 477079 | F88: 0.06172012012 | G88: 542109.51 | H88: 0.05442959911 | I88: -65030.51 | J88: -0.1199582535
A89: 716 | B89: SS | C89: COGS - Consigned Inventory | D89: 730 | F89: 0 | G89: 115352.99 | H89: 0.01158182413 | I89: -115352.99 | J89: -1
A90: 730 | B90: SS | C90: Freight In | D90: 740 | F90: 0 | H90: 0 | I90: 0 | J90: -
A91: 733 | B91: SS | C91: Freight Out | D91: 740 | E91: 80333 | F91: 0.01039274923 | G91: 95343.23 | H91: 0.009572777623 | I91: -15010.23 | J91: -0.1574336217
A92: 734 | B92: SS | C92: Assembly Charges | D92: 740 | E92: 249098 | F92: 0.03222602228 | G92: 264035.29 | H92: 0.02651002191 | I92: -14937.29 | J92: -0.05657308158
A93: 735 | B93: SS | C93: Shipping Supplies | D93: 740 | F93: 0 | H93: 0 | I93: 0 | J93: -
A94: 746 | B94: SS | C94: COGS - Media Duplication | D94: 740 | F94: 0 | H94: 0 | I94: 0 | J94: -
A95: 750 | B95: SS | C95: COGS - Biological Testing Сертифи | D95: 740 | E95: 103453 | F95: 0.008716749749 | G95: 67378 | H95: 0.006764975454 | I95: 36075 | J95: 0.5354121523
A96: 799 | B96: NS | C96: Inventory Adjustment | D96: 740 | E96: 44195 | F96: 0 | H96: 0 | I96: 44195 | J96: -
A97: 799 | B97: PX | C97: Inventory Adjustment | D97: 740 | I97: 0 | J97: -
A98: 799 | B98: BP | C98: Inventory Adjustment | D98: 740 | I98: 0 | J98: -
A99: 849 | B99: SS | C99: Royalties | D99: 740 | F99: 0 | H99: 0 | I99: 0 | J99: -
A100: 738 | B100: SS | C100: Royalties - Withholding Taxes | D100: 740 | F100: 0 | H100: 0 | I100: 0 | J100: -
A101: 789 | B101: NS | C101: Other COGS - Unpick NS Product | D101: 740 | F101: 0 | H101: 0 | I101: 0 | J101: -
A102: 790 | B102: PX | C102: Other COGS - Unpick PX Product | D102: 740 | F102: 0 | H102: 0 | I102: 0 | J102: -
B105: Duties/Customs | D105: 750 | E105: 345898 | F105: 0.04474912144 | G105: 231093.95 | H105: 0.02320260173 | I105: 114804.05 | J105: 0.496785182
A106: 713 | B106: NS | C106: COGS - Duties - NS | D106: 750 | E106: 345898 | F106: 0.04474912144 | G106: 231093.95 | H106: 0.02320260173 | I106: 114804.05 | J106: 0.496785182
A107: 713 | B107: PX | C107: COGS - Duties - PX | D107: 750 | F107: 0 | H107: 0 | I107: 0 | J107: -
A108: 713 | B108: BP | C108: COGS - Duties - BP | D108: 750 | F108: 0 | H108: 0 | I108: 0 | J108: -
A109: 714 | B109: NS | C109: Import Fees - NS | D109: 750 | F109: 0 | H109: 0 | I109: 0 | J109: -
A110: 714 | B110: PX | C110: Import Fees - PX | D110: 750 | F110: 0 | H110: 0 | I110: 0 | J110: -
A111: 714 | B111: BP | C111: Import Fees - BP | D111: 750 | F111: 0 | H111: 0 | I111: 0 | J111: -
A114: Total Cost of Sales | E114: 3108926 | F114: 0.4022044277 | G114: 3978508.75 | H114: 0.3994555202 | I114: -869582.75 | J114: -0.2185700233
A116: Gross Margin | E116: 4620790 | F116: 0.5977955723 | G116: 5981320.44 | H116: 0.6005444798 | I116: -1360530.44 | J116: -0.2274632255
A118: Operating Expenses:
B120: Distributor Bonuses | D120: 800 | E120: 1605620 | F120: 0.2077204389 | G120: 2303254.29 | H120: 0.2312543966 | I120: -697634.29 | J120: -0.3028906938
A121: 809 | C121: Distributor Commissions - Comp Plan | D121: 800 | E121: 1401318 | F121: 0.1812897136 | G121: 2102679.34 | H121: 0.2111160041 | I121: -701361.34 | J121: -0.3335560143
A122: 867 | C122: Taxes - Withholding - Commissions | D122: 800 | F122: 0 | H122: 0 | I122: 0 | J122: -
A123: 810 | C123: Distributor Commissions - Int'l | D123: 800 | E123: 204302 | F123: 0.02643072527 | G123: 200574.95 | H123: 0.02013839255 | I123: 3727.05 | J123: 0.01858183188
C124: Distributor Commissions - GRP | D124: 800 | F124: 0 | H124: 0 | I124: 0 | J124: -
A125: 811 | C125: Distributor Commissions - Local | D125: 800 | F125: 0 | H125: 0 | I125: 0 | J125: -
C126: Distributor Commissions - Local- reverse Change % 44-33 | H126: 0
B128: License Fees | D128: 830 | E128: 0 | F128: 0 | G128: 0 | H128: 0 | I128: 0 | J128: -
A129: 808 | C129: License Fees | D129: 830 | F129: 0 | H129: 0 | I129: 0 | J129: -
A130: 868 | C130: Taxes - Withholding - License Fees | D130: 830 | F130: 0 | H130: 0 | I130: 0 | J130: -
B132: Total Distributor Bonuses + License Fees | E132: 1605620 | F132: 0.2077204389 | G132: 2303254.29 | H132: 0.2312543966 | I132: -697634.29 | J132: -0.3028906938
B135: Labor | D135: 810 | E135: 1066906 | F135: 0.1380265459 | G135: 969610.65 | H135: 0.09735213642 | I135: 97295.35 | J135: 0.1003447621
A136: 822 | C136: Employee Benefits | D136: 810 | F136: 0 | H136: 0 | I136: 0 | J136: -
A137: 823 | C137: Retirement Plan Expense | D137: 810 | F137: 0 | H137: 0 | I137: 0 | J137: -
A138: 824 | C138: Employee Medical Benefits | D138: 810 | F138: 0 | H138: 0 | I138: 0 | J138: -
A139: 827 | C139: Insurance - Health | D139: 810 | E139: 14612 | F139: 0.001890366994 | G139: 14883.34 | H139: 0.001494336872 | I139: -271.34 | J139: -0.01823112285
A140: 828 | C140: Insurance - Life | D140: 810 | F140: 0 | H140: 0 | I140: 0 | J140: -
A141: 852 | C141: Temporary Employees | D141: 810 | F141: 0 | H141: 0 | I141: 0 | J141: -
A142: 856 | C142: Employee Training/Seminars | D142: 810 | F142: 0 | H142: 0 | I142: 0 | J142: -
A143: 857 | C143: Employee Stock Awards | D143: 810 | F143: 0 | H143: 0 | I143: 0 | J143: -
A144: 858 | C144: Salaries and Wages | D144: 810 | E144: 735267 | F144: 0.0951221235 | G144: 696790.88 | H144: 0.06996012348 | I144: 38476.12 | J144: 0.05521903501
A145: 859 | C145: Bonus | D145: 810 | E145: 3661 | F145: 0.0004736267154 | H145: 0 | I145: 3661 | J145: -
A146: 860 | C146: Deferred Compensation Expense | D146: 810 | F146: 0 | H146: 0 | I146: 0 | J146: -
A147: 863 | C147: Recruitment | D147: 810 | E147: 49163 | F147: 0.006360259549 | G147: 480 | H147: 4.819359759e-05 | I147: 48683 | J147: 101.4229167
A148: 866 | C148: Employee Relocation | D148: 810 | E148: 0 | F148: 0 | G148: 8584 | H148: 0.0008618621701 | I148: -8584 | J148: -1
A149: 870 | C149: Taxes - Payroll | D149: 810 | E149: 264203 | F149: 0.0341801691 | G149: 248872.43 | H149: 0.02498762029 | I149: 15330.57 | J149: 0.06160011376
B152: Occupancy | D152: 820 | E152: 1019194 | F152: 0.1318540034 | G152: 1006387.66 | H152: 0.1010446706 | I152: 12806.34 | J152: 0.01272505666
A153: 802 | C153: Automobile and Truck | D153: 820 | F153: 0 | H153: 0 | I153: 0 | J153: -
A154: 803 | C154: Repairs and Maintenance | D154: 820 | F154: 0 | H154: 0 | I154: 0 | J154: -
A155: 805 | C155: Maintenance Contracts | D155: 820 | F155: 0 | H155: 0 | I155: 0 | J155: -
A156: 814 | C156: Depreciation | D156: 820 | E156: 32164 | F156: 0.004161084314 | G156: 52090.52 | H156: 0.005230061581 | I156: -19926.52 | J156: -0.3825364001
A157: 817 | C157: Scanner Depreciation | D157: 820 | E157: 86499 | F157: 0.01119044995 | G157: 82840.2 | H157: 0.008317431797 | I157: 3658.8 | J157: 0.04416696242
A158: 815 | C158: Amortization | D158: 820 | F158: 0 | H158: 0 | I158: 0 | J158: -
A159: 826 | C159: Insurance - General | D159: 820 | E159: 1206 | F159: 0.0001560212561 | G159: 1199.99 | H159: 0.0001204829899 | I159: 6.01 | J159: 0.00500837507
A160: 832 | C160: Equipment Rental | D160: 820 | F160: 0 | H160: 0 | I160: 0 | J160: -
A161: 833 | C161: Laundry and Cleaning | D161: 820 | E161: 20927 | F161: 0.00270734397 | G161: 23156.71 | H161: 0.002325010757 | I161: -2229.71 | J161: -0.09628785782
A162: 836 | C162: Office Supplies | D162: 820 | E162: 54194 | F162: 0.007011124341 | G162: 80506.3 | H162: 0.008083100469 | I162: -26312.3 | J162: -0.3268352912
A163: 837 | C163: Postage and Mail | D163: 820 | F163: 0 | G163: 10250.74 | H163: 0.001029208414 | I163: -10250.74 | J163: -1
A164: 840 | C164: Rent - Buildings and Warehouse | D164: 820 | E164: 624460 | F164: 0.08078692671 | G164: 607734.64 | H164: 0.06101858058 | I164: 16725.36 | J164: 0.02752082718
A165: 841 | C165: Utilities | D165: 820 | E165: 53066 | F165: 0.006865194012 | G165: 56411.1 | H165: 0.005663862193 | I165: -3345.1 | J165: -0.05929861322
A166: 842 | C166: Telephone and Telegraph | D166: 820 | E166: 135428 | F166: 0.01752043671 | G166: 81334.37 | H166: 0.008166241453 | I166: 54093.63 | J166: 0.6650771377
A167: 843 | C167: Security Services | D167: 820 | E167: 11250 | F167: 0.001455422166 | G167: 10863.09 | H167: 0.001090690392 | I167: 386.91 | J167: 0.03561693772
A168: 871 | C168: Taxes - Property | D168: 820 | F168: 0 | H168: 0 | I168: 0 | J168: -
A169: 880 | C169: Office Relocation | D169: 820 | F169: 0 | H169: 0 | I169: 0 | J169: -
B172: Bank & Card Service Fees | D172: 835 | E172: 118993 | F172: 0.01539422664 | G172: 156565.34 | H172: 0.01571968123 | I172: -37572.34 | J172: -0.2399786568
A173: 740 | C173: Credit Card Charges | D173: 835 | E173: 69028 | F173: 0.008930211666 | G173: 95918.2 | H173: 0.009630506525 | I173: -26890.2 | J173: -0.2803451274
A174: 741 | C174: Bank service Charges | D174: 835 | E174: 49965 | F174: 0.006464014978 | G174: 60647.14 | H174: 0.006089174708 | I174: -10682.14 | J174: -0.1761359233
A175: 916 | C175: Cash over/short | D175: 835 | F175: 0 | H175: 0 | I175: 0 | J175: -
B178: Expat/Management Fees | D178: 840 | E178: 8256 | F178: 0.001068085813 | G178: 113056.55 | H178: 0.01135125391 | I178: -104800.55 | J178: -0.9269745981
A179: 848 | C179: Management Fees | D179: 840 | E179: 8256 | F179: 0.001068085813 | G179: 113056.55 | H179: 0.01135125391 | I179: -104800.55 | J179: -0.9269745981
A180: 861 | C180: Direct Service Fees | D180: 840 | F180: 0 | H180: 0 | I180: 0 | J180: -
A181: 864 | C181: Expatriate Relocation | D181: 840 | F181: 0 | H181: 0 | I181: 0 | J181: -
A182: 865 | C182: Expatriate - General | D182: 840 | F182: 0 | H182: 0 | I182: 0 | J182: -
A183: 888 | C183: Allocated Overhead | D183: 840 | F183: 0 | H183: 0 | I183: 0 | J183: -
B186: Promotion | D186: 850 | E186: 474488 | F186: 0.06138492022 | G186: 658586.04 | H186: 0.06612423039 | I186: -184098.04 | J186: -0.2795352905
A187: 801 | C187: Advertising | D187: 850 | F187: 0 | H187: 0 | I187: 0 | J187: -
A188: 806 | C188: Promotion / Public Relations | D188: 850 | F188: 0 | H188: 0 | I188: 0 | J188: -
A189: 804 | C189: Bad Debt Expense | D189: 850 | F189: 0 | H189: 0 | I189: 0 | J189: -
A190: 807 | C190: No Charge Product | D190: 850 | E190: 19843 | F190: 0.002567105958 | G190: 135592.09 | H190: 0.01361389713 | I190: -115749.09 | J190: -0.853656655
A191: 813 | C191: Distributor Medical Reimbursements | D191: 850 | F191: 0 | H191: 0 | I191: 0 | J191: -
A192: 818 | C192: Donations | D192: 850 | F192: 0 | H192: 0 | I192: 0 | J192: -
A193: 819 | C193: Dues & Memberships | D193: 850 | E193: 80130 | F193: 0.01036648694 | G193: 80000 | H193: 0.008032266264 | I193: 130 | J193: 0.001625
A194: 820 | C194: Subscribtions | D194: 850 | F194: 0 | H194: 0 | I194: 0 | J194: -
A195: 844 | C195: Printing | D195: 850 | E195: 54550 | F195: 0.007057180367 | H195: 0 | I195: 54550 | J195: -
A196: 775 | C196: Magazine / Distributor Mailings | D196: 850 | F196: 0 | H196: 0 | I196: 0 | J196: -
A197: 855 | C197: Distributor Training/Seminars | D197: 850 | E197: 319965 | F197: 0.04139414695 | G197: 442993.95 | H197: 0.044478067 | I197: -123028.95 | J197: -0.2777215129
A198: 910 | C198: Seminar Income | D198: 850 | F198: 0 | H198: 0 | I198: 0 | J198: -
B201: Professional | D201: 860 | E201: 17622 | F201: 0.00227977328 | G201: 81013.79 | H201: 0.008134054154 | I201: -63391.79 | J201: -0.7824814763
A202: 834 | C202: Legal Services | D202: 860 | E202: 16327 | F202: 0.002112238018 | G202: 44001.29 | H202: 0.004417875966 | I202: -27674.29 | J202: -0.6289426969
A203: 834 | C203: Litigation Costs | D203: 860 | F203: 0 | H203: 0 | I203: 0 | J203: -
A204: 835 | C204: Accounting Services | D204: 860 | F204: 0 | H204: 0 | I204: 0 | J204: -
A205: 851 | C205: Professional Consulting | D205: 860 | E205: 1295 | F205: 0.0001675352626 | G205: 37012.5 | H205: 0.003716178189 | I205: -35717.5 | J205: -0.9650118203
B208: Travel | D208: 870 | E208: 47260 | F208: 0.006114066804 | G208: 8555.8 | H208: 0.0008590307963 | I208: 38704.2 | J208: 4.523738283
A209: 853 | C209: Travel | D209: 870 | E209: 47260 | F209: 0.006114066804 | G209: 8555.8 | H209: 0.0008590307963 | I209: 38704.2 | J209: 4.523738283
A210: 854 | C210: Meals and Entertainment | D210: 870 | F210: 0 | H210: 0 | I210: 0 | J210: -
A211: 881 | C211: Non-deductible Entertainment | D211: 870 | F211: 0 | H211: 0 | I211: 0 | J211: -
B214: Other | D214: 880 | E214: 116786 | F214: 0.01510870516 | G214: 39953.53 | H214: 0.004011467389 | I214: 76832.47 | J214: 1.923045849
A215: 802 | C215: Automobile and Truck | F215: 0 | H215: 0 | I215: 0 | J215: -
A216: 817 | C216: Computer Programming | D216: 880 | F216: 0 | H216: 0 | I216: 0 | J216: -
A217: 821 | C217: Licenses and Permits | D217: 880 | E217: 9176 | F217: 0 | H217: 0 | I217: 9176 | J217: -
A218: 829 | C218: Insurance - Product Liability | D218: 880 | F218: 0 | H218: 0 | I218: 0 | J218: -
A219: 847 | C219: Research and Development | D219: 880 | F219: 0 | H219: 0 | I219: 0 | J219: -
A220: 850 | C220: Miscellaneous Expense | D220: 880 | F220: 0 | H220: 0 | I220: 0 | J220: -
A221: 855 | C221: Reorganisation Charge - Others | D221: 880 | F221: 0 | H221: 0 | I221: 0 | J221: -
A222: 856 | C222: Reorganisation Charge - Scanner | D222: 880 | F222: 0 | H222: 0 | I222: 0 | J222: -
A223: 869 | C223: Taxes - Sales and Use | D223: 880 | F223: 0 | H223: 0 | I223: 0 | J223: -
A224: 872 | C224: Taxes - Other | D224: 880 | E224: 107610 | F224: 0.01392159815 | G224: 39953.53 | H224: 0.004011467389 | I224: 67656.47 | J224: 1.693379033
A226: Total Operating Expenses | E226: 4475125 | G226: 5336983.65 | H226: 0.5358509216 | I226: -861858.65 | J226: -0.161487969
A228: Operating Income | E228: 145665 | F228: 0.0188448062 | G228: 644336.79 | H228: 0.06469355826 | I228: -498671.79 | J228: -0.7739303385
B230: Other Income/Expense | D230: 900 | E230: 45639 | F230: 0.005904356641 | G230: -119047.15 | H230: -0.01195273008 | I230: 164686.15 | J230: -1.38336911
A231: 911 | C231: Machine Income | D231: 900 | F231: 0 | H231: 0 | I231: 0 | J231: -
A232: 912 | C232: Rental Income | D232: 900 | F232: 0 | H232: 0 | I232: 0 | J232: -
A233: 914 | C233: Miscellaneous Income | D233: 900 | F233: 0 | H233: 0 | I233: 0 | J233: -
A234: 916 | C234: Cash over/short | F234: 0 | H234: 0 | I234: 0 | J234: -
A235: 920 | B235: * | C235: Intercompany Interest Income | D235: 900 | F235: 0 | H235: 0 | I235: 0 | J235: -
A236: 921 | C236: Interest Income | D236: 900 | F236: 0 | H236: 0 | I236: 0 | J236: -
A237: 922 | C237: Interest Expense | D237: 900 | F237: 0 | H237: 0 | I237: 0 | J237: -
A238: 923 | B238: * | C238: Intercompany Interest Expense | D238: 900 | E238: 16172 | F238: 0.002092185534 | G238: -63737.55 | H238: -0.006399462158 | I238: 79909.55 | J238: -1.253727983
A239: 924 | B239: * | C239: Interest Withholding Tax Income/(Expense) | D239: 900 | F239: 0 | H239: 0 | I239: 0 | J239: -
A240: 930 | C240: Dividend Income | D240: 900 | F240: 0 | H240: 0 | I240: 0 | J240: -
A241: 935 | C241: Inter-company net sales (not NSI/NSEP) | D241: 900 | F241: 0 | H241: 0 | I241: 0 | J241: -
A242: 940 | C242: Income/(Loss) from Sale of Assets | D242: 900 | F242: 0 | H242: 0 | I242: 0 | J242: -
A243: 950 | C243: Gain/(Loss) on Sale of Securities | D243: 900 | F243: 0 | H243: 0 | I243: 0 | J243: -
A244: 960 | C244: Foreign Currency Transaction Gain/(Loss) | D244: 900 | F244: 0 | H244: 0 | I244: 0 | J244: -
A245: 961 | C245: Foreign Currency Unrealized Gain/(Loss) | D245: 900 | E245: 29467 | F245: 0.003812171107 | G245: -55309.6 | I245: 84776.6 | J245: -1.532764656
C246: Consolidated Foreign Currency Unrealized Gain/(Loss) | F246: 0 | H246: 0 | I246: 0 | J246: -
C247: Adjasment (Acruall Liabbility and reverse Acruall com 12 2010
A248: Income before Income Taxes | E248: 100026 | F248: 0.01294044956 | G248: 525289.64 | H248: 0.05274082818 | I248: -625315.64 | J248: -1.19042066
... 4 more rows

Sheet FCA (hidden)
A1: ='Bal Sheet'!A1 -> Tahiti | I1: A3
A2: FOREIGN CURRENCY ADJUSTMENT
A3: ='Bal Sheet'!A3 -> 12/31/2010
E7: A | G7: B | I7: B - A
C8: FC | G8: Spot Rate
C9: Balance | E9: US Historical | G9: ='Bal Sheet'!$N$4 -> 12 | I9: FCA
A11: 2010-12-31
B12: Capital | C12: 65110 | E12: 8500 | F12: A1 | G12: =+C12/$G$9 -> 5425.833333 | I12: =G12-E12 -> -3074.166667
B13: APIC | G13: =+C13/$G$9 -> 0 | I13: =G13-E13 -> 0
B14: Retained Earnings | C14: -845432.52 | E14: -104222.2663 | G14: =+C14/$G$9 -> -70452.71 | I14: =G14-E14 -> 33769.5563
B15: Current Dividends | G15: =+C15/$G$9 -> 0 | I15: =G15-E15 -> 0
C16: =SUM(C11:C15) -> -780322.52 | E16: =SUM(E11:E15) -> -95722.2663 | G16: =SUM(G11:G15) -> -65026.87667 | I16: =SUM(I11:I15) -> 30695.38964
A18: 12/31/2011
B19: Capital | C19: 65110 | E19: 8500 | F19: A1 | G19: 8149.140154 | I19: -350.8598463
B20: APIC | C20: 0 | E20: 0 | G20: 0 | I20: 0
B21: Retained Earnings | C21: -845432.52 | D21: F | E21: -104222.2663 | F21: A1,C | G21: -105813.9778 | I21: -1591.711519
B22: Current Earnings | C22: 1400015.34 | D22: F | E22: 175747.1964 | F22: A1,C | G22: 175225.3298 | I22: -521.8666369
B23: Current Dividends | D23: F | F23: C | G23: 0 | I23: 0
B24: Rounding, Etc. | E24: 0 | G24: 0 | I24: 0
C25: 619692.82 | E25: 80024.93013 | G25: 77560.49213 | I25: -2464.438002 | J25: A1
A27: 12/31/2009
B28: Capital | C28: 65110 | E28: 8500 | F28: A1 | G28: 8145.877643 | I28: -354.1223571
B29: APIC | C29: 0 | E29: 0 | G29: 0 | I29: 0
B30: Retained Earnings | C30: 554582.82 | D30: F | E30: 71524.93013 | F30: A1,C | G30: 69383.56312 | I30: -2141.367012
B31: Current Earnings | C31: -15237.02 | D31: F | E31: -1906.659855 | F31: A1,C | G31: -1906.295509 | I31: 0.3643465316
B32: Current Dividends | D32: F | F32: C | G32: 0 | I32: 0
B33: Rounding, Etc. | E33: 0 | G33: 0 | I33: 0
C34: 604455.8 | E34: 78118.27027 | G34: 75623.14525 | I34: -2495.125023
A38: 12/31/2010
B39: Capital | C39: =C28 -> 65110 | E39: =E28 -> 8500 | F39: A1 | G39: =+C39/$G$9 -> 5425.833333 | I39: =G39-E39 -> -3074.166667
B40: APIC | C40: =C29 -> 0 | E40: =E29 -> 0 | G40: =+C40/$G$9 -> 0 | I40: =G40-E40 -> 0
B41: Retained Earnings | C41: =C31+C30 -> 539345.8 | D41: F | E41: =E31+E30 -> 69618.27027 | F41: A1,C | G41: =+C41/$G$9 -> 44945.48333 | I41: -24672.78694
B42: Current Earnings | C42: ='Inc Stmt'!J158 -> -636672.116 | D42: F | E42: =+'Inc Stmt'!M158 -> -79654.31665 | F42: A1,C | G42: =+C42/$G$9 -> -53056.00967 | I42: =G42-E42 -> 26598.30699
B43: Current Dividends | D43: F | F43: C | G43: =+C43/$G$9 -> 0 | I43: 0
B44: Rounding, Etc. | E44: 0 | G44: =+C44/$G$9 -> 0 | I44: 0
C45: =SUM(C39:C44) -> -32216.316 | E45: =SUM(E39:E44) -> -1536.046377 | G45: =SUM(G39:G44) -> -2684.693 | I45: =SUM(I39:I44) -> -1148.646623 | J45: A1
I46: FCA
B47: Ending Retained Earnings | C47: =+C41+C42+C44 -> -97326.316 | D47: = ΣF | E47: =E44+E42+E41 -> -10036.04638 | F47: = ΣC

Sheet Equity (hidden)
A1: Nu Skin Enterprises Tahiti
A2: Statement of Stockholders' Equity
A3: =+'Bal Sheet Detail'!A3 -> As of 1943
D5: Additional | H5: Total
C6: Common | D6: Paid-in | E6: Legal | F6: Legal Reserve | G6: Retained | H6: Stockholders'
C7: Stock | D7: Capital | E7: Reserve | F7: Addition | G7: Earnings | H7: Equity
A8: Balances at 1 JAN 2010 | C8: =FCA!C39 -> 65110 | E8: 0 | F8: 0 | G8: ='Bal Sheet Detail'!D168 -> 161803.764 | H8: =SUM(C8:G8) -> 226913.764
A10: Net income | G10: ='Bal Sheet'!K103 -> -77739 | H10: =SUM(C10:G10) -> -77739
A12: Dividends | H12: =SUM(C12:G12) -> 0
A13: Legal reserve addition
A14: Retained Earnings
A16: Contributions (USD 5,400,000 Dec 22,2009)
A17: (please specify amount and date)
A19: Other : translation Adjustment | G19: 0 | H19: =SUM(C19:G19) -> 0
A21: Balances B/F | C21: =SUM(C8:C20) -> 65110 | D21: =SUM(D8:D20) -> 0 | E21: =SUM(E8:E20) -> 0 | F21: =SUM(F8:F20) -> 0 | G21: =SUM(G8:G20) -> 84064.764 | H21: =SUM(C21:G21) -> 149174.764
H24: =SUM('Bal Sheet'!K100:K103) -> 481139.88
H25: =+H24-H21 -> 331965.116 | I25: Check

Sheet M-1 Fixed Assets (hidden)
A1: ='Bal Sheet'!A1 -> Tahiti | G1: F1
A2: Depreciation and Disposal of Asset M-1s
A3: ='Bal Sheet'!A3 -> 12/31/2010
A5: Depreciation M-1:
A7: Total Tax Depreciation | E7: ='Depreciation Detail'!M40 -> 13844.85 | F7: A
A9: Total Book Depreciation | D9: A2 | E9: ='Inc Stmt'!M40 -> 14845.86513 | F9: B
A11: Depreciation M-1 Adjustment (in US$): | D11: B-A | E11: =E9-E7 -> 1001.015132 | F11: AJE 1
D13: weighted average exchange rate | E13: ='Inc Stmt'!M2 -> 7.993
A15: Depreciation M-1 Adjustment (in LC): | E15: =ROUND(E13*E11,0) -> 8001 | F15: AJE 1
A20: Disposal of Assets M-1:
A23: Tax Gain/(Loss) on Disposals | E23: ='FA Disposals'!M24 -> 0 | F23: C
A25: Book Gain/(Loss) on Disposals | D25: A2 | E25: ='Inc Stmt'!M125 -> 0 | F25: D
A27: Disposal M-1 Adjustment (in US$): | D27: D-C | E27: =E25-E23 -> 0 | F27: AJE 8
D29: weighted average exchange rate | E29: =E13 -> 7.993
A31: Disposal M-1 Adjustment (in LC): | E31: =ROUND(E29*E27,0) -> 0 | F31: AJE 8
A35: Scanner Depreciation M-1:
A37: Depreciation for Tax in US$:
A38: FAS Depreciation | E38: 0
A39: COGS Depreciation | E39: 0
A40: M-1 Adjustment in US$: | E40: =+E39-E38 -> 0
A42: Weighted Avg Ex Rate | E42: =E13 -> 7.993
A44: M-1 Adjustment in LC: | E44: =+E42*E40 -> 0

Sheet Depreciation Detail (hidden)
F1: Nu Skin Enterprises Tahiti, LLC
F3: Depreciation Expense Report
F5: As of December 31, 2010
A8: Book = Tax
A10: FYE Month = December
A13: Sys No | B13: Ext | C13: In Svc Date | D13: Acquired Value | E13: P T | F13: Depr Meth | G13: Est Life | H13: Salv / 168(k) Sec 179 | I13: Depreciable Basis | J13: Prior Thru | K13: Prior Accum Depreciation | L13: Depreciation This Run | M13: Current YTD Depreciation | N13: Current Accum Depreciation | O13: Key Code
A16: G/L Asset Acct No = 201
C17: G/L Asset Acct No = 201 | D17: 20707.88 | H17: 0 | I17: 20707.88 | K17: 4252.23 | L17: 3089.95 | M17: 3089.95 | N17: 7342.18
C18: Less disposals and transfers | D18: 0 | H18: 0 | I18: 0 | K18: 0 | N18: 0
C19: Count = 0
C20: Net Subtotal | D20: 20707.88 | H20: 0 | I20: 20707.88 | K20: 4252.23 | L20: 3089.95 | M20: 3089.95 | N20: 7342.18
C21: Count = 6
A23: G/L Asset Acct No = 202
C24: G/L Asset Acct No = 202 | D24: 3568.39 | H24: 0 | I24: 3568.39 | K24: 111.89 | L24: 89.21 | M24: 89.21 | N24: 201.1
C25: Less disposals and transfers | D25: 0 | H25: 0 | I25: 0 | K25: 0 | N25: 0
C26: Count = 0
C27: Net Subtotal | D27: 3568.39 | H27: 0 | I27: 3568.39 | K27: 111.89 | L27: 89.21 | M27: 89.21 | N27: 201.1
C28: Count = 2
A30: G/L Asset Acct No = 205
C31: G/L Asset Acct No = 205 | D31: 53554.3 | H31: 0 | I31: 53554.3 | K31: 15701.26 | L31: 10665.69 | M31: 10665.69 | N31: 26366.95
C32: Less disposals and transfers | D32: 0 | H32: 0 | I32: 0 | K32: 0 | N32: 0
C33: Count = 0
C34: Net Subtotal | D34: 53554.3 | H34: 0 | I34: 53554.3 | K34: 15701.26 | L34: 10665.69 | M34: 10665.69 | N34: 26366.95
C35: Count = 3
C37: Grand Total | D37: 77830.57 | H37: 0 | I37: 77830.57 | K37: 20065.38 | L37: 13844.85 | M37: 13844.85 | N37: 33910.23
C38: Less disposals and transfers | D38: 0 | H38: 0 | I38: 0 | K38: 0 | N38: 0
C39: Count = 0
C40: Net Grand Total | D40: 77830.57 | H40: 0 | I40: 77830.57 | K40: 20065.38 | L40: 13844.85 | M40: 13844.85 | N40: 33910.23
C42: Count = 11
F46: Report Assumptions
A48: Report Name: Depreciation Expense
A49: Source Report: <Standard Report>
A51: Calculation Assumptions:
A52: Short Year: none
A53: Include Sec 168(k) Allowance & Sec 179: No
A54: Adjustment Convention: None
A55: Key Codes:
A56: a: A depreciation adjustment amount is included in the reporting period.
A57: b: The asset's business-use percentage is less than 100%.
A58: d: The asset has been disposed.
A59: f: The asset has switched from a MACRS table calculation to the MACRS formula calculation.
A60: l: The asset's depreciation has been limited by luxury auto rules.
A61: m: The asset's depreciation was calculated using the mid-quarter convention.
A62: r: The asset's acquired value was reduced to arrive at the depreciable basis.
A63: s: The asset has switched from declining-balance to a straight-line.
A64: t: The asset was transferred.
A65: v: The asset has switched to remaining value over remaining life due to ACE.
A66: Group/Sorting Criteria:
A67: Group = GL Account
A68: Include Assets that meet the following conditions:
A69: All FAS Assets
A70: Sorted by: G/L Asset Acct No (with subtotals), System No, Extension
A72: April 16, 2014 at 2:17 PM | K72: Page 1
A74: Numbers are rounded to the nearest dollar.

Sheet FA Disposals (hidden)
A1: None in 2010

Sheet FTC (hidden)
A1: Nu Skin Tahiti | F1: T1
A2: Calculation of Current Year Tax Expense for E&P
A3: ='Bal Sheet'!A3 -> 12/31/2010
E4: W.A. F/X Rate | F4: ='Inc Stmt'!M2 -> 7.993
C6: LC | F6: USD
A7: Adjustment to Current Year Tax Provision
A8: CY Taxes Paid | B8: T2 | C8: 216362 | F8: =C8/$F$4 -> 27068.93532
A9: CY Tax Provision | B9: PY | C9: ='Inc Stmt'!D155 -> 359156 | F9: =C9/$F$4 -> 44933.81709
A10: Difference: Increase/(Decrease) to Tax Expense | C10: =+C8-C9 -> -142794 | D10: AJE 3 | F10: =+F8-F9 -> -17864.88177 | G10: =D10 -> AJE 3
A13: Total Current Year Tax Adjustment: Increase/(Decrease) to Tax Provision | C13: =C10 -> -142794 | F13: =C13/$F$4 -> -17864.88177
A15: Total Current Year Tax Expense for E&P | C15: =C9+C13 -> 216362 | F15: =F9+F13 -> 27068.93532

Sheet AJEs (hidden)
A1: ='Bal Sheet'!A1 -> Tahiti
A2: Tax Adjusting Journal Entries | K2: Weighted Avg Exchange Rate | O2: AJE
A3: ='Bal Sheet'!A3 -> 12/31/2010 | K3: ='Inc Stmt'!M2 -> 7.993
F5: LC | K5: US$
B7: DESCRIPTION | F7: DEBIT | H7: CREDIT | K7: DEBIT | M7: CREDIT
A9: 1 | B9: Depreciation [0045]
B10: F1 | C10: M-1 Accumulated Depreciation (122500) | F10: ='M-1 Fixed Assets'!E15 -> 8001 | K10: ='M-1 Fixed Assets'!E11 -> 1001.015132 | O10: o
D11: Depreciation (720003) | H11: =+F10 -> 8001 | M11: =+K10 -> 1001.015132 | N11: A2
C12: Note: To record tax depreciation adjustment
A14: 2 | B14: UNICAP (§263A) [0060-0065]
B15: D1 | C15: Ending Inventory for Sch 1125-A [COGS] (955020) | F15: =H16 -> 0 | K15: =F15/K3 -> 0 | L15: A2
D16: M-1 Supplies Inventory (114405) | H16: ='263A Calc'!O36 -> 0 | M16: =K15 -> 0 | O16: v
C18: Note: To reverse prior year §263A
C19: M-1 Supplies Inventory (114405) | F19: =H20 -> 0 | K19: =M20 -> 0
B20: D1 | D20: Ending Inventory for Sch 1125-A [COGS] (955020) | H20: ='263A Calc'!O28 -> 0 | M20: =H20/K3 -> 0 | N20: A2 | O20: v
C22: Note: To adjust for current year §263A
A24: 3 | B24: Accrued Bonuses [0010]
B25: P1 | C25: M-1 Other Current Liabilities (250043) | F25: =+'M-1 Adjustments'!F57 -> 0 | K25: 0
D26: Salaries & Wages (710009) | H26: =+F25 -> 0 | M26: =K25 -> 0 | N26: A2 | O26: v
C28: Note: To adjust for the increase in the accrued bonus accrual not paid within 2 1/2 months
A30: 4 | B30: Inventory Reserve [0025]
B31: P1 | C31: M-1 Inventory Reserve for Write Off (114500) | F31: =+'M-1 Adjustments'!F66 -> 0 | K31: 0 | O31: v
D32: Ending Inventory for Sch 1125-A [COGS] (955020) | H32: =F31 -> 0 | M32: =+K31 -> 0 | N32: A2
C34: Note: To reverse the increase in the inventory reserve.
A36: 5 | B36: Vacation Accrual [0040]
B37: P1 | C37: M-1 Accrued Compensation Absences (231054) | F37: =+'M-1 Adjustments'!F13 -> 0 | K37: 0
D38: Salaries & Wages (710009) | H38: =+F37 -> 0 | M38: =K37 -> 0 | N38: A2 | O38: v
C40: Note: To adjust for the increase in the accrued bonus accrual not paid within 2 1/2 months
A42: 6 | B42: CFC Income Tax [0085]
C43: M-1 Other L-T Liabilities (250014) | F43: =K43*K3 -> 142794 | K43: =-FTC!F13 -> 17864.88177 | L43: A2 | O43: o
D44: Income Tax Provision (Foreign Tax Provision) (952020) | H44: =F43 -> 142794 | M44: =+K43 -> 17864.88177
C46: Note: To reverse tax provision since all funds are from dividends with no tax.
A48: 7 | B48: Dividend Income Adjustment
C49: Miscellaneous Income | F49: 0 | G49: A1 | K49: =F49/K3 -> 0 | O49: v
D50: M-1 | H50: =+F49 -> 0 | I50: A1 | M50: =+K49 -> 0
C52: Note: To adjust dividend income for grossup of franking taxes.
A54: 8 | B54: Disposal of Assets [0050]
B55: F1 | C55: Gain/(Loss) on Sale of Assets (951085) | F55: =K55*$K$3 -> 0 | K55: ='M-1 Fixed Assets'!E27 -> 0 | L55: A2 | O55: o
D56: M-1 Accumulated Depreciation (122500) | H56: =F55 -> 0 | M56: =K55 -> 0
C57: Note: To adjust book gain/(loss) to tax gain/(loss).
A59: 9 | B59: B/S Reclass (Not in Onesource)
B60: A1 | C60: Intercompany Payable | F60: ='Bal Sheet'!H85 -> 1181251.455 | K60: =F60/$K$3 -> 147785.7444 | O60: v
D61: Other Current Liabilities | H61: =F60 -> 1181251.455 | M61: =K60 -> 147785.7444
B62: To reclass intercompany payable to other current liabilities
A64: 10 | B64: General Reserve [080]
C65: M-1 | D65: Other L-T Liabilities (250014) | F65: ='M-1 Adjustments'!F77 -> 0 | K65: =F65/$K$3 -> 0
D66: Accrued Commissions | H66: =F65 -> 0 | M66: =K65 -> 0

Sheet 263A Calc (hidden)
A1: ='Bal Sheet'!A1 -> Tahiti | O1: D1
A2: §263A Calculation
A3: ='Bal Sheet'!A3 -> 12/31/2010 | G3: A4 | H3: ='Inc Stmt'!M2 -> 7.993
H4: Exchange
H5: Rate | N5: FC
N6: Capital
F7: US$ | H7: FC | J7: Percent | N7: Costs
A9: CAPITALIZED SALARIES | G9: D2 | H9: ='263A Sal'!F12 -> 0 | K9: 1 | O9: =H9*K9 -> 0
A10: MIXED SALARIES | G10: D2 | H10: ='263A Sal'!F8 -> 738928 | J10: D2 | K10: ='263A Sal'!F22 -> 0 | O10: =H10*K10 -> 0
A12: CAPITALIZED G&A | E12: D3 | F12: ='263A G&A'!E91 -> 0 | H12: =F12*H3 -> 0 | K12: 1 | O12: =H12*K12 -> 0
A13: MIXED G&A | E13: D3 | F13: ='263A G&A'!E92 -> 201329.3135 | H13: =H3*F13 -> 1609225.203 | J13: D2 | K13: =K10 -> 0 | O13: =H13*K13 -> 0
O15: =SUM(O9:O14) -> 0
A17: CALCULATION OF PURCHASES:
A18: ENDING INVENTORY | G18: A1 | H18: =SUM('Bal Sheet'!E11:E17) -> 600963.345 | I18: A
A19: COST OF GOODS SOLD | G19: A2 | H19: ='Inc Stmt'!D13 -> 3108926
A20: BEGINNING INVENTORY | G20: PYR | H20: 2144192.45
A22: TOTAL PURCHASES | H22: =H18+H19-H20 -> 1565696.895 | I22: B
A24: ABSORP. RATIO (E.I. / PURCH) | G24: A/B | H24: =H18/H22 -> 0.3838312172 | O24: =IF(H24>100%,100%,H24) -> 0.3838312172
A28: Current Year §263A Adjustment (in FC): | O28: =ROUND(O15*O24,0) -> 0 | P28: AJE 2, C, W2
N30: Weighted Average Exchange Rate | O30: =H3 -> 7.993
A32: Current Year §263A Adjustment (in US$): | O32: =ROUND(O28/O30,0) -> 0 | P32: AJE 2, D
A36: Reversal of Prior Year §263A Adjustment (in FC): | O36: 0 | P36: AJE 2, E
N38: Weighted Average Exchange Rate | O38: =O30 -> 7.993
A40: Reversal of Prior Year §263A Adjustment translated into US$ using cyr weighted avg exchange rate: | O40: =ROUND(O36/O38,0) -> 0 | P40: AJE 2, F
N44: D - F = | O44: =O32-O40 -> 0 | P44: W1
N45: C - E = | O45: =O28-O36 -> 0 | P45: W2

Sheet 263A Sal (hidden)
A1: ='Bal Sheet'!A1 -> Tahiti | G1: D2
A2: §263A Calculation
A3: Salary Analysis
A4: ='Bal Sheet'!A3 -> 12/31/2010
F5: Salary Breakout
F6: in FC
A8: Mixed Salaries | E8: P3 | F8: =+'Tax Package'!D433 -> 738928
A10: Exempt Salaries | E10: P3 | F10: =+'Tax Package'!D432 -> 0
A12: Capitalized Salaries | E12: P3 | F12: =+'Tax Package'!D431 -> 0
E14: P3 | F14: =SUM(F8:F12) -> 738928
A17: Mixed Service Cost Calculation:
A19: Capitalized Wages | E19: B | F19: =F12 -> 0
A20: Total Exempt and Capitalized | E20: SC= | F20: =F10+F12 -> 0
A22: Mixed Service Percentage | F22: 0 | G22: D1

Sheet 263A G&A (hidden)
A1: ='Bal Sheet'!A1 -> Tahiti | G1: D3
A2: §263A Calculation
A3: G&A Expense Analysis
A4: ='Bal Sheet'!A3 -> 12/31/2010
E5: TAXABLE
E6: US$
E7: BALANCE
E8: =+A4 -> 12/31/2010 | G8: CLASS
A10: OPERATING EXPENSES
B11: Deferred Compensation Exp | D11: A2 | E11: =SUMIF('Inc Stmt'!$B$18:$B$97,B11,'Inc Stmt'!$X$18:$X$97) -> 0 | G11: 0
B12: Salaries & Wages | D12: A2 | E12: =SUMIF('Inc Stmt'!$B$18:$B$97,B12,'Inc Stmt'!$X$18:$X$97) -> 92446.89103 | G12: 0
B13: Salaries & Wages Exec. | D13: A2 | E13: =SUMIF('Inc Stmt'!$B$18:$B$97,B13,'Inc Stmt'!$X$18:$X$97) -> 0 | G13: 0
B14: Temporary Employees | D14: A2 | E14: =SUMIF('Inc Stmt'!$B$18:$B$97,B14,'Inc Stmt'!$X$18:$X$97) -> 0 | G14: 0
B15: Adj for License, Royalty, & Com | D15: A2 | E15: =SUMIF('Inc Stmt'!$B$18:$B$97,B15,'Inc Stmt'!$X$18:$X$97) -> 0 | G15: 1
B16: Advertising & Promotions | D16: A2 | E16: =SUMIF('Inc Stmt'!$B$18:$B$97,B16,'Inc Stmt'!$X$18:$X$97) -> 0 | G16: 1
B17: Amortization | D17: A2 | E17: =SUMIF('Inc Stmt'!$B$18:$B$97,B17,'Inc Stmt'!$X$18:$X$97) -> 0 | G17: 1
B18: Bad Debt Expense | D18: A2 | E18: =SUMIF('Inc Stmt'!$B$18:$B$97,B18,'Inc Stmt'!$X$18:$X$97) -> 0 | G18: 1
B19: Convention Expenses | D19: A2 | E19: =SUMIF('Inc Stmt'!$B$18:$B$97,B19,'Inc Stmt'!$X$18:$X$97) -> 0 | G19: 1
B20: Distributor Awards | D20: A2 | E20: =SUMIF('Inc Stmt'!$B$18:$B$97,B20,'Inc Stmt'!$X$18:$X$97) -> 0 | G20: 1
B21: Distributor Commissions | D21: A2 | E21: =SUMIF('Inc Stmt'!$B$18:$B$97,B21,'Inc Stmt'!$X$18:$X$97) -> 200878 | G21: 1
B22: Distributor Incentives | D22: A2 | E22: =SUMIF('Inc Stmt'!$B$18:$B$97,B22,'Inc Stmt'!$X$18:$X$97) -> 0 | G22: 1
B23: Distributor Medical Reimburse | D23: A2 | E23: =SUMIF('Inc Stmt'!$B$18:$B$97,B23,'Inc Stmt'!$X$18:$X$97) -> 0 | G23: 1
B24: Distributor Stock Option Expense | D24: A2 | E24: =SUMIF('Inc Stmt'!$B$18:$B$97,B24,'Inc Stmt'!$X$18:$X$97) -> 0 | G24: 1
B25: Distributor Training & Seminar | D25: A2 | E25: =SUMIF('Inc Stmt'!$B$18:$B$97,B25,'Inc Stmt'!$X$18:$X$97) -> 40031 | G25: 1
B26: Donations | D26: A2 | E26: =SUMIF('Inc Stmt'!$B$18:$B$97,B26,'Inc Stmt'!$X$18:$X$97) -> 0 | G26: 1
B27: Film Projects | D27: A2 | E27: =SUMIF('Inc Stmt'!$B$18:$B$97,B27,'Inc Stmt'!$X$18:$X$97) -> 0 | G27: 1
B28: Insurance - Product Liability | D28: A2 | E28: =SUMIF('Inc Stmt'!$B$18:$B$97,B28,'Inc Stmt'!$X$18:$X$97) -> 0 | G28: 1
B29: License Fees | D29: A2 | E29: =SUMIF('Inc Stmt'!$B$18:$B$97,B29,'Inc Stmt'!$X$18:$X$97) -> 0 | G29: 1
B30: Meals & Entertainment | D30: A2 | E30: =SUMIF('Inc Stmt'!$B$18:$B$97,B30,'Inc Stmt'!$X$18:$X$97) -> 0 | G30: 1
B31: Merch Discount & Bank Charges | D31: A2 | E31: =SUMIF('Inc Stmt'!$B$18:$B$97,B31,'Inc Stmt'!$X$18:$X$97) -> 14887.15126 | G31: 1
B32: Material Fee | D32: A2 | E32: =SUMIF('Inc Stmt'!$B$18:$B$97,B32,'Inc Stmt'!$X$18:$X$97) -> 0 | G32: 1
B33: Printing Services | D33: A2 | E33: =SUMIF('Inc Stmt'!$B$18:$B$97,B33,'Inc Stmt'!$X$18:$X$97) -> 6824.721631 | G33: 1
B34: Promotion - No Charge Product | D34: A2 | E34: =SUMIF('Inc Stmt'!$B$18:$B$97,B34,'Inc Stmt'!$X$18:$X$97) -> 2483 | G34: 1
B35: Seminar Income | D35: A2 | E35: =SUMIF('Inc Stmt'!$B$18:$B$97,B35,'Inc Stmt'!$X$18:$X$97) -> 0 | G35: 1
B36: Taxes - W/H Commissions | D36: A2 | E36: =SUMIF('Inc Stmt'!$B$18:$B$97,B36,'Inc Stmt'!$X$18:$X$97) -> 0 | G36: 1
B37: Taxes - W/H License Fees | D37: A2 | E37: =SUMIF('Inc Stmt'!$B$18:$B$97,B37,'Inc Stmt'!$X$18:$X$97) -> 0 | G37: 1
B38: Rent - Warehouse | D38: P3 | E38: ='Tax Package'!D402/'Inc Stmt'!M2 -> 0 | G38: 2
B39: Accounting Service | D39: A2 | E39: =SUMIF('Inc Stmt'!$B$18:$B$97,B39,'Inc Stmt'!$X$18:$X$97) -> 0 | G39: 3
B40: Allocated Overhead | D40: A2 | E40: =SUMIF('Inc Stmt'!$B$18:$B$97,B40,'Inc Stmt'!$X$18:$X$97) -> 0 | G40: 3
B41: Automobile & Truck | D41: A2 | E41: =SUMIF('Inc Stmt'!$B$18:$B$97,B41,'Inc Stmt'!$X$18:$X$97) -> 0 | G41: 3
B42: Cafeteria Expense | D42: A2 | E42: =SUMIF('Inc Stmt'!$B$18:$B$97,B42,'Inc Stmt'!$X$18:$X$97) -> 0 | G42: 3
B43: Commissionaire Commissions | D43: A2 | E43: =SUMIF('Inc Stmt'!$B$18:$B$97,B43,'Inc Stmt'!$X$18:$X$97) -> 0 | G43: 3
B44: Compensation Reimbursement | D44: A2 | E44: =SUMIF('Inc Stmt'!$B$18:$B$97,B44,'Inc Stmt'!$X$18:$X$97) -> 0 | G44: 3
B45: Computer Programming | D45: A2 | E45: =SUMIF('Inc Stmt'!$B$18:$B$97,B45,'Inc Stmt'!$X$18:$X$97) -> 0 | G45: 3
B46: Depreciation | D46: A2 | E46: =SUMIF('Inc Stmt'!$B$18:$B$97,B46,'Inc Stmt'!$X$18:$X$97) -> 13844.85 | G46: 3
B47: Direct Service Fee | D47: A2 | E47: =SUMIF('Inc Stmt'!$B$18:$B$97,B47,'Inc Stmt'!$X$18:$X$97) -> 0 | G47: 3
B48: Dues & Memberships | D48: A2 | E48: =SUMIF('Inc Stmt'!$B$18:$B$97,B48,'Inc Stmt'!$X$18:$X$97) -> 10025 | G48: 3
B49: Employee Benefits | D49: A2 | E49: =SUMIF('Inc Stmt'!$B$18:$B$97,B49,'Inc Stmt'!$X$18:$X$97) -> 0 | G49: 3
B50: Employee Medical Benefits | D50: A2 | E50: =SUMIF('Inc Stmt'!$B$18:$B$97,B50,'Inc Stmt'!$X$18:$X$97) -> 0 | G50: 3
B51: Employee Relocation | D51: A2 | E51: =SUMIF('Inc Stmt'!$B$18:$B$97,B51,'Inc Stmt'!$X$18:$X$97) -> 0 | G51: 3
B52: Employee Retirement Plan | D52: A2 | E52: =SUMIF('Inc Stmt'!$B$18:$B$97,B52,'Inc Stmt'!$X$18:$X$97) -> 0 | G52: 3
B53: Employee Stock Awards | D53: A2 | E53: =SUMIF('Inc Stmt'!$B$18:$B$97,B53,'Inc Stmt'!$X$18:$X$97) -> 0 | G53: 3
B54: Employee Training | D54: A2 | E54: =SUMIF('Inc Stmt'!$B$18:$B$97,B54,'Inc Stmt'!$X$18:$X$97) -> 0 | G54: 3
B55: Equipment Rental | D55: A2 | E55: =SUMIF('Inc Stmt'!$B$18:$B$97,B55,'Inc Stmt'!$X$18:$X$97) -> 0 | G55: 3
B56: Expatriate - General | D56: A2 | E56: =SUMIF('Inc Stmt'!$B$18:$B$97,B56,'Inc Stmt'!$X$18:$X$97) -> 0 | G56: 3
B57: Expatriate Relocation | D57: A2 | E57: =SUMIF('Inc Stmt'!$B$18:$B$97,B57,'Inc Stmt'!$X$18:$X$97) -> 0 | G57: 3
B58: Insurance - Health | D58: A2 | E58: =SUMIF('Inc Stmt'!$B$18:$B$97,B58,'Inc Stmt'!$X$18:$X$97) -> 1828.099587 | G58: 3
B59: Insurance - Life | D59: A2 | E59: =SUMIF('Inc Stmt'!$B$18:$B$97,B59,'Inc Stmt'!$X$18:$X$97) -> 0 | G59: 3
B60: Insurance General | D60: A2 | E60: =SUMIF('Inc Stmt'!$B$18:$B$97,B60,'Inc Stmt'!$X$18:$X$97) -> 150.8820218 | G60: 3
B61: Laundry & Cleaning | D61: A2 | E61: =SUMIF('Inc Stmt'!$B$18:$B$97,B61,'Inc Stmt'!$X$18:$X$97) -> 2618.165895 | G61: 3
B62: Legal Service | D62: A2 | E62: =SUMIF('Inc Stmt'!$B$18:$B$97,B62,'Inc Stmt'!$X$18:$X$97) -> 2042.66233 | G62: 3
B63: Licenses & Permits | D63: A2 | E63: =SUMIF('Inc Stmt'!$B$18:$B$97,B63,'Inc Stmt'!$X$18:$X$97) -> 1148 | G63: 3
B64: Maintenance Contracts | D64: A2 | E64: =SUMIF('Inc Stmt'!$B$18:$B$97,B64,'Inc Stmt'!$X$18:$X$97) -> 0 | G64: 3
B65: Management Fees | D65: A2 | E65: =SUMIF('Inc Stmt'!$B$18:$B$97,B65,'Inc Stmt'!$X$18:$X$97) -> 1033 | G65: 3
B66: Miscellaneous Expense | D66: A2 | E66: =SUMIF('Inc Stmt'!$B$18:$B$97,B66,'Inc Stmt'!$X$18:$X$97) -> 0 | G66: 3
B67: Non-Deductible Entertainment | D67: A2 | E67: =SUMIF('Inc Stmt'!$B$18:$B$97,B67,'Inc Stmt'!$X$18:$X$97) -> 0 | G67: 3
B68: Office Relocation | D68: A2 | E68: =SUMIF('Inc Stmt'!$B$18:$B$97,B68,'Inc Stmt'!$X$18:$X$97) -> 0 | G68: 3
B69: Office Supplies | D69: A2 | E69: =SUMIF('Inc Stmt'!$B$18:$B$97,B69,'Inc Stmt'!$X$18:$X$97) -> 6780.18266 | G69: 3
B70: Postage & Mail | D70: A2 | E70: =SUMIF('Inc Stmt'!$B$18:$B$97,B70,'Inc Stmt'!$X$18:$X$97) -> 0 | G70: 3
B71: Professional Consulting | D71: A2 | E71: =SUMIF('Inc Stmt'!$B$18:$B$97,B71,'Inc Stmt'!$X$18:$X$97) -> 162.0167647 | G71: 3
B72: Recruitment | D72: A2 | E72: =SUMIF('Inc Stmt'!$B$18:$B$97,B72,'Inc Stmt'!$X$18:$X$97) -> 6150.756912 | G72: 3
B73: Rent - Building | D73: P3 | E73: ='Tax Package'!D401/'Inc Stmt'!M2 -> 78125.86013 | G73: 3
B74: Repairs & Maintenance | D74: A2 | E74: =SUMIF('Inc Stmt'!$B$18:$B$97,B74,'Inc Stmt'!$X$18:$X$97) -> 0 | G74: 3
B75: Research & Development | D75: A2 | E75: =SUMIF('Inc Stmt'!$B$18:$B$97,B75,'Inc Stmt'!$X$18:$X$97) -> 0 | G75: 3
B76: Security Services | D76: A2 | E76: =SUMIF('Inc Stmt'!$B$18:$B$97,B76,'Inc Stmt'!$X$18:$X$97) -> 1407.481546 | G76: 3
B77: Subscriptions | D77: A2 | E77: =SUMIF('Inc Stmt'!$B$18:$B$97,B77,'Inc Stmt'!$X$18:$X$97) -> 0 | G77: 3
B78: Taxes - Other | D78: A2 | E78: =SUMIF('Inc Stmt'!$B$18:$B$97,B78,'Inc Stmt'!$X$18:$X$97) -> 13463 | G78: 3
B79: Taxes - Payroll | D79: A2 | E79: =SUMIF('Inc Stmt'!$B$18:$B$97,B79,'Inc Stmt'!$X$18:$X$97) -> 33054.29751 | G79: 3
B80: Taxes - Property | D80: A2 | E80: =SUMIF('Inc Stmt'!$B$18:$B$97,B80,'Inc Stmt'!$X$18:$X$97) -> 0 | G80: 3
B81: Taxes - Sales & Use | D81: A2 | E81: =SUMIF('Inc Stmt'!$B$18:$B$97,B81,'Inc Stmt'!$X$18:$X$97) -> 0 | G81: 3
B82: Telephone & Telegraph | D82: A2 | E82: =SUMIF('Inc Stmt'!$B$18:$B$97,B82,'Inc Stmt'!$X$18:$X$97) -> 16943.32541 | G82: 3
B83: Travel | D83: A2 | E83: =SUMIF('Inc Stmt'!$B$18:$B$97,B83,'Inc Stmt'!$X$18:$X$97) -> 5912.673589 | G83: 3
B84: Utilities | D84: A2 | E84: =SUMIF('Inc Stmt'!$B$18:$B$97,B84,'Inc Stmt'!$X$18:$X$97) -> 6639.059177 | G84: 3
B85: Reorganizational Charges - Scanner | D85: A3 | E85: =SUMIF('Inc Stmt'!$B$18:$B$97,B85,'Inc Stmt'!$X$18:$X$97) -> 0 | G85: 3
B87: TOTAL OPERATING EXPENSES | D87: A2 | E87: =SUM(E11:E86) -> 558880.0774 | H87: =E87-'Inc Stmt'!X105 -> 0 | I87: Check
A89: TOTAL SALARIES & WAGES (0) | C89: 0 | E89: =SUMIF($G$11:$G$85,C89,$E$11:$E$85) -> 92446.89103
A90: TOTAL EXEMPT COSTS (1) | C90: 1 | E90: =SUMIF($G$11:$G$85,C90,$E$11:$E$85) -> 265103.8729
A91: TOTAL CAPITALIZED COSTS (2) | C91: 2 | E91: =SUMIF($G$11:$G$85,C91,$E$11:$E$85) -> 0 | F91: D1
A92: TOTAL MIXED COSTS (3) | C92: 3 | E92: =SUMIF($G$11:$G$85,C92,$E$11:$E$85) -> 201329.3135 | F92: D1
D94: A2 | E94: =SUM(E89:E92) -> 558880.0774

Sheet M-1 Adjustments (hidden)
A1: Back to Index
A2: =+'263A Sal'!A1 -> Tahiti
A3: M-1 Calculations
A4: 2010-12-31
B7: Vacation Accrual
B9: Vacation Accrual - CY | D9: FC | F9: ='Tax Package'!D29 -> 0
B10: Amount Paid by 3-15 | D10: FC | F10: =+'Tax Package'!E37 -> 0
F11: =F9-F10 -> 0
B12: Vacation Accrual - PY | D12: FC | E12: PY | F12: 0
B13: M-1: (Deduction)/Addback | D13: FC | F13: =F11-F12 -> 0
E14: W.A. Exchange Rate | F14: ='Inc Stmt'!M2 -> 7.993
B15: M-1: (Deduction)/Addback | D15: US$ | F15: =F13/F14 -> 0
B18: Bad Debt Reserve
B20: Bad Debt Reserve - CY | D20: FC | F20: =+'Tax Package'!D30 -> 0
B21: Negative Commission Included - CY | D21: FC
B22: Net Bad Debt Reserve - CY | D22: FC | F22: =SUM(F20:F21) -> 0
B24: Bad Debt Reserve - PY | D24: FC | E24: PY | F24: 0
B25: Negative Commission Included - PY | D25: FC
B26: Net Bad Debt Reserve - PY | D26: FC | F26: =SUM(F24:F25) -> 0
B28: M-1: (Deduction)/Addback | D28: FC | F28: =F22-F26 -> 0
E29: W.A. Exchange Rate | F29: =F14 -> 7.993
B30: M-1: (Deduction)/Addback | D30: US$ | F30: =F28/F29 -> 0 | G30: AJE 5
B33: Sales Returns and Allowances
B35: Sales Returns and Allowances - CY | D35: FC | F35: =+'Tax Package'!D31 -> 0
B36: Sales Returns and Allowances - PY | D36: FC | E36: PY
B37: M-1: (Deduction)/Addback | D37: FC | F37: =F35-F36 -> 0
E38: W.A. Exchange Rate | F38: =F29 -> 7.993
B39: M-1: (Deduction)/Addback | D39: US$ | F39: =F37/F38 -> 0
B42: Reserve for Retirement
B44: Reserve for Retirement CY | D44: FC | F44: =+'Tax Package'!D32 -> 0
B45: Reserve for Retirement PY | D45: FC | F45: 0
B46: M-1: (Deduction)/Addback | D46: FC | F46: =F44-F45 -> 0
E47: W.A. Exchange Rate | F47: =F38 -> 7.993
B48: M-1: (Deduction)/Addback | D48: US$ | F48: =F46/F47 -> 0 | G48: AJE 4
B51: Accrued Bonuses
B53: Accrued Bonuses - CY | D53: FC | F53: =+'Tax Package'!D33 -> 0
B54: Amount Paid by 3-15 | D54: FC | F54: =+'Tax Package'!E38 -> 0
F55: =F53-F54 -> 0
B56: Accrued Bonuses - PY | D56: FC | E56: PY | F56: 0
B57: M-1: (Deduction)/Addback | D57: FC | F57: =F55-F56 -> 0
E58: W.A. Exchange Rate | F58: =F47 -> 7.993
B59: M-1: (Deduction)/Addback | D59: US$ | F59: =F57/F58 -> 0
B62: Inventory Reserve
B64: Inventory Reserve - CY | D64: FC | F64: =+'Tax Package'!D34 -> 0
B65: Inventory Reserve - PY | D65: FC | E65: PY | F65: 0
B66: M-1: (Deduction)/Addback | D66: FC | F66: =F64-F65 -> 0
E67: W.A. Exchange Rate | F67: =F58 -> 7.993
B68: M-1: (Deduction)/Addback | D68: US$ | F68: =F66/F67 -> 0
B71: General Reserve
B73: General Reserve CY | D73: FC | F73: ='Tax Package'!D35-'Tax Package'!D43 -> 0
B74: General Reserve PY | D74: FC | E74: PY | F74: 0
B75: M-1: (Deduction)/Addback | D75: FC | F75: =F73-F74 -> 0
E76: W.A. Exchange Rate | F76: =F67 -> 7.993
B77: M-1: (Deduction)/Addback | D77: US$ | F77: =F75/F76 -> 0 | G77: AJE 6
B80: Inventory Adjustment
B82: Inventory Written Off CY | D82: FC | F82: 0
B83: Inventory Written Off PY | D83: FC | E83: PY | F83: 0
B84: M-1: (Deduction)/Addback | D84: FC | F84: =F82-F83 -> 0
D85: W.A. Exchange Rate | F85: =F76 -> 7.993
B86: M-1: (Deduction)/Addback | D86: US$ | F86: =F84/F85 -> 0 | G86: AJE 15

Sheet Tax Package (hidden)
A2: U.S. Tax Reporting Package
A3: For the Year Ending 12/31/13
A4: Nu Skin Tahiti
A7: In order to prepare the U.S. Income Tax provision portion for the year ended 12/31/13 financials, we need you to provide the
A8: following information. We understand that these numbers you are providing for the JanTAry deadline may be estimates due to the fact that your audits
A9: may not yet be completed. Therefore, your best estimate is acceptable at this time. However, in order to prepare the actTAl
A10: U.S. tax returns, we will need your final audited numbers by FebrTAry 15, 2014.
A12: Please complete the highlighted portions and email them back to us by JanTAry 10, 2010. These items are necessary in
A13: order to complete the US Income Tax provision portion of the 12/31/10 year-end financials for public release.
A15: The completed spreadsheet is needed in order to prepare the 12/31/10 U.S. Corporate Consolidated Tax Return.
A16: We will need the remaining items emailed or faxed back to us by FebTAry 15, 2011. These figures should be the
A17: final audited numbers for the year.
A19: Please type the required information directly on these pages. You may return the information to me by Email or Fax.
A20: My Email Address is krkimba@nuskin.com. Our Fax number is 1-801-345-6099.
A23: Reserves/AccrTAls:
B24: Please provide the account balance at 12/31/10 for the following accounts: Also provide the Balance Sheet Account number that
C25: contains the amount as well as the Income Statement Account that was adjusted to book the amount.
F27: Balance Sheet | G27: Income Statement
D28: Amount | F28: Account | G28: Account used.
C29: Vacation AccrTAl | F29: - | G29: -
C30: Bad Debt Reserve | F30: - | G30: -
C31: Sales Returns and Allowances | F31: - | G31: -
C32: Reserve for Retirement/Provision for Severance | F32: - | G32: -
C33: Accrued Bonuses | F33: - | G33: -
C34: Inventory Reserves | F34: - | G34: -
C35: General Reserves/AccrTAls | D35: 196128.91 | F35: 265100 | G35: 600002
B37: What amount of the Vacation AccrTAl will be paid by March 15, 2014
B38: What amount of the Accrued Bonus will be paid by March 15, 2014
B41: Please provide the detail for any General AccrTAls/Reserves accounts (this number should tie to General Reserves/AccrTAls listed above):
C43: Accrued Commissions for December 2010 - Local | D43: 196128.91
C48: Provide a breakdown of account 390, Other Current Liabilities:
C50: no
D56: Amount | E56: B/S Account #
B57: Provide amount of Deferred Revenue | D57: - | E57: -
B58: Please explain why revenue is being deferred:
B62: What was the Deferred Revenue amount that ran through the current year Income Statement? | G62: -
B63: What income statement account was the deferred revenue booked in? | G63: -
A67: DIVIDEND Remittances: ONLY INCLUDE DIVIDENDS TO NSE. NOT I/C CHARGES TO NSI OR NSIMG.
B68: Please provide the following information regarding each remittance separately:
C70: Date made | D70: - | E70: - | F70: -
C71: Amount remitted (in local currency) - Total | D71: - | E71: - | F71: -
C72: Amount of tax withheld | D72: - | E72: - | F72: -
C73: Amount remitted after tax withheld | D73: - | E73: - | F73: -
C75: Date made | D75: - | E75: - | F75: -
C76: Amount remitted (in local currency) - Total | D76: - | E76: - | F76: -
C77: Amount of tax withheld | D77: - | E77: - | F77: -
C78: Amount remitted after tax withheld | D78: - | E78: - | F78: -
B80: Note: remittance can be in the form of cash, property, intangible property, liability assumed
A82: Contributions/Loans
B83: Please provide the following information regarding each capital contribution:
C85: Date made | D85: - | E85: - | F85: -
C86: Amount remitted (in local currency) | D86: - | E86: - | F86: -
C87: From whom | D87: - | E87: - | F87: -
B89: Note: contribution/loan can be in the form of cash, property, intangible property, liability paid
A91: Income Statement Items
C92: Provide description and amount of any penalties paid:
C94: Description | D94: Amount | E94: I/S Account
C95: no | D95: - | E95: -
D96: - | E96: -
D97: - | E97: -
H99: 12/31/13 Balance
C100: Provide the balance of any inventory written off in 2010 & in prior years that have not been disposed of: | H100: -
C103: Provide description and amount of any dues and donations paid:
C105: Description | D105: Amount
C107: Ukrainian Direct Selling Association (membership charges) | D107: 80000
C111: Provide expected filing date of your corporate income tax return (we will need a copy of the corporate income tax return
C112: once it is filed):
C114: 2011-02-10
C116: Provide description and amount of all amortization expenses:
C118: Description | D118: Cost | E118: Amort life | F118: 2010 book amort. | G118: Date Aquired
C119: 720027 Depreciation Furniture | D119: 55374.43 | E119: 48 | F119: 11172 | G119: 2011-2009
C120: 720028 Depreciation Comp | D120: 83073.24 | E120: 24 | F120: 19094 | G120: 2011-2010
C121: 720029 Depreciation Lease | D121: 4155.51 | E121: 60 | F121: 1898 | G121: 2011-2009
C122: 720047 Scanner Depr. | D122: 224565.92 | E122: 180 | F122: 86499 | G122: 2011-2010
C123: TOTAL | D123: 367169.1 | F123: 118663
C125: Provide description and amount of all interest earned (interco., bank, investment, tax-exempt): | G125: no
C128: Provide a breakdown of account 850, Miscellaneous Expense: | G128: no
C132: Provide a breakdown of account 914, Miscellaneous Income: | G132: no
C136: Please verify whether account 960, Transaction Gain/(Loss), contains any unrealized amounts: | G136: no
C139: Please verify whether account 961, FC Unrealized Gain/(Loss), contains and realized amounts: | G139: 29467
C142: Please provide the total of fixed asset additions during 2010 (including purchase date, purchase price, qTAntity, & description):
C144: Asset Description | D144: Asset # | E144: QTAntity | F144: Cap.date | G144: Purchase Price
C145: Laptop Dell Latitude E6430 | D145: 400015 | E145: 1 | F145: 2010-05-31 | G145: 11250
C146: Pharmanex biophotonic scanner S2 | D146: 2100031 | E146: 1 | F146: 2010-06-18 | G146: 361.04
C147: Pharmanex biophotonic scanner S2 | D147: 2100032 | E147: 1 | F147: 2010-06-18 | G147: 361.04
C148: Pharmanex biophotonic scanner S2 | D148: 2100033 | E148: 1 | F148: 2010-06-18 | G148: 361.04
C149: Pharmanex biophotonic scanner S2 | D149: 2100034 | E149: 1 | F149: 2010-06-18 | G149: 361.04
C150: Pharmanex biophotonic scanner S2 | D150: 2100035 | E150: 1 | F150: 2010-06-18 | G150: 361.04
C151: Pharmanex biophotonic scanner S2 | D151: 2100036 | E151: 1 | F151: 2010-06-18 | G151: 361.04
C152: Pharmanex biophotonic scanner S2 | D152: 2100037 | E152: 1 | F152: 2010-06-18 | G152: 361.04
C153: Pharmanex biophotonic scanner S2 | D153: 2100038 | E153: 1 | F153: 2010-06-18 | G153: 361.04
C154: Pharmanex biophotonic scanner S2 | D154: 2100039 | E154: 1 | F154: 2010-06-18 | G154: 361.04
C155: Pharmanex biophotonic scanner S2 | D155: 2100040 | E155: 1 | F155: 2010-06-18 | G155: 361.08
C156: TOTAL | E156: 11 | G156: 14860.44
C158: Please provide the total of fixed asset disposals during 2010 (including proceeds received or trade-in value, date disposed,
C159: date purchased, purchase price, description, & asset number):
I160: Proceeds /
C161: Asset Descriptions | D161: Asset # | E161: QTAntity | F161: Date Purchased | G161: Purchase Price | H161: Disposal Date | I161: Trade in amount
C164: Please attach a spreadsheet that contains a detailed listing of all fixed assets as of 12/31/13. This should tie to your fixed asset
C165: roll forward schedule.
C166: Asset Class | D166: Asset | E166: Cap.date | F166: Asset description | G166: Acquis.val. | H166: Accum.dep. | I166: Book val. | J166: Crcy
C167: TA13 Leasehold Improv. TA | D167: 1300000 | E167: 40663 | G167: 5037.5 | H167: -895.55 | I167: 4141.95 | J167: TAH
C168: TA13 Leasehold Improv. TA | D168: 1300000 | E168: 40697 | G168: 5421 | H168: -903.5 | I168: 4517.5 | J168: TAH
C169: TA13 Leasehold Improv. TA | D169: 1300000 | E169: 40752 | G169: 8185 | H169: -1318.7 | I169: 6866.3 | J169: TAH
C170: TA13 Leasehold Improv. TA | D170: 1300000 | E170: 40905 | G170: 1625 | H170: -216.66 | I170: 1408.34 | J170: TAH
C171: TA13 Leasehold Improv. TA | D171: 1300000 | E171: 41068 | G171: 8200 | H171: -820 | I171: 7380 | J171: TAH
C172: TA13 Leasehold Improv. TA | G172: 28468.5 | H172: -4154.41 | I172: 24314.09 | J172: TAH
C173: TA05 Furniture & Fixt. TA | D173: 500000 | E173: 40634 | G173: 2350 | H173: -1566.67 | I173: 783.33 | J173: TAH
C174: TA05 Furniture & Fixt. TA | D174: 500001 | E174: 40634 | G174: 1500 | H174: -1000 | I174: 500 | J174: TAH
C175: TA05 Furniture & Fixt. TA | D175: 500002 | E175: 40634 | G175: 1820.48 | H175: -1213.65 | I175: 606.83 | J175: TAH
C176: TA05 Furniture & Fixt. TA | D176: 500003 | E176: 40634 | G176: 1891.66 | H176: -1261.11 | I176: 630.55 | J176: TAH
C177: TA05 Furniture & Fixt. TA | D177: 500004 | E177: 40634 | G177: 1810 | H177: -1206.67 | I177: 603.33 | J177: TAH
C178: TA05 Furniture & Fixt. TA | D178: 500005 | E178: 40634 | G178: 1810 | H178: -1206.67 | I178: 603.33 | J178: TAH
C179: TA05 Furniture & Fixt. TA | D179: 500006 | E179: 40634 | G179: 1050 | H179: -700 | I179: 350 | J179: TAH
C180: TA05 Furniture & Fixt. TA | D180: 500007 | E180: 40634 | G180: 1375 | H180: -916.67 | I180: 458.33 | J180: TAH
C181: TA05 Furniture & Fixt. TA | D181: 500008 | E181: 40689 | G181: 6800 | H181: -4391.67 | I181: 2408.33 | J181: TAH
C182: TA05 Furniture & Fixt. TA | D182: 500009 | E182: 40689 | G182: 2135 | H182: -1378.85 | I182: 756.15 | J182: TAH
C183: TA05 Furniture & Fixt. TA | D183: 500010 | E183: 40689 | G183: 2135 | H183: -1378.85 | I183: 756.15 | J183: TAH
C184: TA05 Furniture & Fixt. TA | D184: 500011 | E184: 40689 | G184: 2135 | H184: -1378.85 | I184: 756.15 | J184: TAH
C185: TA05 Furniture & Fixt. TA | D185: 500012 | E185: 40689 | G185: 2135 | H185: -1378.85 | I185: 756.15 | J185: TAH
C186: TA05 Furniture & Fixt. TA | D186: 500013 | E186: 40711 | G186: 1075 | H186: -671.88 | I186: 403.12 | J186: TAH
C187: TA05 Furniture & Fixt. TA | D187: 500014 | E187: 40730 | G187: 2100 | H187: -1268.75 | I187: 831.25 | J187: TAH
C188: TA05 Furniture & Fixt. TA | D188: 500015 | E188: 40730 | G188: 1380 | H188: -833.75 | I188: 546.25 | J188: TAH
C189: TA05 Furniture & Fixt. TA | D189: 500016 | E189: 40738 | G189: 2700 | H189: -1631.25 | I189: 1068.75 | J189: TAH
C190: TA05 Furniture & Fixt. TA | D190: 500017 | E190: 40905 | G190: 3125 | H190: -1562.5 | I190: 1562.5 | J190: TAH
C191: TA05 Furniture & Fixt. TA | D191: 500018 | E191: 40966 | G191: 3216.67 | H191: -1474.31 | I191: 1742.36 | J191: TAH
C192: TA05 Furniture & Fixt. TA | D192: 500019 | E192: 40966 | G192: 2145.83 | H192: -983.51 | I192: 1162.32 | J192: TAH
C193: TA05 Furniture & Fixt. TA | G193: 44689.64 | H193: -27404.46 | I193: 17285.18 | J193: TAH
C194: TA04 Computers & Soft. TA | D194: 400000 | E194: 40493 | G194: 3389.16 | H194: -3389.16 | I194: 0 | J194: TAH
C195: TA04 Computers & Soft. TA | D195: 400001 | E195: 40634 | G195: 3250 | H195: -2888.89 | I195: 361.11 | J195: TAH
C196: TA04 Computers & Soft. TA | D196: 400002 | E196: 40634 | G196: 10933.5 | H196: -10933.5 | I196: 0 | J196: TAH
C197: TA04 Computers & Soft. TA | D197: 400003 | E197: 40634 | G197: 10933.5 | H197: -10933.5 | I197: 0 | J197: TAH
C198: TA04 Computers & Soft. TA | D198: 400004 | E198: 40634 | G198: 5929.94 | H198: -5929.94 | I198: 0 | J198: TAH
C199: TA04 Computers & Soft. TA | D199: 400005 | E199: 40634 | G199: 5950 | H199: -5950 | I199: 0 | J199: TAH
C200: TA04 Computers & Soft. TA | D200: 400006 | E200: 40634 | G200: 5950 | H200: -5950 | I200: 0 | J200: TAH
C201: TA04 Computers & Soft. TA | D201: 400007 | E201: 40634 | G201: 1841.65 | H201: -1841.65 | I201: 0 | J201: TAH
C202: TA04 Computers & Soft. TA | D202: 400008 | E202: 40634 | G202: 1841.65 | H202: -1841.65 | I202: 0 | J202: TAH
C203: TA04 Computers & Soft. TA | D203: 400009 | E203: 40634 | G203: 5595.87 | H203: -5595.87 | I203: 0 | J203: TAH
C204: TA04 Computers & Soft. TA | D204: 400010 | E204: 40634 | G204: 2997.52 | H204: -2997.52 | I204: 0 | J204: TAH
C205: TA04 Computers & Soft. TA | D205: 400011 | E205: 40634 | G205: 2997.52 | H205: -2997.52 | I205: 0 | J205: TAH
C206: TA04 Computers & Soft. TA | D206: 400012 | E206: 40695 | G206: 12505.84 | H206: -12505.84 | I206: 0 | J206: TAH
C207: TA04 Computers & Soft. TA | D207: 400013 | E207: 40695 | G207: 1397.5 | H207: -1397.5 | I207: 0 | J207: TAH
C208: TA04 Computers & Soft. TA | D208: 400014 | E208: 40812 | G208: 5733.33 | H208: -5733.33 | I208: 0 | J208: TAH
C209: TA04 Computers & Soft. TA | D209: 400015 | E209: 41425 | G209: 11250 | H209: -2187.5 | I209: 9062.5 | J209: TAH
C210: TA04 Computers & Soft. TA | G210: 92496.98 | H210: -83073.37 | I210: 9423.61 | J210: TAH
C211: TA06 LVA - TA | D211: 600000 | E211: 40634 | F211: Description | G211: 735 | H211: -735 | I211: 0 | J211: TAH
C212: TA06 LVA - TA | D212: 600001 | E212: 40634 | F212: Description | G212: 735 | H212: -735 | I212: 0 | J212: TAH
C213: TA06 LVA - TA | D213: 600002 | E213: 40634 | F213: Description | G213: 735 | H213: -735 | I213: 0 | J213: TAH
C214: TA06 LVA - TA | D214: 600003 | E214: 40634 | F214: Description | G214: 830 | H214: -830 | I214: 0 | J214: TAH
C215: TA06 LVA - TA | D215: 600004 | E215: 40634 | F215: Description | G215: 830 | H215: -830 | I215: 0 | J215: TAH
C216: TA06 LVA - TA | D216: 600005 | E216: 40634 | F216: Description | G216: 830 | H216: -830 | I216: 0 | J216: TAH
C217: TA06 LVA - TA | D217: 600006 | E217: 40634 | F217: Description | G217: 830 | H217: -830 | I217: 0 | J217: TAH
C218: TA06 LVA - TA | D218: 600007 | E218: 40634 | F218: Description | G218: 830 | H218: -830 | I218: 0 | J218: TAH
C219: TA06 LVA - TA | D219: 600008 | E219: 40634 | F219: Description | G219: 830 | H219: -830 | I219: 0 | J219: TAH
C220: TA06 LVA - TA | D220: 600009 | E220: 40634 | F220: Description | G220: 830 | H220: -830 | I220: 0 | J220: TAH
C221: TA06 LVA - TA | D221: 600010 | E221: 40634 | F221: Description | G221: 830 | H221: -830 | I221: 0 | J221: TAH
C222: TA06 LVA - TA | D222: 600011 | E222: 40634 | F222: Description | G222: 830 | H222: -830 | I222: 0 | J222: TAH
C223: TA06 LVA - TA | D223: 600012 | E223: 40634 | F223: Description | G223: 130 | H223: -130 | I223: 0 | J223: TAH
C224: TA06 LVA - TA | D224: 600013 | E224: 40634 | F224: Description | G224: 130 | H224: -130 | I224: 0 | J224: TAH
C225: TA06 LVA - TA | D225: 600014 | E225: 40634 | F225: Description | G225: 130 | H225: -130 | I225: 0 | J225: TAH
C226: TA06 LVA - TA | D226: 600015 | E226: 40634 | F226: Description | G226: 130 | H226: -130 | I226: 0 | J226: TAH
C227: TA06 LVA - TA | D227: 600016 | E227: 40634 | F227: Description | G227: 130 | H227: -130 | I227: 0 | J227: TAH
C228: TA06 LVA - TA | D228: 600017 | E228: 40634 | F228: Description | G228: 130 | H228: -130 | I228: 0 | J228: TAH
C229: TA06 LVA - TA | D229: 600018 | E229: 40634 | F229: Description | G229: 130 | H229: -130 | I229: 0 | J229: TAH
C230: TA06 LVA - TA | D230: 600019 | E230: 40634 | F230: Description | G230: 130 | H230: -130 | I230: 0 | J230: TAH
C231: TA06 LVA - TA | D231: 600020 | E231: 40634 | F231: Description | G231: 130 | H231: -130 | I231: 0 | J231: TAH
C232: TA06 LVA - TA | D232: 600021 | E232: 40634 | F232: Description | G232: 130 | H232: -130 | I232: 0 | J232: TAH
C233: TA06 LVA - TA | D233: 600022 | E233: 40634 | F233: Description | G233: 130 | H233: -130 | I233: 0 | J233: TAH
C234: TA06 LVA - TA | D234: 600023 | E234: 40634 | F234: Description | G234: 130 | H234: -130 | I234: 0 | J234: TAH
C235: TA06 LVA - TA | D235: 600024 | E235: 40634 | F235: Description | G235: 130 | H235: -130 | I235: 0 | J235: TAH
C236: TA06 LVA - TA | D236: 600025 | E236: 40634 | F236: Description | G236: 130 | H236: -130 | I236: 0 | J236: TAH
C237: TA06 LVA - TA | D237: 600026 | E237: 40634 | F237: Description | G237: 130 | H237: -130 | I237: 0 | J237: TAH
C238: TA06 LVA - TA | D238: 600027 | E238: 40634 | F238: Description | G238: 130 | H238: -130 | I238: 0 | J238: TAH
C239: TA06 LVA - TA | D239: 600028 | E239: 40634 | F239: Description | G239: 130 | H239: -130 | I239: 0 | J239: TAH
C240: TA06 LVA - TA | D240: 600029 | E240: 40634 | F240: Description | G240: 130 | H240: -130 | I240: 0 | J240: TAH
C241: TA06 LVA - TA | D241: 600030 | E241: 40634 | F241: Description | G241: 130 | H241: -130 | I241: 0 | J241: TAH
C242: TA06 LVA - TA | D242: 600031 | E242: 40634 | F242: Description | G242: 130 | H242: -130 | I242: 0 | J242: TAH
C243: TA06 LVA - TA | D243: 600032 | E243: 40634 | F243: Description | G243: 130 | H243: -130 | I243: 0 | J243: TAH
C244: TA06 LVA - TA | D244: 600033 | E244: 40634 | F244: Description | G244: 130 | H244: -130 | I244: 0 | J244: TAH
C245: TA06 LVA - TA | D245: 600034 | E245: 40634 | F245: Description | G245: 130 | H245: -130 | I245: 0 | J245: TAH
C246: TA06 LVA - TA | D246: 600035 | E246: 40634 | F246: Description | G246: 130 | H246: -130 | I246: 0 | J246: TAH
C247: TA06 LVA - TA | D247: 600036 | E247: 40634 | F247: Description | G247: 130 | H247: -130 | I247: 0 | J247: TAH
C248: TA06 LVA - TA | D248: 600037 | E248: 40634 | F248: Description | G248: 130 | H248: -130 | I248: 0 | J248: TAH
C249: TA06 LVA - TA | D249: 600038 | E249: 40634 | F249: Description | G249: 130 | H249: -130 | I249: 0 | J249: TAH
C250: TA06 LVA - TA | D250: 600039 | E250: 40634 | F250: Description | G250: 130 | H250: -130 | I250: 0 | J250: TAH
C251: TA06 LVA - TA | D251: 600040 | E251: 40634 | F251: Description | G251: 130 | H251: -130 | I251: 0 | J251: TAH
C252: TA06 LVA - TA | D252: 600041 | E252: 40634 | F252: Description | G252: 130 | H252: -130 | I252: 0 | J252: TAH
C253: TA06 LVA - TA | D253: 600042 | E253: 40634 | F253: Description | G253: 130 | H253: -130 | I253: 0 | J253: TAH
C254: TA06 LVA - TA | D254: 600043 | E254: 40634 | F254: Description | G254: 130 | H254: -130 | I254: 0 | J254: TAH
C255: TA06 LVA - TA | D255: 600044 | E255: 40634 | F255: Description | G255: 130 | H255: -130 | I255: 0 | J255: TAH
C256: TA06 LVA - TA | D256: 600045 | E256: 40634 | F256: Description | G256: 130 | H256: -130 | I256: 0 | J256: TAH
C257: TA06 LVA - TA | D257: 600046 | E257: 40634 | F257: Description | G257: 130 | H257: -130 | I257: 0 | J257: TAH
C258: TA06 LVA - TA | D258: 600047 | E258: 40634 | F258: Description | G258: 130 | H258: -130 | I258: 0 | J258: TAH
C259: TA06 LVA - TA | D259: 600048 | E259: 40634 | F259: Description | G259: 130 | H259: -130 | I259: 0 | J259: TAH
C260: TA06 LVA - TA | D260: 600049 | E260: 40634 | F260: Description | G260: 130 | H260: -130 | I260: 0 | J260: TAH
C261: TA06 LVA - TA | D261: 600050 | E261: 40634 | F261: Description | G261: 130 | H261: -130 | I261: 0 | J261: TAH
C262: TA06 LVA - TA | D262: 600051 | E262: 40634 | F262: Description | G262: 130 | H262: -130 | I262: 0 | J262: TAH
C263: TA06 LVA - TA | D263: 600052 | E263: 40634 | F263: Description | G263: 130 | H263: -130 | I263: 0 | J263: TAH
C264: TA06 LVA - TA | D264: 600053 | E264: 40634 | F264: Description | G264: 130 | H264: -130 | I264: 0 | J264: TAH
C265: TA06 LVA - TA | D265: 600054 | E265: 40634 | F265: Description | G265: 130 | H265: -130 | I265: 0 | J265: TAH
... 159 more rows

Sheet Intercompany Link (hidden)
B2: Nu Skin Enterprises, Inc. | E2: Please do not change format.
B3: Market: | C3: Nu Skin Tahiti
B4: Currency: | C4: TAH
B5: As of: | C5: As 2010
B7: Intercompany Receivables
D8: Local
D9: Currency
D10: Receivable
B11: No. | C11: Code | D11: Amount | E11: Receivable From
B13: 1 | C13: A&E-01 | D13: 0 | E13: Nu Skin Europe (NSEP-Europe)
B14: 2 | C14: A&E-02 | D14: 0 | E14: Nu Skin Russia
B15: 3 | C15: A&E-03 | D15: 0 | E15: Nu Skin Israel
B16: 4 | C16: A&E-04 | D16: 0 | E16: Nu Skin Brazil
B17: 5 | C17: A&E-05 | D17: 0 | E17: Nu Skin Mexico
B18: 6 | C18: A&E-06 | D18: 0 | E18: Nu Skin Central America
B19: 7 | C19: A&E-07 | D19: 0 | E19: Nu Skin USA
B20: 8 | C20: A&E-08 | D20: 0 | E20: Nu Skin Canada
B21: 9 | C21: A&E-09 | D21: 0 | E21: Nu Skin Venezuala
B22: 10 | C22: A&E-10 | D22: 0 | E22: Nu Skin South Africa
B23: 11 | C23: A&E-11 | D23: 0 | E23: Nu Skin Colombia
B24: 12 | C24: A&E-12 | D24: 0 | E24: Nu Skin Tahiti
B25: 13 | C25: A&E-13 | D25: 0 | E25: Nu Skin Argentina
B28: 14 | C28: ASI-01 | D28: 0 | E28: Nu Skin Hong Kong
B29: 15 | C29: ASI-02 | D29: 0 | E29: Nu Skin Taiwan
B30: 16 | C30: ASI-03 | D30: 0 | E30: Nu Skin China
B31: 17 | C31: ASI-04 | D31: 0 | E31: Nu Skin Japan
B32: 18 | C32: ASI-05 | D32: 0 | E32: Nu Skin Enterprises Products (NSEP) [9315]
B33: 19 | C33: ASI-06 | D33: 0 | E33: Nu Skin Korea
B34: 20 | C34: ASI-07 | D34: 0 | E34: Nu Skin India
B37: 21 | C37: COR-01 | D37: 0 | E37: Nu Skin International (NSI)
B38: 22 | C38: COR-02 | D38: 137888.2 | E38: Nu Skin Enterprises Products (NSEP) [9000]
B39: 23 | C39: COR-03 | D39: 0 | E39: Pharmanex
B40: 24 | C40: COR-04 | D40: 0 | E40: Nu Skin Enterprises (NSE)
B41: 25 | C41: COR-05 | D41: 0 | E41: Nu Skin International Management Group (NSIMG)
B42: 26 | C42: COR-06 | D42: 0 | E42: Nu Skin Enterprises Asia Products (Singapore)
B45: 27 | C45: SEA-01 | D45: 0 | E45: Nu Skin Australia / New Zealand
B46: 28 | C46: SEA-02 | D46: 0 | E46: Nu Skin Thailand
B47: 29 | C47: SEA-03 | D47: 0 | E47: Nu Skin Philippines
B48: 30 | C48: SEA-04 | D48: 0 | E48: Nu Skin Singapore
B49: 31 | C49: SEA-05 | D49: 0 | E49: Nu Skin Indonesia
B50: 32 | C50: SEA-06 | D50: 0 | E50: Nu Skin Malaysia
B51: 33 | C51: SEA-07 | D51: 0 | E51: Nu Skin Brunei
B52: 34 | C52: SEA-08 | D52: 0 | E52: Nu Skin Vietnam
B55: 35 | C55: Home Office-01 | D55: 0 | E55: Home Office - Hong Kong
B56: 36 | C56: Home Office-02 | D56: 0 | E56: Home Office - Japan
B57: 37 | C57: Home Office-03 | D57: 0 | E57: Home Office - Taiwan
B58: 38 | C58: Home Office-04 | D58: 0 | E58: Home Office - Korea
B59: 39 | C59: Home Office-05 | D59: 0 | E59: Home Office - New Zealand
B60: 40 | C60: Home Office-06 | D60: 0 | E60: Home Office - Thailand
B61: 41 | C61: Home Office-07 | D61: 0 | E61: Home Office - Philippines
B62: 42 | C62: Home Office-08 | D62: 0 | E62: Home Office - Australia
D64: 137888.2 | E64: Total Intercompany Receivables
B69: Intercompany Payables
D70: Local
D71: Currency
D72: Payable
B73: No. | C73: Code | D73: Amount | E73: Payable To
B76: 1 | C76: A&E-01 | D76: 0 | E76: Nu Skin Europe (NSEP-Europe)
B77: 2 | C77: A&E-02 | D77: 0 | E77: Nu Skin Russia
B78: 3 | C78: A&E-03 | D78: 0 | E78: Nu Skin Israel
B79: 4 | C79: A&E-04 | D79: 0 | E79: Nu Skin Brazil
B80: 5 | C80: A&E-05 | D80: 0 | E80: Nu Skin Mexico
B81: 6 | C81: A&E-06 | D81: 0 | E81: Nu Skin Central America
B82: 7 | C82: A&E-07 | D82: 0 | E82: Nu Skin USA
B83: 8 | C83: A&E-08 | D83: 0 | E83: Nu Skin Canada
B84: 9 | C84: A&E-09 | D84: 0 | E84: Nu Skin Venezuala
B85: 10 | C85: A&E-10 | D85: 0 | E85: Nu Skin South Africa
B86: 11 | C86: A&E-11 | D86: 0 | E86: Nu Skin Colombia
B87: 12 | C87: A&E-12 | D87: 0 | E87: Nu Skin Tahiti
B88: 13 | C88: A&E-13 | D88: 0 | E88: Nu Skin Argentina
B91: 14 | C91: ASI-01 | D91: 0 | E91: Nu Skin Hong Kong
B92: 15 | C92: ASI-02 | D92: 0 | E92: Nu Skin Taiwan
B93: 16 | C93: ASI-03 | D93: 0 | E93: Nu Skin China
B94: 17 | C94: ASI-04 | D94: 0 | E94: Nu Skin Japan
B95: 18 | C95: ASI-05 | D95: 0 | E95: Nu Skin Enterprises Products (NSEP) [9315]
B96: 19 | C96: ASI-06 | D96: 0 | E96: Nu Skin Korea
B97: 20 | C97: ASI-07 | D97: 0 | E97: Nu Skin India
B100: 21 | C100: COR-01 | D100: 0 | E100: Nu Skin International (NSI)
B101: 22 | C101: COR-02 | D101: 3620505.64 | E101: Nu Skin Enterprises Products (NSEP) [9000]
B102: 23 | C102: COR-03 | D102: 0 | E102: Pharmanex
B103: 24 | C103: COR-04 | D103: 0 | E103: Nu Skin Enterprises (NSE)
B104: 25 | C104: COR-05 | D104: 316999.21 | E104: Nu Skin International Management Group (NSIMG)
B105: 26 | C105: COR-06 | D105: 0 | E105: Nu Skin Enterprises Asia Products (Singapore)
B108: 27 | C108: SEA-01 | D108: 0 | E108: Nu Skin Australia / New Zealand
B109: 28 | C109: SEA-02 | D109: 0 | E109: Nu Skin Thailand
B110: 29 | C110: SEA-03 | D110: 0 | E110: Nu Skin Philippines
B111: 30 | C111: SEA-04 | D111: 0 | E111: Nu Skin Singapore
B112: 31 | C112: SEA-05 | D112: 0 | E112: Nu Skin Indonesia
B113: 32 | C113: SEA-06 | D113: 0 | E113: Nu Skin Malaysia
B114: 33 | C114: SEA-07 | D114: 0 | E114: Nu Skin Brunei
B115: 34 | C115: SEA-08 | D115: 0 | E115: Nu Skin Vietnam
B118: 35 | C118: Home Office-01 | D118: 0 | E118: Home Office - Hong Kong
B119: 36 | C119: Home Office-02 | D119: 0 | E119: Home Office - Japan
B120: 37 | C120: Home Office-03 | D120: 0 | E120: Home Office - Taiwan
B121: 38 | C121: Home Office-04 | D121: 0 | E121: Home Office - Korea
B122: 39 | C122: Home Office-05 | D122: 0 | E122: Home Office - New Zealand
B123: 40 | C123: Home Office-06 | D123: 0 | E123: Home Office - Thailand
B124: 41 | C124: Home Office-07 | D124: 0 | E124: Home Office - Philippines
B125: 42 | C125: Home Office-08 | D125: 0 | E125: Home Office - Australia
D127: 3937504.85 | E127: Total Intercompany Payables

Sheet Loan Balances (hidden)
A1: Loan Balances and Interest Paid
A3: Tahiti
B4: 2006 | C4: 2007 | D4: 2008 | E4: 2009 | F4: 2010
A5: NSE | B5: USD | C5: USD | D5: USD | E5: USD | F5: USD
A6: Tahiti | B6: 25000 | C6: 255159.72 | D6: 179524.31 | E6: 0 | F6: 0
A7: Jixi | B7: 365166.67 | C7: 379166.67 | D7: 393166.67
A8: Huzhou | B8: 4685102.88 | C8: 4872672.32 | D8: 5031978
A11: NSIMG | B11: USD | C11: USD | D11: LC
A12: Canada | B12: =416845.94/0.9976 -> 417848.7771 | C12: 130195 | D12: 263792.55
A13: Europe | B13: 792777.6 | C13: 1860179.61 | D13: 0
A14: Guatemala | B14: =1859028.58/8.0155 -> 231929.2097 | C14: 257877.33 | D14: 2233702.75
A15: Mexico | B15: =12174964.36/12.3396 -> 986657.9435 | C15: 1069166.19 | D15: 11360885.95
A16: South Africa | B16: =5949118.18/6.6269 -> 897722.6426 | C16: 1387315.7 | D16: 2955575.09
A17: Venezuela | B17: =341361.49/4.2946 -> 79486.21292 | C17: 84207.75 | D17: 667572.9
B21: Loan balance | D21: Interest
B22: 2010 | D22: 2010
A23: NSIMG | B23: LC | C23: USD | D23: LC | E23: USD
A24: Tahiti | B24: 339642.61 | C24: =B24/'Bal Sheet'!N4 -> 28303.55083 | D24: 16172.29 | E24: =D24/'Bal Sheet'!N4 -> 1347.690833

Sheet Intercompany Transactions (hidden)
A1: Nu Skin Enterprises Tahiti | E1: All In
A2: Intercompany Transactions | E2: Local
A3: For the '2010 | E3: Currency
A4: (prepare only at year end) | G4: Form 5471 Calculations:
G5: WA Exchange rate | H5: ='Inc Stmt'!M2 -> 7.993
A7: Intercompany Purchases from NSEP | I7: TAH | J7: USD
B8: Products | E8: 2173259.08 | F8: A | G8: Stock in Trade Products | H8: sum of A | I8: =E8+E9+E10 -> 2176869.52 | J8: =I8/$H$5 -> 272346.9936
B9: Sales Aids | E9: 0 | F9: A | G9: Royalties & License Fees | H9: sum of B | I9: =E11+E19 -> 0 | J9: =I9/$H$5 -> 0
B10: Scanners | E10: 3610.44 | F10: A | G10: Management Fees | H10: sum of C | I10: =E26 -> 8256 | J10: =I10/$H$5 -> 1032.903791
B11: Royalties | E11: 0 | F11: B | G11: Interest | H11: sum of D | I11: =E21 -> 0 | J11: =I11/$H$5 -> 0
B12: Debit Notes
B13: Other (please specify)
D14: Total Purchased from NSEP | E14: 2176869.52
A17: Intercompany Purchases from NSI
B18: Commissions | E18: 0 | F18: B
B19: License Fees
B20: Debit Notes
B21: Other (please specify) | D21: Loan and interest | F21: D
D22: Total Purchased from NSI | E22: 0
A25: Intercompany Purchases from NSIMG
B26: Management fees | E26: 8256 | F26: C
B27: Expats Salary | E27: 0
B28: Other (please specify) | E28: 0
D29: Total Purchased from NSIMG | E29: 8256
A32: Intercompany Purchases from Other Markets (list each market separately)
B33: From China | C33: Products
B34: From China | C34: Sales Aids
B35: From China | C35: Scanners | E35: 0
D36: Total Purchased from China | E36: 0
B39: From Japan | C39: Products
B40: From Japan | C40: Sales Aids | E40: 0
B41: From Japan | C41: Scanners | E41: 0
D42: Total Purchased from Japan | E42: 0
A45: Intercompany Sales to Other Markets (list each market separately)
B46: To Taiwan | C46: Products
B47: To Taiwan | C47: Sales Aids | E47: 0
B48: To Taiwan | C48: Scanners | E48: 0
D49: Total Sold to Taiwan | E49: 0

Sheet YE Consol (hidden)
A1: Tahiti | C1: FX | D1: Balance Sheet | E1: 7.993 | F1: Updated | J1: FX Rate for: Capital Stock | L1: 0
A2: Balance Sheet | C2: FX | D2: Income Statement | E2: 7.993 | F2: 2011-01-09 | J2: Additional Paid in Capital
A3: 41639 | J3: Retained Earnings (derived) | K3: 7.532972383
D5: Current Period | E5: As a % | L5: Current Period | M5: As a %
D6: US$ | E6: of Total | L6: Local Currency | M6: of Total
A7: ASSETS
A8: Current Assets:
A9: Cash | D9: 226554.0135 | E9: 0.3973456012 | L9: 1810846.23 | M9: 0.3973456012
A10: Accounts Receivable | D10: 791.3674465 | E10: 0.001387953226 | L10: 6325.4 | M10: 0.001387953226
A11: Inventory | D11: 250620.6869 | E11: 0.4395553447 | L11: 2003211.15 | M11: 0.4395553447
A12: Prepaid Assets/Other | D12: 43243.75078 | E12: 0.07584378616 | L12: 345647.3 | M12: 0.07584378616
A13: Intercompany Receivable | D13: 17251.11973 | E13: 0.03025616909 | L13: 137888.2 | M13: 0.03025616909
A14: Related Party Receivable | D14: 0 | E14: 0 | L14: 0 | M14: 0
A15: Total Current Assets | D15: 538460.9383 | E15: 0.9443888544 | L15: 4303918.28 | M15: 0.9443888544
A17: Investment in Subsidiary | D17: 0 | E17: 0 | L17: 0 | M17: 0
A18: Fixed Assets | D18: 31707.73302 | E18: 0.05561114563 | L18: 253439.91 | M18: 0.05561114563
A19: Long-term Assets/Other | D19: 0 | E19: 0 | L19: 0 | M19: 0
A20: Total Assets | D20: 570168.6713 | E20: 1 | L20: 4557358.19 | M20: 1
A22: LIABILITIES AND STOCKHOLDERS' EQUITY
A23: Current Liabilities:
A24: Accounts Payable | D24: 0 | E24: 0 | L24: 0 | M24: 0
A25: Accrued Liabilities | D25: 34345.9452 | E25: 0.06023821884 | L25: 274527.14 | M25: 0.06023821884
A26: Intercompany Payable | D26: 492619.148 | E26: 0.8639884525 | L26: 3937504.85 | M26: 0.8639884525
A27: Related Party Payable | D27: 0 | E27: 0 | L27: 0 | M27: 0
A28: Short-term Portion of Debt | D28: 0 | E28: 0 | L28: 0 | M28: 0
A29: Total Current Liabilities | D29: 526965.0932 | E29: 0.9242266713 | L29: 4212031.99 | M29: 0.9242266713
A31: Long-term Portion of Debt | D31: 0 | E31: 0 | L31: 0 | M31: 0
A32: Long-term Liabilities/Other | D32: 0 | E32: 0 | L32: 0 | M32: 0
A33: Minority Interest | D33: 0 | E33: 0 | L33: 0 | M33: 0
A34: Total Liabilities | D34: 526965.0932 | E34: 0.9242266713 | L34: 4212031.99 | M34: 0.9242266713
A36: Stockholders' Equity
A37: Capital Stock | D37: 8500 | E37: 0.01490786925 | L37: 65110 | M37: 0.01428678574
A38: Additional Paid in Capital | D38: 0 | E38: 0 | L38: 0 | M38: 0
A39: Retained Earnings | D39: 37198.58055 | E39: 0.06524136176 | L39: 280215.88 | M39: 0.06148647271
A41: Deferred Compensation | D41: 0 | E41: 0 | L41: 0 | M41: 0
A42: Intercompany | D42: 0 | E42: 0 | L42: 0 | M42: 0
A43: Cumulative Translation Adjustment | D43: -2495.002421 | E43: -0.004375902337 | L43: 0 | M43: 0
A44: Total Stockholders' Equity | D44: 43203.57813 | E44: 0.07577332867 | L44: 345325.88 | M44: 0.07577325845
A45: Total Liabilities and Stockholders' Equity | D45: 570168.6713 | E45: 1 | L45: 4557357.87 | M45: 0.9999999298
B47: Check | D47: 0 | L47: 0.3199998904
L48: 0
A50: Tahiti
A51: Income Statement | E51: Current Period | F51: As a % | G51: As a % | N51: As a % | O51: As a %
A52: For the Year Ended December 31, 2010 | E52: in | F52: of Total | G52: of Division | M52: Current Period | N52: of Total | O52: of Division
E53: US$ | F53: Revenue | G53: Revenue | M53: Local Currency | N53: Revenue | O53: Revenue
A54: Revenue:
B55: Product Revenue, net of Promo/Discts/Rebates: | C55: NS | D55: 0.9951865887 | E55: 952950.4566 | F55: 0.9854091664 | G55: 0.9990714862 | L55: 0.9951865887 | M55: 7616933 | N55: 0.9854091664 | O55: 0.9990714862
C56: PH | D56: 0.004813411293 | E56: 0 | F56: 0 | G56: 0 | L56: 0.004813411293 | M56: 0 | N56: 0 | O56: 0
C57: BP | D57: 0 | E57: 0 | F57: 0 | L57: 0 | M57: 0 | N57: 0
B58: Sales Returns: | C58: NS | E58: -3328.037032 | F58: -0.003441394225 | G58: -0.003489107835 | M58: -26601 | N58: -0.003441394225 | O58: -0.003489107835
C59: PH | E59: 0 | F59: 0 | G59: 0 | M59: 0 | N59: 0 | O59: 0
C60: BP | E60: 0 | F60: 0 | M60: 0 | N60: 0
B61: Sales Aids Revenue: | C61: NS | E61: 4140.873264 | F61: 0.004281916697 | G61: 0.004341283828 | M61: 33098 | N61: 0.004281916697 | O61: 0.004341283828
C62: PH | E62: 4613.411735 | F62: 0.004770550432 | G62: 1 | M62: 36875 | N62: 0.004770550432 | O62: 1
C63: BP | E63: 0 | F63: 0 | M63: 0 | N63: 0
B64: Starter Kit Revenue: | C64: NS | E64: 72.813712 | F64: 7.529384003e-05 | G64: 7.633776022e-05 | M64: 582 | N64: 7.529384003e-05 | O64: 7.633776022e-05
C65: PH | E65: 0 | F65: 0 | G65: 0 | M65: 0 | N65: 0 | O65: 0
C66: BP | E66: 0 | F66: 0 | M66: 0 | N66: 0
B67: Other Revenue: | C67: NS | E67: 0 | F67: 0 | G67: 0 | M67: 0 | N67: 0 | O67: 0
C68: PH | E68: 0 | F68: 0 | G68: 0 | M68: 0 | N68: 0 | O68: 0
C69: BP | E69: 0 | F69: 0 | M69: 0 | N69: 0
C70: SS | E70: 8611.159765 | F70: 0.008904466865 | G70: 1 | M70: 68829 | N70: 0.008904466865 | O70: 1
B71: Total Revenue: | C71: NS | E71: 953836.1066 | F71: 0.9863249827 | G71: 1 | M71: 7624012 | N71: 0.9863249827 | O71: 1
C72: PH | E72: 4613.411735 | F72: 0.004770550432 | G72: 1 | M72: 36875 | N72: 0.004770550432 | O72: 1
C73: BP | E73: 0 | F73: 0 | M73: 0 | N73: 0
C74: SS | E74: 8611.159765 | F74: 0.008904466865 | G74: 1 | M74: 68829 | N74: 0.008904466865 | O74: 1
A75: Total Revenue | E75: 967060.6781 | F75: 1 | M75: 7729716 | N75: 1
A77: Cost of Sales:
B78: Product Cost of Sales: | C78: NS | E78: 276178.0308 | F78: 0.2855850073 | G78: 0.2895445338 | M78: 2207491 | N78: 0.2855850073 | O78: 0.2895445338
C79: PH | E79: 0 | F79: 0 | G79: 0 | M79: 0 | N79: 0 | O79: 0
C80: BP | E80: 0 | F80: 0 | M80: 0 | N80: 0
B81: Sales Aids Cost of Sales: | C81: NS | E81: 8382.459652 | F81: 0.008667976935 | G81: 0.008788155108 | M81: 67001 | N81: 0.008667976935 | O81: 0.008788155108
C82: PH | E82: 0 | F82: 0 | G82: 0 | M82: 0 | N82: 0 | O82: 0
C83: BP | E83: 0 | F83: 0 | M83: 0 | N83: 0
B84: Starter Kit Cost of Sales: | C84: NS | E84: 1433.379207 | F84: 0.001482201933 | G84: 0.001502752094 | M84: 11457 | N84: 0.001482201933 | O84: 0.001502752094
C85: PH | E85: 0 | F85: 0 | G85: 0 | M85: 0 | N85: 0 | O85: 0
C86: BP | E86: 0 | F86: 0 | M86: 0 | N86: 0
B87: Other Cost of Sales: | C87: NS | E87: 0 | F87: 0 | G87: 0 | M87: 0 | N87: 0 | O87: 0
C88: PH | E88: 0 | F88: 0 | G88: 0 | M88: 0 | N88: 0 | O88: 0
C89: BP | E89: 0 | F89: 0 | M89: 0 | N89: 0
C90: SS | E90: 59687.10121 | F90: 0.06172012012 | G90: 6.931366139 | M90: 477079 | N90: 0.06172012012 | O90: 6.931366139
B91: Duties/Customs: | C91: NS | E91: 43275.11573 | F91: 0.04474912144 | G91: 0.04536955083 | M91: 345898 | N91: 0.04474912144 | O91: 0.04536955083
C92: PH | E92: 0 | F92: 0 | G92: 0 | M92: 0 | N92: 0 | O92: 0
C93: BP | E93: 0 | F93: 0 | M93: 0 | N93: 0
B94: Total Cost of Sales: | C94: NS | E94: 329268.9854 | F94: 0.3404843076 | G94: 0.3452049918 | M94: 2631847 | N94: 0.3404843076 | O94: 0.3452049918
C95: PH | E95: 0 | F95: 0 | G95: 0 | M95: 0 | N95: 0 | O95: 0
C96: BP | E96: 0 | F96: 0 | M96: 0 | N96: 0
C97: SS | E97: 59687.10121 | F97: 0.06172012012 | G97: 6.931366139 | M97: 477079 | N97: 0.06172012012 | O97: 6.931366139
A98: Total Cost of Sales | E98: 388956.0866 | F98: 0.4022044277 | M98: 3108926 | N98: 0.4022044277
B100: Gross Margin: | C100: NS | E100: 624567.1212 | F100: 0.6458406751 | G100: 0.6547950082 | M100: 4992165 | N100: 0.6458406751 | O100: 0.6547950082
C101: PH | E101: 4613.411735 | F101: 0.004770550432 | G101: 1 | M101: 36875 | N101: 0.004770550432 | O101: 1
C102: BP | E102: 0 | F102: 0 | M102: 0 | N102: 0
C103: SS | E103: -51075.94145 | F103: -0.05281565325 | G103: -5.931366139 | M103: -408250 | N103: -0.05281565325 | O103: -5.931366139
A104: Overall Gross Margin | E104: 578104.5915 | F104: 0.5977955723 | M104: 4620790 | N104: 0.5977955723
A106: Operating Expenses:
B107: Distributor Bonuses: | E107: 200878.2685 | F107: 0.2077204389 | M107: 1605620 | N107: 0.2077204389
B108: License Fees: | E108: 0 | F108: 0 | M108: 0 | N108: 0
B110: Selling, General and Administrative Expenses:
B111: Labor: | E111: 133480.045 | F111: 0.1380265459 | M111: 1066906 | N111: 0.1380265459
B112: Occupancy: | E112: 127510.822 | F112: 0.1318540034 | M112: 1019194 | N112: 0.1318540034
B113: Merchant Discounts: | E113: 14887.15126 | F113: 0.01539422664 | M113: 118993 | N113: 0.01539422664
B114: Expat/Management Fees: | E114: 1032.903791 | F114: 0.001068085813 | M114: 8256 | N114: 0.001068085813
B115: Promotion: | E115: 59362.94257 | F115: 0.06138492022 | M115: 474488 | N115: 0.06138492022
B116: Professional: | E116: 2204.679094 | F116: 0.00227977328 | M116: 17622 | N116: 0.00227977328
B117: Travel: | E117: 5912.673589 | F117: 0.006114066804 | M117: 47260 | N117: 0.006114066804
B118: Other: | E118: 14611.03466 | F118: 0.01510870516 | M118: 116786 | N118: 0.01510870516
B119: Total Selling, General and Administrative | E119: 359002.252 | F119: 0.3712303272 | M119: 2869505 | N119: 0.3712303272
A120: Total Operating Expenses | E120: 559880.5205 | F120: 0.5789507661 | M120: 4475125 | N120: 0.5789507661
A122: Operating Income | E122: 18224.07106 | F122: 0.0188448062 | M122: 145665 | N122: 0.0188448062
A124: Other Income/(Expense):
B125: Interest Income | E125: 0 | F125: 0 | M125: 0 | N125: 0
B126: (Interest Expense) | E126: 0 | F126: 0 | M126: 0 | N126: 0
B127: Intercompany Interest Income | E127: 0 | F127: 0 | M127: 0 | N127: 0
B128: (Intercompany Interest Expense) | E128: -2023.270362 | F128: -0.002092185534 | M128: -16172 | N128: -0.002092185534
B129: Foreign Currency Translation Gain/(Loss) | E129: -3686.600776 | F129: -0.003812171107 | M129: -29467 | N129: -0.003812171107
B130: Other | E130: 0 | F130: 0 | M130: 0 | N130: 0 | Q130: 0 | R130: To Roll Retained Earnings
A131: Total Other Income/(Expense) | E131: -5709.871137 | F131: -0.005904356641 | M131: -45639 | N131: -0.005904356641
B133: Distributor Stock Expense | E133: 0 | F133: 0 | M133: 0 | N133: 0
A135: Income before Income Taxes | E135: 12514.19992 | F135: 0.01294044956 | M135: 100026 | N135: 0.01294044956
B137: Income Tax Provision | E137: 44933.81709 | F137: 0.04646432029 | M137: 359156 | N137: 0.04646432029
A139: Net Income | E139: -32419.61717 | F139: -0.03352387073 | M139: -259130 | N139: -0.03352387073
M141: 0 | Q141: 0

Sheet 2010 NSEP Sales (hidden)
A1: NSE PRODUCTS INC
A2: Sales to Affiliates 2010
B4: YTD | C4: 4th Quarter | D4: Dec 10 | E4: Nov 10 | F4: Oct 10 | G4: 3rd Quarter | H4: Sept 10 | I4: Aug 10 | J4: July 10 | K4: 2nd Quarter | L4: June 10 | M4: May 10 | N4: Apr 10 | O4: 1st Quarter | P4: Mar 10 | Q4: Feb 10 | R4: Jan 10
A6: NS_1000 NSI | B6: =C6+G6+K6+O6 -> 2395854.51 | C6: =SUM(D6:F6) -> 0 | D6: =SUM(D7:D12) -> 0 | E6: =SUM(E7:E12) -> 0 | F6: 0 | G6: =SUM(H6:J6) -> 0 | H6: =SUM(H7:H12) -> 0 | I6: =SUM(I7:I12) -> 0 | J6: 0 | K6: =SUM(L6:N6) -> 1581207.1 | L6: =SUM(L7:L12) -> 667567.12 | M6: =SUM(M7:M12) -> 317208.67 | N6: 596431.31 | O6: =SUM(P6:R6) -> 814647.41 | P6: =SUM(P7:P12) -> 179454.83 | Q6: =SUM(Q7:Q12) -> 240195.63 | R6: 394996.95
A7: PERSONAL CARE | B7: 1386048.6 | C7: =SUM(D7:F7) -> 0 | G7: =SUM(H7:J7) -> 0 | K7: =SUM(L7:N7) -> 1049975.32 | L7: 520062.24 | M7: 166382.52 | N7: 363530.56 | O7: =SUM(P7:R7) -> 336073.28 | P7: 94749.35 | Q7: 114863.77 | R7: 126460.16
A8: PHARMANEX | B8: 958783.91 | C8: =SUM(D8:F8) -> 0 | G8: =SUM(H8:J8) -> 0 | K8: =SUM(L8:N8) -> 526652.28 | L8: 142925.38 | M8: 150826.15 | N8: 232900.75 | O8: =SUM(P8:R8) -> 432131.63 | P8: 84705.48 | Q8: 125331.86 | R8: 222094.29
A9: BIG PLANET | B9: 0 | C9: 0 | G9: 0 | K9: 0 | O9: 0
A10: RETURNS PC | B10: 0 | C10: 0 | G10: 0 | K10: 0 | O10: 0
A11: RETURNS PX | B11: 0 | C11: =SUM(D11:F11) -> 0 | G11: =SUM(H11:J11) -> 0 | K11: =SUM(L11:N11) -> 0 | O11: =SUM(P11:R11) -> 0
A12: SALES AIDS | B12: 51022 | C12: 0 | G12: =SUM(H12:J12) -> 0 | K12: =SUM(L12:N12) -> 4579.5 | L12: 4579.5 | O12: =SUM(P12:R12) -> 46442.5 | R12: 46442.5
A14: NS_1015 UNITED STATES | B14: =C14+G14+K14+O14 -> 25428513.73 | C14: =SUM(D14:F14) -> 0 | D14: =SUM(D15:D20) -> 0 | E14: =SUM(E15:E20) -> 0 | F14: 0 | G14: =SUM(H14:J14) -> 0 | H14: =SUM(H15:H20) -> 0 | I14: =SUM(I15:I20) -> 0 | J14: 0 | K14: =SUM(L14:N14) -> 10263682.64 | L14: =SUM(L15:L20) -> 193076.29 | M14: =SUM(M15:M20) -> 4858904.53 | N14: 5211701.82 | O14: =SUM(P14:R14) -> 15164831.09 | P14: =SUM(P15:P20) -> 4792265.67 | Q14: =SUM(Q15:Q20) -> 3844207.66 | R14: 6528357.76
A15: PERSONAL CARE | B15: 13545760.92 | C15: =SUM(D15:F15) -> 0 | G15: =SUM(H15:J15) -> 0 | K15: =SUM(L15:N15) -> 5617448.61 | L15: 65949.18 | M15: 2602885.33 | N15: 2948614.1 | O15: =SUM(P15:R15) -> 7928312.31 | P15: 2440011.65 | Q15: 1812821.31 | R15: 3675479.35
A16: PHARMANEX | B16: 11300401.58 | C16: =SUM(D16:F16) -> 0 | G16: =SUM(H16:J16) -> 0 | K16: =SUM(L16:N16) -> 4342253.29 | L16: 4210.86 | M16: =2124275.8+51145.14 -> 2175420.94 | N16: 2162621.49 | O16: =SUM(P16:R16) -> 6958148.29 | P16: 2317025.8 | Q16: 2146223.5 | R16: 2494898.99
A17: BIG PLANET | B17: 0 | C17: 0 | G17: 0 | K17: 0 | O17: 0
A18: RETURNS PC | B18: 0 | C18: 0 | G18: 0 | K18: 0 | O18: 0
A19: RETURNS PX | B19: 0 | C19: =SUM(D19:F19) -> 0 | G19: =SUM(H19:J19) -> 0 | K19: =SUM(L19:N19) -> 0 | O19: =SUM(P19:R19) -> 0
A20: SALES AIDS | B20: 582351.23 | C20: =SUM(D20:F20) -> 0 | G20: =SUM(H20:J20) -> 0 | K20: =SUM(L20:N20) -> 303980.74 | L20: 122916.25 | M20: 80598.26 | N20: 100466.23 | O20: =SUM(P20:R20) -> 278370.49 | P20: 35228.22 | Q20: -114837.15 | R20: 357979.42
A22: NS_1026 MEXICO | B22: =C22+G22+K22+O22 -> 6332085.17 | C22: =SUM(D22:F22) -> 0 | D22: =SUM(D23:D28) -> 0 | E22: =SUM(E23:E28) -> 0 | F22: 0 | G22: =SUM(H22:J22) -> 0 | H22: =SUM(H23:H28) -> 0 | I22: =SUM(I23:I28) -> 0 | J22: 0 | K22: =SUM(L22:N22) -> 5702736.67 | L22: =SUM(L23:L28) -> 5535461.85 | M22: =SUM(M23:M28) -> 31800.02 | N22: 135474.8 | O22: =SUM(P22:R22) -> 629348.5 | P22: =SUM(P23:P28) -> 281131.34 | Q22: =SUM(Q23:Q28) -> 51653.47 | R22: 296563.69
A23: PERSONAL CARE | B23: 3536574.68 | C23: =SUM(D23:F23) -> 0 | G23: =SUM(H23:J23) -> 0 | K23: =SUM(L23:N23) -> 2942777.99 | L23: 2860147.76 | M23: 524.29 | N23: 82105.94 | O23: =SUM(P23:R23) -> 593796.69 | P23: =270770.7+270.05 -> 271040.75 | Q23: 110124.86 | R23: 212631.08
A24: PHARMANEX | B24: 2794299.17 | C24: =SUM(D24:F24) -> 0 | G24: =SUM(H24:J24) -> 0 | K24: =SUM(L24:N24) -> 2759408.79 | L24: 2674941.46 | M24: =30739.2+359.27 -> 31098.47 | N24: 53368.86 | O24: =SUM(P24:R24) -> 34890.38 | P24: 9910 | Q24: -58857.16 | R24: 83837.54
A25: BIG PLANET | B25: 0 | C25: 0 | G25: 0 | K25: 0 | O25: 0
A26: RETURNS PC | B26: 0 | C26: 0 | G26: 0 | K26: 0 | O26: 0
A27: RETURNS PX | B27: 0 | C27: =SUM(D27:F27) -> 0 | G27: =SUM(H27:J27) -> 0 | K27: =SUM(L27:N27) -> 0 | O27: =SUM(P27:R27) -> 0
A28: SALES AIDS | B28: 1211.32 | C28: =SUM(D28:F28) -> 0 | G28: =SUM(H28:J28) -> 0 | K28: =SUM(L28:N28) -> 549.89 | L28: 372.63 | M28: 177.26 | O28: =SUM(P28:R28) -> 661.43 | P28: 180.59 | Q28: 385.77 | R28: 95.07
A30: NS_1039 GUATEMALA | B30: =C30+G30+K30+O30 -> 3400.28 | C30: =SUM(D30:F30) -> 0 | D30: =SUM(D31:D36) -> 0 | E30: =SUM(E31:E36) -> 0 | F30: 0 | G30: =SUM(H30:J30) -> 0 | H30: =SUM(H31:H36) -> 0 | I30: =SUM(I31:I36) -> 0 | J30: 0 | K30: =SUM(L30:N30) -> 3400.28 | L30: =SUM(L31:L36) -> 10 | M30: =SUM(M31:M36) -> 3390.28 | N30: 0 | O30: =SUM(P30:R30) -> 0 | P30: =SUM(P31:P36) -> 0 | Q30: =SUM(Q31:Q36) -> 0 | R30: 0
A31: PERSONAL CARE | B31: 1264 | C31: =SUM(D31:F31) -> 0 | G31: =SUM(H31:J31) -> 0 | K31: =SUM(L31:N31) -> 1264 | M31: =3292.2-2028.2 -> 1264 | O31: =SUM(P31:R31) -> 0
A32: PHARMANEX | B32: 2136.28 | C32: =SUM(D32:F32) -> 0 | G32: =SUM(H32:J32) -> 0 | K32: =SUM(L32:N32) -> 2136.28 | L32: 10 | M32: =3507.28-1381 -> 2126.28 | O32: =SUM(P32:R32) -> 0
A33: BIG PLANET | B33: 0 | C33: 0 | G33: 0 | K33: 0 | O33: 0
A34: RETURNS PC | B34: 0 | C34: 0 | G34: 0 | K34: 0 | O34: 0
A35: RETURNS PX | B35: 0 | C35: =SUM(D35:F35) -> 0 | G35: =SUM(H35:J35) -> 0 | K35: =SUM(L35:N35) -> 0 | O35: =SUM(P35:R35) -> 0
A36: SALES AIDS | B36: 0 | C36: =SUM(D36:F36) -> 0 | G36: =SUM(H36:J36) -> 0 | K36: =SUM(L36:N36) -> 0 | O36: =SUM(P36:R36) -> 0
A38: NS_1046 CANADA | B38: =C38+G38+K38+O38 -> 4194465.96 | C38: =SUM(D38:F38) -> 0 | D38: =SUM(D39:D44) -> 0 | E38: =SUM(E39:E44) -> 0 | F38: 0 | G38: =SUM(H38:J38) -> 0 | H38: =SUM(H39:H44) -> 0 | I38: =SUM(I39:I44) -> 0 | J38: 0 | K38: =SUM(L38:N38) -> 2231762.52 | L38: =SUM(L39:L44) -> 877762.17 | M38: =SUM(M39:M44) -> 556881.07 | N38: 797119.28 | O38: =SUM(P38:R38) -> 1962703.44 | P38: =SUM(P39:P44) -> 227637.87 | Q38: =SUM(Q39:Q44) -> 577727.01 | R38: 1157338.56
A39: PERSONAL CARE | B39: 2643945.3 | C39: =SUM(D39:F39) -> 0 | G39: =SUM(H39:J39) -> 0 | K39: =SUM(L39:N39) -> 1392440 | L39: 508496.77 | M39: 293126.01 | N39: 590817.22 | O39: =SUM(P39:R39) -> 1251505.3 | P39: =109156.23+17941.58 -> 127097.81 | Q39: 352674.05 | R39: 771733.44
A40: PHARMANEX | B40: 1484047.26 | C40: =SUM(D40:F40) -> 0 | G40: =SUM(H40:J40) -> 0 | K40: =SUM(L40:N40) -> 790329.62 | L40: 340640.59 | M40: =239323.96+16157.2 -> 255481.16 | N40: 194207.87 | O40: =SUM(P40:R40) -> 693717.64 | P40: 97384.25 | Q40: 217115.15 | R40: =362969.7+16248.54 -> 379218.24
A41: BIG PLANET | B41: 0 | C41: 0 | G41: 0 | K41: 0 | O41: 0
A42: RETURNS PC | B42: -3012.87 | C42: 0 | G42: 0 | K42: -3012.87 | M42: -3012.87 | O42: 0
A43: RETURNS PX | B43: 0 | C43: =SUM(D43:F43) -> 0 | G43: =SUM(H43:J43) -> 0 | K43: =SUM(L43:N43) -> 0 | O43: =SUM(P43:R43) -> 0
A44: SALES AIDS | B44: 69486.27 | C44: =SUM(D44:F44) -> 0 | G44: =SUM(H44:J44) -> 0 | K44: =SUM(L44:N44) -> 52005.77 | L44: 28624.81 | M44: 11286.77 | N44: 12094.19 | O44: =SUM(P44:R44) -> 17480.5 | P44: 3155.81 | Q44: 7937.81 | R44: 6386.88
A46: NS_1056 VENEZUELA | B46: =C46+G46+K46+O46 -> 3222989.52 | C46: =SUM(D46:F46) -> 0 | D46: =SUM(D47:D52) -> 0 | E46: =SUM(E47:E52) -> 0 | F46: 0 | G46: =SUM(H46:J46) -> 0 | H46: =SUM(H47:H52) -> 0 | I46: =SUM(I47:I52) -> 0 | J46: 0 | K46: =SUM(L46:N46) -> 1267753.74 | L46: =SUM(L47:L52) -> 345014.57 | M46: =SUM(M47:M52) -> 733986.98 | N46: 188752.19 | O46: =SUM(P46:R46) -> 1955235.78 | P46: =SUM(P47:P52) -> 930107.13 | Q46: =SUM(Q47:Q52) -> 264407.14 | R46: 760721.51
A47: PERSONAL CARE | B47: 2331488.69 | C47: =SUM(D47:F47) -> 0 | G47: =SUM(H47:J47) -> 0 | K47: =SUM(L47:N47) -> 1026964.28 | L47: 111497.71 | M47: 726714.38 | N47: 188752.19 | O47: =SUM(P47:R47) -> 1304524.41 | P47: =622649.55+8419.86 -> 631069.41 | Q47: 248944.96 | R47: 424510.04
A48: PHARMANEX | B48: 1063475.43 | C48: =SUM(D48:F48) -> 0 | G48: =SUM(H48:J48) -> 0 | K48: =SUM(L48:N48) -> 155456.01 | L48: 148183.41 | M48: 7272.6 | O48: =SUM(P48:R48) -> 908019.42 | P48: 560437.47 | Q48: 15462.18 | R48: 332119.77
A49: BIG PLANET | B49: 0 | C49: 0 | G49: 0 | K49: 0 | O49: 0
A50: RETURNS PC | B50: -288113.75 | C50: 0 | G50: 0 | K50: 0 | O50: -288113.75 | P50: -288113.75
A51: RETURNS PX | B51: 0 | C51: =SUM(D51:F51) -> 0 | G51: =SUM(H51:J51) -> 0 | K51: =SUM(L51:N51) -> 0 | O51: =SUM(P51:R51) -> 0
A52: SALES AIDS | B52: 116139.15 | C52: =SUM(D52:F52) -> 0 | G52: =SUM(H52:J52) -> 0 | K52: =SUM(L52:N52) -> 85333.45 | L52: 85333.45 | O52: =SUM(P52:R52) -> 30805.7 | P52: 26714 | R52: 4091.7
A54: NS_1070 COLOMBIA | B54: =C54+G54+K54+O54 -> 742730.84 | C54: =SUM(D54:F54) -> 0 | D54: =SUM(D55:D60) -> 0 | E54: =SUM(E55:E60) -> 0 | F54: 0 | G54: =SUM(H54:J54) -> 0 | H54: =SUM(H55:H60) -> 0 | I54: =SUM(I55:I60) -> 0 | J54: 0 | K54: =SUM(L54:N54) -> 434798.58 | L54: =SUM(L55:L60) -> 56395.76 | M54: =SUM(M55:M60) -> 165995 | N54: 212407.82 | O54: =SUM(P54:R54) -> 307932.26 | P54: =SUM(P55:P60) -> 49733.66 | Q54: =SUM(Q55:Q60) -> 0 | R54: 258198.6
A55: PERSONAL CARE | B55: 630724.59 | C55: =SUM(D55:F55) -> 0 | G55: =SUM(H55:J55) -> 0 | K55: =SUM(L55:N55) -> 297019.46 | L55: 16620.16 | M55: 166352.34 | N55: 114046.96 | O55: =SUM(P55:R55) -> 333705.13 | P55: =54422.42+52.98 -> 54475.4 | Q55: 23573.38 | R55: 255656.35
A56: PHARMANEX | B56: 104273.45 | C56: =SUM(D56:F56) -> 0 | G56: =SUM(H56:J56) -> 0 | K56: =SUM(L56:N56) -> 134282.12 | L56: 36958.6 | M56: -697.34 | N56: 98020.86 | O56: =SUM(P56:R56) -> -30008.67 | P56: -5221.94 | Q56: -24947.98 | R56: 161.25
A57: BIG PLANET | B57: 0 | C57: 0 | G57: 0 | K57: 0 | O57: 0
A58: RETURNS PC | B58: 0 | C58: 0 | G58: 0 | K58: 0 | O58: 0
A59: RETURNS PX | B59: 0 | C59: =SUM(D59:F59) -> 0 | G59: =SUM(H59:J59) -> 0 | K59: =SUM(L59:N59) -> 0 | O59: =SUM(P59:R59) -> 0
A60: SALES AIDS | B60: 7732.8 | C60: =SUM(D60:F60) -> 0 | G60: =SUM(H60:J60) -> 0 | K60: =SUM(L60:N60) -> 3497 | L60: 2817 | M60: 340 | N60: 340 | O60: =SUM(P60:R60) -> 4235.8 | P60: 480.2 | Q60: 1374.6 | R60: 2381
A62: NS_1080 ARGENTINA | B62: =C62+G62+K62+O62 -> 437027.84 | C62: =SUM(D62:F62) -> 0 | D62: =SUM(D63:D68) -> 0 | E62: =SUM(E63:E68) -> 0 | F62: 0 | G62: =SUM(H62:J62) -> 0 | H62: =SUM(H63:H68) -> 0 | I62: =SUM(I63:I68) -> 0 | J62: 0 | K62: =SUM(L62:N62) -> 131547.3 | L62: =SUM(L63:L68) -> 0 | M62: =SUM(M63:M68) -> 131547.3 | N62: 0 | O62: =SUM(P62:R62) -> 305480.54 | P62: =SUM(P63:P68) -> 104944.84 | Q62: =SUM(Q63:Q68) -> 0 | R62: =SUM(R63:R68) -> 200535.7
A63: PERSONAL CARE | B63: 392409.51 | C63: =SUM(D63:F63) -> 0 | G63: =SUM(H63:J63) -> 0 | K63: =SUM(L63:N63) -> 86928.97 | M63: 86928.97 | O63: =SUM(P63:R63) -> 305480.54 | P63: 104944.84 | R63: 200535.7
A64: PHARMANEX | B64: 43001.03 | C64: =SUM(D64:F64) -> 0 | G64: =SUM(H64:J64) -> 0 | K64: =SUM(L64:N64) -> 43001.03 | M64: 43001.03 | O64: =SUM(P64:R64) -> 0
A65: BIG PLANET | B65: 0 | C65: 0 | G65: 0 | K65: 0 | O65: 0
A66: RETURNS PC | B66: 0 | C66: 0 | G66: 0 | K66: 0 | O66: 0
A67: RETURNS PX | B67: 0 | C67: =SUM(D67:F67) -> 0 | G67: =SUM(H67:J67) -> 0 | K67: =SUM(L67:N67) -> 0 | O67: =SUM(P67:R67) -> 0
A68: SALES AIDS | B68: 1617.3 | C68: =SUM(D68:F68) -> 0 | G68: =SUM(H68:J68) -> 0 | K68: =SUM(L68:N68) -> 1617.3 | M68: 1617.3 | O68: =SUM(P68:R68) -> 0
A70: NS_1800 WORLD SHOPPE | B70: =C70+G70+K70+O70 -> 843.18 | C70: =SUM(D70:F70) -> 0 | D70: =SUM(D71:D76) -> 0 | E70: =SUM(E71:E76) -> 0 | F70: 0 | G70: =SUM(H70:J70) -> 0 | H70: =SUM(H71:H76) -> 0 | I70: =SUM(I71:I76) -> 0 | J70: 0 | K70: =SUM(L70:N70) -> 0 | L70: =SUM(L71:L76) -> 0 | M70: =SUM(M71:M76) -> 0 | N70: 0 | O70: =SUM(P70:R70) -> 843.18 | P70: =SUM(P71:P76) -> 395.24 | Q70: =SUM(Q71:Q76) -> 447.94 | R70: 0
A71: PERSONAL CARE | B71: 361.67 | C71: =SUM(D71:F71) -> 0 | G71: =SUM(H71:J71) -> 0 | K71: =SUM(L71:N71) -> 0 | O71: =SUM(P71:R71) -> 361.67 | P71: 305.49 | Q71: 56.18
A72: PHARMANEX | B72: 481.51 | C72: =SUM(D72:F72) -> 0 | G72: =SUM(H72:J72) -> 0 | K72: =SUM(L72:N72) -> 0 | O72: =SUM(P72:R72) -> 481.51 | P72: 89.75 | Q72: 391.76
A73: BIG PLANET | B73: 0 | C73: 0 | G73: 0 | K73: 0 | O73: 0
A74: RETURNS PC | B74: 0 | C74: 0 | G74: 0 | K74: 0 | O74: 0
A75: RETURNS PX | B75: 0 | C75: =SUM(D75:F75) -> 0 | G75: =SUM(H75:J75) -> 0 | K75: =SUM(L75:N75) -> 0 | O75: =SUM(P75:R75) -> 0
A76: SALES AIDS | B76: 0 | C76: =SUM(D76:F76) -> 0 | G76: =SUM(H76:J76) -> 0 | K76: =SUM(L76:N76) -> 0 | O76: =SUM(P76:R76) -> 0
A78: NS_1906 NEW ZEALAND | B78: =C78+G78+K78+O78 -> 552219.2 | C78: =SUM(D78:F78) -> 0 | D78: =SUM(D79:D84) -> 0 | E78: =SUM(E79:E84) -> 0 | F78: 0 | G78: =SUM(H78:J78) -> 0 | H78: =SUM(H79:H84) -> 0 | I78: =SUM(I79:I84) -> 0 | J78: 0 | K78: =SUM(L78:N78) -> 300323.39 | L78: =SUM(L79:L84) -> 158341.92 | M78: =SUM(M79:M84) -> 41640.68 | N78: 100340.79 | O78: =SUM(P78:R78) -> 251895.81 | P78: =SUM(P79:P84) -> 50775.95 | Q78: =SUM(Q79:Q84) -> 127352.91 | R78: 73766.95
A79: PERSONAL CARE | B79: 240202.36 | C79: =SUM(D79:F79) -> 0 | G79: =SUM(H79:J79) -> 0 | K79: =SUM(L79:N79) -> 109902.64 | L79: 35302.99 | M79: 39344.18 | N79: 35255.47 | O79: =SUM(P79:R79) -> 130299.72 | P79: =22479.11+1335.62 -> 23814.73 | Q79: 72034.97 | R79: 34450.02
A80: PHARMANEX | B80: 358965.64 | C80: =SUM(D80:F80) -> 0 | G80: =SUM(H80:J80) -> 0 | K80: =SUM(L80:N80) -> 231890.8 | L80: 122547.65 | M80: =24036.97+5224.72 -> 29261.69 | N80: 80081.46 | O80: =SUM(P80:R80) -> 127074.84 | P80: 26316.31 | Q80: 61721.25 | R80: 39037.28
A81: BIG PLANET | B81: 0 | C81: 0 | G81: 0 | K81: 0 | O81: 0
A82: RETURNS PC | B82: -42352.33 | C82: 0 | G82: 0 | K82: -42352.33 | M82: -26982 | N82: -15370.33 | O82: 0
A83: RETURNS PX | B83: -6862 | C83: =SUM(D83:F83) -> 0 | G83: =SUM(H83:J83) -> 0 | K83: =SUM(L83:N83) -> 0 | O83: =SUM(P83:R83) -> -6862 | Q83: -6862
A84: SALES AIDS | B84: 2265.53 | C84: =SUM(D84:F84) -> 0 | G84: =SUM(H84:J84) -> 0 | K84: =SUM(L84:N84) -> 882.28 | L84: 491.28 | M84: 16.81 | N84: 374.19 | O84: =SUM(P84:R84) -> 1383.25 | P84: 644.91 | Q84: 458.69 | R84: 279.65
A86: NS_1916 AUSTRALIA | B86: =C86+G86+K86+O86 -> 1742362.64 | C86: =SUM(D86:F86) -> 0 | D86: =SUM(D87:D92) -> 0 | E86: =SUM(E87:E92) -> 0 | F86: 0 | G86: =SUM(H86:J86) -> 0 | H86: =SUM(H87:H92) -> 0 | I86: =SUM(I87:I92) -> 0 | J86: 0 | K86: =SUM(L86:N86) -> 838069.99 | L86: =SUM(L87:L92) -> 129332.48 | M86: =SUM(M87:M92) -> 383216.42 | N86: 325521.09 | O86: =SUM(P86:R86) -> 904292.65 | P86: =SUM(P87:P92) -> 381863.79 | Q86: =SUM(Q87:Q92) -> 46793.27 | R86: 475635.59
A87: PERSONAL CARE | B87: 1133505.87 | C87: =SUM(D87:F87) -> 0 | G87: =SUM(H87:J87) -> 0 | K87: =SUM(L87:N87) -> 506270.04 | L87: 51799.23 | M87: 256519.9 | N87: 197950.91 | O87: =SUM(P87:R87) -> 627235.83 | P87: =278204.77+1701.85 -> 279906.62 | Q87: 38231.12 | R87: 309098.09
A88: PHARMANEX | B88: 598883.82 | C88: =SUM(D88:F88) -> 0 | G88: =SUM(H88:J88) -> 0 | K88: =SUM(L88:N88) -> 328616.59 | L88: 77482.5 | M88: =120605.26+4409.95 -> 125015.21 | N88: 126118.88 | O88: =SUM(P88:R88) -> 270267.23 | P88: 101394.68 | Q88: 7112.71 | R88: 161759.84
A89: BIG PLANET | B89: 0 | C89: 0 | G89: 0 | K89: 0 | O89: 0
A90: RETURNS PC | B90: -2609.07 | C90: 0 | G90: 0 | K90: -2355.53 | L90: -2346.5 | N90: -9.03 | O90: -253.54 | P90: -253.54
A91: RETURNS PX | B91: 0 | C91: =SUM(D91:F91) -> 0 | G91: =SUM(H91:J91) -> 0 | K91: =SUM(L91:N91) -> 0 | O91: =SUM(P91:R91) -> 0
A92: SALES AIDS | B92: 12582.02 | C92: =SUM(D92:F92) -> 0 | G92: =SUM(H92:J92) -> 0 | K92: =SUM(L92:N92) -> 5538.89 | L92: 2397.25 | M92: 1681.31 | N92: 1460.33 | O92: =SUM(P92:R92) -> 7043.13 | P92: 816.03 | Q92: 1449.44 | R92: 4777.66
A94: NS_3006 HONG KONG | B94: =C94+G94+K94+O94 -> 17250797.44 | C94: =SUM(D94:F94) -> 0 | D94: =SUM(D95:D100) -> 0 | E94: =SUM(E95:E100) -> 0 | F94: 0 | G94: =SUM(H94:J94) -> 0 | H94: =SUM(H95:H100) -> 0 | I94: =SUM(I95:I100) -> 0 | J94: 0 | K94: =SUM(L94:N94) -> 10511145.15 | L94: =SUM(L95:L100) -> 3283559.11 | M94: =SUM(M95:M100) -> 3524058.72 | N94: 3703527.32 | O94: =SUM(P94:R94) -> 6739652.29 | P94: =SUM(P95:P100) -> 2090289.7 | Q94: =SUM(Q95:Q100) -> 2795674.41 | R94: 1853688.18
A95: PERSONAL CARE | B95: 9643697.21 | C95: =SUM(D95:F95) -> 0 | G95: =SUM(H95:J95) -> 0 | K95: =SUM(L95:N95) -> 6345311.97 | L95: 2389198.62 | M95: 2119278.24 | N95: 1836835.11 | O95: =SUM(P95:R95) -> 3298385.24 | P95: =1115954.11+22879.15 -> 1138833.26 | Q95: 1353863.23 | R95: 805688.75
A96: PHARMANEX | B96: 7635843.51 | C96: =SUM(D96:F96) -> 0 | G96: =SUM(H96:J96) -> 0 | K96: =SUM(L96:N96) -> 4174021.94 | L96: 894360.49 | M96: =1389534.71+23434.53 -> 1412969.24 | N96: 1866692.21 | O96: =SUM(P96:R96) -> 3461821.57 | P96: 956879.39 | Q96: 1451245.35 | R96: 1053696.83
A97: BIG PLANET | B97: 0 | C97: 0 | G97: 0 | K97: 0 | O97: 0
A98: RETURNS PC | B98: -23045.88 | C98: 0 | G98: 0 | K98: -8188.76 | M98: -8188.76 | O98: -14857.12 | P98: -5422.95 | Q98: -9434.17
A99: RETURNS PX | B99: -5697.4 | C99: =SUM(D99:F99) -> 0 | G99: =SUM(H99:J99) -> 0 | K99: =SUM(L99:N99) -> 0 | O99: =SUM(P99:R99) -> -5697.4 | R99: -5697.4
A100: SALES AIDS | B100: 0 | C100: =SUM(D100:F100) -> 0 | G100: =SUM(H100:J100) -> 0 | K100: =SUM(L100:N100) -> 0 | N100: 0 | O100: =SUM(P100:R100) -> 0
A102: NS_3036 KOREA | B102: =C102+G102+K102+O102 -> 42242774.21 | C102: =SUM(D102:F102) -> 0 | D102: =SUM(D103:D108) -> 0 | E102: =SUM(E103:E108) -> 0 | F102: 0 | G102: =SUM(H102:J102) -> 0 | H102: =SUM(H103:H108) -> 0 | I102: =SUM(I103:I108) -> 0 | J102: 0 | K102: =SUM(L102:N102) -> 22846983.02 | L102: =SUM(L103:L108) -> 7464971.78 | M102: =SUM(M103:M108) -> 8450008.73 | N102: 6932002.51 | O102: =SUM(P102:R102) -> 19395791.19 | P102: =SUM(P103:P108) -> 10791756.39 | Q102: =SUM(Q103:Q108) -> 2423990.22 | R102: 6180044.58
A103: PERSONAL CARE | B103: 37639114.84 | C103: =SUM(D103:F103) -> 0 | G103: =SUM(H103:J103) -> 0 | K103: =SUM(L103:N103) -> 19923255.46 | L103: 6619850.02 | M103: 7116706.18 | N103: 6186699.26 | O103: =SUM(P103:R103) -> 17715859.38 | P103: =10081303.94+56422.89 -> 10137726.83 | Q103: 2097524.85 | R103: 5480607.7
A104: PHARMANEX | B104: 4588661.66 | C104: =SUM(D104:F104) -> 0 | G104: =SUM(H104:J104) -> 0 | K104: =SUM(L104:N104) -> 2923727.56 | L104: 845121.76 | M104: =1291703.97+41598.58 -> 1333302.55 | N104: 745303.25 | O104: =SUM(P104:R104) -> 1664934.1 | P104: 654029.56 | Q104: 311467.66 | R104: 699436.88
A105: BIG PLANET | B105: 0 | C105: 0 | G105: 0 | K105: 0 | O105: 0
A106: RETURNS PC | B106: 0 | C106: 0 | G106: 0 | K106: 0 | O106: 0
A107: RETURNS PX | B107: 0 | C107: =SUM(D107:F107) -> 0 | G107: =SUM(H107:J107) -> 0 | K107: =SUM(L107:N107) -> 0 | O107: =SUM(P107:R107) -> 0
A108: SALES AIDS | B108: 14997.71 | C108: =SUM(D108:F108) -> 0 | G108: =SUM(H108:J108) -> 0 | K108: =SUM(L108:N108) -> 0 | O108: =SUM(P108:R108) -> 14997.71 | Q108: 14997.71
A110: NS_3046 THAILAND | B110: =C110+G110+K110+O110 -> 1186428.04 | C110: =SUM(D110:F110) -> 0 | D110: =SUM(D111:D116) -> 0 | E110: =SUM(E111:E116) -> 0 | F110: 0 | G110: =SUM(H110:J110) -> 0 | H110: =SUM(H111:H116) -> 0 | I110: =SUM(I111:I116) -> 0 | J110: 0 | K110: =SUM(L110:N110) -> 0 | L110: =SUM(L111:L116) -> 0 | M110: =SUM(M111:M116) -> 0 | N110: 0 | O110: =SUM(P110:R110) -> 1186428.04 | P110: =SUM(P111:P116) -> 0 | Q110: =SUM(Q111:Q116) -> 587946.2 | R110: 598481.84
A111: PERSONAL CARE | B111: 421458.19 | C111: =SUM(D111:F111) -> 0 | G111: =SUM(H111:J111) -> 0 | K111: =SUM(L111:N111) -> 0 | O111: =SUM(P111:R111) -> 421458.19 | Q111: 230060.83 | R111: 191397.36
A112: PHARMANEX | B112: 785097.39 | C112: =SUM(D112:F112) -> 0 | G112: =SUM(H112:J112) -> 0 | K112: =SUM(L112:N112) -> 0 | O112: =SUM(P112:R112) -> 785097.39 | Q112: 378012.91 | R112: 407084.48
A113: BIG PLANET | B113: 0 | C113: 0 | G113: 0 | K113: 0 | O113: 0
A114: RETURNS PC | B114: -20127.54 | C114: 0 | G114: 0 | K114: 0 | O114: -20127.54 | Q114: -20127.54
A115: RETURNS PX | B115: 0 | C115: =SUM(D115:F115) -> 0 | G115: =SUM(H115:J115) -> 0 | K115: =SUM(L115:N115) -> 0 | O115: =SUM(P115:R115) -> 0
A116: SALES AIDS | B116: 0 | C116: =SUM(D116:F116) -> 0 | G116: =SUM(H116:J116) -> 0 | K116: =SUM(L116:N116) -> 0 | O116: =SUM(P116:R116) -> 0
A118: NS_3066 PHILIPPINES | B118: =C118+G118+K118+O118 -> 1594682.94 | C118: =SUM(D118:F118) -> 0 | D118: =SUM(D119:D124) -> 0 | E118: =SUM(E119:E124) -> 0 | F118: 0 | G118: =SUM(H118:J118) -> 0 | H118: =SUM(H119:H124) -> 0 | I118: =SUM(I119:I124) -> 0 | J118: 0 | K118: =SUM(L118:N118) -> 768595.55 | L118: =SUM(L119:L124) -> 190617.12 | M118: =SUM(M119:M124) -> -37704.21 | N118: 615682.64 | O118: =SUM(P118:R118) -> 826087.39 | P118: =SUM(P119:P124) -> 170276.68 | Q118: =SUM(Q119:Q124) -> 493268.22 | R118: =SUM(R119:R124) -> 162542.49
A119: PERSONAL CARE | B119: 750395.27 | C119: =SUM(D119:F119) -> 0 | G119: =SUM(H119:J119) -> 0 | K119: =SUM(L119:N119) -> 600576.44 | L119: 61627.73 | M119: 117190.8 | N119: 421757.91 | O119: =SUM(P119:R119) -> 149818.83 | P119: =20937.68+2275.31 -> 23212.99 | Q119: 92843.02 | R119: 33762.82
A120: PHARMANEX | B120: 935325.72 | C120: =SUM(D120:F120) -> 0 | G120: =SUM(H120:J120) -> 0 | K120: =SUM(L120:N120) -> 254821.27 | L120: 130980.88 | M120: =-70505.24+420.9 -> -70084.34 | N120: 193924.73 | O120: =SUM(P120:R120) -> 680504.45 | P120: 147063.69 | Q120: 400425.2 | R120: 133015.56
A121: BIG PLANET | B121: 0 | C121: 0 | G121: 0 | K121: 0 | O121: 0
A122: RETURNS PC | B122: -91038.05 | C122: 0 | G122: 0 | K122: -86802.16 | L122: -1991.49 | M122: -84810.67 | O122: -4235.89 | R122: -4235.89
A123: RETURNS PX | B123: 0 | C123: =SUM(D123:F123) -> 0 | G123: =SUM(H123:J123) -> 0 | K123: =SUM(L123:N123) -> 0 | O123: =SUM(P123:R123) -> 0
A124: SALES AIDS | B124: 0 | C124: =SUM(D124:F124) -> 0 | G124: =SUM(H124:J124) -> 0 | K124: =SUM(L124:N124) -> 0 | O124: =SUM(P124:R124) -> 0
A126: NS_3076 SINGAPORE | B126: =C126+G126+K126+O126 -> 846780.26 | C126: =SUM(D126:F126) -> 0 | D126: =SUM(D127:D132) -> 0 | E126: =SUM(E127:E132) -> 0 | F126: 0 | G126: =SUM(H126:J126) -> 0 | H126: =SUM(H127:H132) -> 0 | I126: =SUM(I127:I132) -> 0 | J126: 0 | K126: =SUM(L126:N126) -> 0 | L126: =SUM(L127:L132) -> 0 | M126: =SUM(M127:M132) -> 0 | N126: 0 | O126: =SUM(P126:R126) -> 846780.26 | P126: =SUM(P127:P132) -> 0 | Q126: =SUM(Q127:Q132) -> 317686.32 | R126: 529093.94
A127: PERSONAL CARE | B127: 85456.76 | C127: =SUM(D127:F127) -> 0 | G127: =SUM(H127:J127) -> 0 | K127: =SUM(L127:N127) -> 0 | O127: =SUM(P127:R127) -> 85456.76 | Q127: 37388.98 | R127: 48067.78
A128: PHARMANEX | B128: 761323.5 | C128: =SUM(D128:F128) -> 0 | G128: =SUM(H128:J128) -> 0 | K128: =SUM(L128:N128) -> 0 | O128: =SUM(P128:R128) -> 761323.5 | Q128: 280297.34 | R128: 481026.16
A129: BIG PLANET | B129: 0 | C129: 0 | G129: 0 | K129: 0 | O129: 0
A130: RETURNS PC | B130: 0 | C130: 0 | G130: 0 | K130: 0 | O130: 0
A131: RETURNS PX | B131: 0 | C131: =SUM(D131:F131) -> 0 | G131: =SUM(H131:J131) -> 0 | K131: =SUM(L131:N131) -> 0 | O131: =SUM(P131:R131) -> 0
A132: SALES AIDS | B132: 0 | C132: =SUM(D132:F132) -> 0 | G132: =SUM(H132:J132) -> 0 | K132: =SUM(L132:N132) -> 0 | O132: =SUM(P132:R132) -> 0
A134: NS_3086 MALAYSIA | B134: =C134+G134+K134+O134 -> 1165449.35 | C134: =SUM(D134:F134) -> 0 | D134: =SUM(D135:D140) -> 0 | E134: =SUM(E135:E140) -> 0 | F134: 0 | G134: =SUM(H134:J134) -> 0 | H134: =SUM(H135:H140) -> 0 | I134: =SUM(I135:I140) -> 0 | J134: 0 | K134: =SUM(L134:N134) -> 0 | L134: =SUM(L135:L140) -> 0 | M134: =SUM(M135:M140) -> 0 | N134: 0 | O134: =SUM(P134:R134) -> 1165449.35 | P134: =SUM(P135:P140) -> 0 | Q134: =SUM(Q135:Q140) -> 108883.37 | R134: 1056565.98
A135: PERSONAL CARE | B135: 194386.09 | C135: =SUM(D135:F135) -> 0 | G135: =SUM(H135:J135) -> 0 | K135: =SUM(L135:N135) -> 0 | O135: =SUM(P135:R135) -> 194386.09 | R135: 194386.09
A136: PHARMANEX | B136: 971063.26 | C136: =SUM(D136:F136) -> 0 | G136: =SUM(H136:J136) -> 0 | K136: =SUM(L136:N136) -> 0 | O136: =SUM(P136:R136) -> 971063.26 | Q136: 108883.37 | R136: 862179.89
A137: BIG PLANET | B137: 0 | C137: 0 | G137: 0 | K137: 0 | O137: 0
A138: RETURNS PC | B138: 0 | C138: 0 | G138: 0 | K138: 0 | O138: 0
A139: RETURNS PX | B139: 0 | C139: =SUM(D139:F139) -> 0 | G139: =SUM(H139:J139) -> 0 | K139: =SUM(L139:N139) -> 0 | O139: =SUM(P139:R139) -> 0
A140: SALES AIDS | B140: 0 | C140: =SUM(D140:F140) -> 0 | G140: =SUM(H140:J140) -> 0 | K140: =SUM(L140:N140) -> 0 | O140: =SUM(P140:R140) -> 0
A142: NS_3096 BRUNEI | B142: =C142+G142+K142+O142 -> 0 | C142: =SUM(D142:F142) -> 0 | D142: =SUM(D143:D148) -> 0 | E142: =SUM(E143:E148) -> 0 | F142: 0 | G142: =SUM(H142:J142) -> 0 | H142: =SUM(H143:H148) -> 0 | I142: =SUM(I143:I148) -> 0 | J142: 0 | K142: =SUM(L142:N142) -> 0 | L142: =SUM(L143:L148) -> 0 | M142: =SUM(M143:M148) -> 0 | N142: 0 | O142: =SUM(P142:R142) -> 0 | P142: =SUM(P143:P148) -> 0 | Q142: =SUM(Q143:Q148) -> 0 | R142: 0
A143: PERSONAL CARE | B143: 0 | C143: =SUM(D143:F143) -> 0 | G143: =SUM(H143:J143) -> 0 | K143: =SUM(L143:N143) -> 0 | O143: =SUM(P143:R143) -> 0
A144: PHARMANEX | B144: 0 | C144: =SUM(D144:F144) -> 0 | G144: =SUM(H144:J144) -> 0 | K144: =SUM(L144:N144) -> 0 | O144: =SUM(P144:R144) -> 0
A145: BIG PLANET | B145: 0 | C145: 0 | G145: 0 | K145: 0 | O145: 0
A146: RETURNS PC | B146: 0 | C146: 0 | G146: 0 | K146: 0 | O146: 0
A147: RETURNS PX | B147: 0 | C147: =SUM(D147:F147) -> 0 | G147: =SUM(H147:J147) -> 0 | K147: =SUM(L147:N147) -> 0 | O147: =SUM(P147:R147) -> 0
A148: SALES AIDS | B148: 0 | C148: =SUM(D148:F148) -> 0 | G148: =SUM(H148:J148) -> 0 | K148: =SUM(L148:N148) -> 0 | O148: =SUM(P148:R148) -> 0
A150: NS_3106 ISRAEL | B150: =C150+G150+K150+O150 -> 31320.29 | C150: =SUM(D150:F150) -> 0 | D150: =SUM(D151:D156) -> 0 | E150: =SUM(E151:E156) -> 0 | F150: 0 | G150: =SUM(H150:J150) -> 0 | H150: =SUM(H151:H156) -> 0 | I150: =SUM(I151:I156) -> 0 | J150: 0 | K150: =SUM(L150:N150) -> 16227.09 | L150: =SUM(L151:L156) -> 3110.08 | M150: =SUM(M151:M156) -> 12999.91 | N150: 117.1 | O150: =SUM(P150:R150) -> 15093.2 | P150: =SUM(P151:P156) -> 1979.56 | Q150: =SUM(Q151:Q156) -> 11782.8 | R150: 1330.84
A151: PERSONAL CARE | B151: 26873.59 | C151: =SUM(D151:F151) -> 0 | G151: =SUM(H151:J151) -> 0 | K151: =SUM(L151:N151) -> 12081.26 | L151: 2187.22 | M151: 9776.94 | N151: 117.1 | O151: =SUM(P151:R151) -> 14792.33 | P151: 1979.56 | Q151: 11618.65 | R151: 1194.12
A152: PHARMANEX | B152: 4420.86 | C152: =SUM(D152:F152) -> 0 | G152: =SUM(H152:J152) -> 0 | K152: =SUM(L152:N152) -> 4145.83 | L152: 922.86 | M152: 3222.97 | O152: =SUM(P152:R152) -> 275.03 | Q152: 138.31 | R152: 136.72
A153: BIG PLANET | B153: 0 | C153: 0 | G153: 0 | K153: 0 | O153: 0
A154: RETURNS PC | B154: 0 | C154: 0 | G154: 0 | K154: 0 | O154: 0
A155: RETURNS PX | B155: 0 | C155: =SUM(D155:F155) -> 0 | G155: =SUM(H155:J155) -> 0 | K155: =SUM(L155:N155) -> 0 | O155: =SUM(P155:R155) -> 0
A156: SALES AIDS | B156: 25.84 | C156: =SUM(D156:F156) -> 0 | G156: =SUM(H156:J156) -> 0 | K156: =SUM(L156:N156) -> 0 | O156: =SUM(P156:R156) -> 25.84 | Q156: 25.84
A158: NS_3125 TAIWAN | B158: =C158+G158+K158+O158 -> 9428191.22 | C158: =SUM(D158:F158) -> 0 | D158: =SUM(D159:D164) -> 0 | E158: =SUM(E159:E164) -> 0 | F158: 0 | G158: =SUM(H158:J158) -> 0 | H158: =SUM(H159:H164) -> 0 | I158: =SUM(I159:I164) -> 0 | J158: 0 | K158: =SUM(L158:N158) -> 5123107.51 | L158: =SUM(L159:L164) -> 1475222.15 | M158: =SUM(M159:M164) -> 1756953.51 | N158: 1890931.85 | O158: =SUM(P158:R158) -> 4305083.71 | P158: =SUM(P159:P164) -> 1266050.46 | Q158: =SUM(Q159:Q164) -> 1856283.9 | R158: 1182749.35
A159: PERSONAL CARE | B159: 6881404.66 | C159: =SUM(D159:F159) -> 0 | G159: =SUM(H159:J159) -> 0 | K159: =SUM(L159:N159) -> 3825432.53 | L159: 1229676.28 | M159: 1214540.07 | N159: 1381216.18 | O159: =SUM(P159:R159) -> 3055972.13 | P159: =845898.66+55960.73 -> 901859.39 | Q159: 1387114.89 | R159: 766997.85
A160: PHARMANEX | B160: 2558256.33 | C160: =SUM(D160:F160) -> 0 | G160: =SUM(H160:J160) -> 0 | K160: =SUM(L160:N160) -> 1309144.75 | L160: 245545.87 | M160: =483915.26+58498.18 -> 542413.44 | N160: 521185.44 | O160: =SUM(P160:R160) -> 1249111.58 | P160: 364191.07 | Q160: 469169.01 | R160: 415751.5
A161: BIG PLANET | B161: 0 | C161: 0 | G161: 0 | K161: 0 | O161: 0
A162: RETURNS PC | B162: -11469.77 | C162: 0 | G162: 0 | K162: -11469.77 | N162: -11469.77 | O162: 0
A163: RETURNS PX | B163: 0 | C163: =SUM(D163:F163) -> 0 | G163: =SUM(H163:J163) -> 0 | K163: =SUM(L163:N163) -> 0 | O163: =SUM(P163:R163) -> 0
A164: SALES AIDS | B164: 0 | C164: =SUM(D164:F164) -> 0 | G164: =SUM(H164:J164) -> 0 | K164: =SUM(L164:N164) -> 0 | O164: =SUM(P164:R164) -> 0
A166: NS_3135 VIETNAM | B166: =C166+G166+K166+O166 -> 520790.84 | C166: =SUM(D166:F166) -> 0 | D166: =SUM(D167:D172) -> 0 | E166: =SUM(E167:E172) -> 0 | F166: 0 | G166: =SUM(H166:J166) -> 0 | H166: =SUM(H167:H172) -> 0 | I166: =SUM(I167:I172) -> 0 | J166: 0 | K166: =SUM(L166:N166) -> 173720.48 | L166: =SUM(L167:L172) -> 54255.57 | M166: =SUM(M167:M172) -> 222282.11 | N166: -102817.2 | O166: =SUM(P166:R166) -> 347070.36 | P166: =SUM(P167:P172) -> 156329.96 | Q166: =SUM(Q167:Q172) -> 168275.2 | R166: 22465.2
A167: PERSONAL CARE | B167: 468319.84 | C167: =SUM(D167:F167) -> 0 | G167: =SUM(H167:J167) -> 0 | K167: =SUM(L167:N167) -> 226627.44 | L167: 37374.47 | M167: 164976.42 | N167: 24276.55 | O167: =SUM(P167:R167) -> 241692.4 | P167: 134392.26 | Q167: 94699.48 | R167: 12600.66
A168: PHARMANEX | B168: -235642.75 | C168: =SUM(D168:F168) -> 0 | G168: =SUM(H168:J168) -> 0 | K168: =SUM(L168:N168) -> -341020.71 | L168: 16881.1 | M168: 57305.69 | N168: -415207.5 | O168: =SUM(P168:R168) -> 105377.96 | P168: 21937.7 | Q168: 73575.72 | R168: 9864.54
A169: BIG PLANET | B169: 0 | C169: 0 | G169: 0 | K169: 0 | O169: 0
A170: RETURNS PC | B170: 288113.75 | C170: 0 | G170: 0 | K170: 288113.75 | N170: 288113.75 | O170: 0
A171: RETURNS PX | B171: 0 | C171: =SUM(D171:F171) -> 0 | G171: =SUM(H171:J171) -> 0 | K171: =SUM(L171:N171) -> 0 | O171: =SUM(P171:R171) -> 0
A172: SALES AIDS | B172: 0 | C172: =SUM(D172:F172) -> 0 | G172: =SUM(H172:J172) -> 0 | K172: =SUM(L172:N172) -> 0 | O172: =SUM(P172:R172) -> 0
A174: NS_4005 RUSSIA | B174: =C174+G174+K174+O174 -> 1615722.2 | C174: =SUM(D174:F174) -> 0 | D174: =SUM(D175:D180) -> 0 | E174: =SUM(E175:E180) -> 0 | F174: 0 | G174: =SUM(H174:J174) -> 0 | H174: =SUM(H175:H180) -> 0 | I174: =SUM(I175:I180) -> 0 | J174: 0 | K174: =SUM(L174:N174) -> 667799.61 | L174: =SUM(L175:L180) -> 105838.72 | M174: =SUM(M175:M180) -> 561960.89 | N174: 0 | O174: =SUM(P174:R174) -> 947922.59 | P174: =SUM(P175:P180) -> 131483.04 | Q174: =SUM(Q175:Q180) -> 493118.41 | R174: 323321.14
A175: PERSONAL CARE | B175: 1263829 | C175: =SUM(D175:F175) -> 0 | G175: =SUM(H175:J175) -> 0 | K175: =SUM(L175:N175) -> 446163.06 | L175: 10667.28 | M175: 435495.78 | O175: =SUM(P175:R175) -> 817665.94 | P175: 71037.08 | Q175: 473996.12 | R175: 272632.74
A176: PHARMANEX | B176: 357340.2 | C176: =SUM(D176:F176) -> 0 | G176: =SUM(H176:J176) -> 0 | K176: =SUM(L176:N176) -> 227083.55 | L176: 95171.44 | M176: 131912.11 | O176: =SUM(P176:R176) -> 130256.65 | P176: 60445.96 | Q176: 19122.29 | R176: 50688.4
A177: BIG PLANET | B177: 0 | C177: 0 | G177: 0 | K177: 0 | O177: 0
A178: RETURNS PC | B178: 0 | C178: 0 | G178: 0 | K178: 0 | O178: 0
A179: RETURNS PX | B179: 0 | C179: =SUM(D179:F179) -> 0 | G179: =SUM(H179:J179) -> 0 | K179: =SUM(L179:N179) -> 0 | O179: =SUM(P179:R179) -> 0
A180: SALES AIDS | B180: -5447 | C180: =SUM(D180:F180) -> 0 | G180: =SUM(H180:J180) -> 0 | K180: =SUM(L180:N180) -> -5447 | M180: -5447 | O180: =SUM(P180:R180) -> 0
A182: NS_4050 Tahiti | B182: =C182+G182+K182+O182 -> 131140.36 | C182: =SUM(D182:F182) -> 0 | D182: =SUM(D183:D188) -> 0 | E182: =SUM(E183:E188) -> 0 | F182: 0 | G182: =SUM(H182:J182) -> 0 | H182: =SUM(H183:H188) -> 0 | I182: =SUM(I183:I188) -> 0 | J182: 0 | K182: =SUM(L182:N182) -> 74077.32 | L182: =SUM(L183:L188) -> 74077.32 | M182: =SUM(M183:M188) -> 0 | N182: 0 | O182: =SUM(P182:R182) -> 57063.04 | P182: =SUM(P183:P188) -> 23793.25 | Q182: =SUM(Q183:Q188) -> 4110.28 | R182: 29159.51
A183: PERSONAL CARE | B183: 103545.02 | C183: =SUM(D183:F183) -> 0 | G183: =SUM(H183:J183) -> 0 | K183: =SUM(L183:N183) -> 60523.18 | L183: 60523.18 | O183: =SUM(P183:R183) -> 43021.84 | P183: 23793.25 | Q183: 4110.28 | R183: 15118.31
A184: PHARMANEX | B184: 27595.34 | C184: =SUM(D184:F184) -> 0 | G184: =SUM(H184:J184) -> 0 | K184: =SUM(L184:N184) -> 13554.14 | L184: 13554.14 | O184: =SUM(P184:R184) -> 14041.2 | R184: 14041.2
A185: BIG PLANET | B185: 0 | C185: 0 | G185: 0 | K185: 0 | O185: 0
A186: RETURNS PC | B186: 0 | C186: 0 | G186: 0 | K186: 0 | O186: 0
A187: RETURNS PX | B187: 0 | C187: =SUM(D187:F187) -> 0 | G187: =SUM(H187:J187) -> 0 | K187: =SUM(L187:N187) -> 0 | O187: =SUM(P187:R187) -> 0
A188: SALES AIDS | B188: 0 | C188: =SUM(D188:F188) -> 0 | G188: =SUM(H188:J188) -> 0 | K188: =SUM(L188:N188) -> 0 | O188: =SUM(P188:R188) -> 0
A190: NS_4200 SOUTH AFRICA | B190: =C190+G190+K190+O190 -> 765813.56 | C190: =SUM(D190:F190) -> 0 | D190: =SUM(D191:D196) -> 0 | E190: =SUM(E191:E196) -> 0 | F190: 0 | G190: =SUM(H190:J190) -> 0 | H190: =SUM(H191:H196) -> 0 | I190: =SUM(I191:I196) -> 0 | J190: 0 | K190: =SUM(L190:N190) -> 388104.7 | L190: =SUM(L191:L196) -> 53368.77 | M190: =SUM(M191:M196) -> 248330.25 | N190: 86405.68 | O190: =SUM(P190:R190) -> 377708.86 | P190: =SUM(P191:P196) -> 150645.56 | Q190: =SUM(Q191:Q196) -> 88639.6 | R190: 138423.7
A191: PERSONAL CARE | B191: 604746.09 | C191: =SUM(D191:F191) -> 0 | G191: =SUM(H191:J191) -> 0 | K191: =SUM(L191:N191) -> 300581.95 | L191: 34095.69 | M191: 197815.93 | N191: 68670.33 | O191: =SUM(P191:R191) -> 304164.14 | P191: 150328.29 | Q191: 72830.18 | R191: 81005.67
A192: PHARMANEX | B192: 161067.47 | C192: =SUM(D192:F192) -> 0 | G192: =SUM(H192:J192) -> 0 | K192: =SUM(L192:N192) -> 87522.75 | L192: 19273.08 | M192: 50514.32 | N192: 17735.35 | O192: =SUM(P192:R192) -> 73544.72 | P192: 317.27 | Q192: 15809.42 | R192: 57418.03
A193: BIG PLANET | B193: 0 | C193: 0 | G193: 0 | K193: 0 | O193: 0
A194: RETURNS PC | B194: 0 | C194: 0 | G194: 0 | K194: 0 | O194: 0
A195: RETURNS PX | B195: 0 | C195: =SUM(D195:F195) -> 0 | G195: =SUM(H195:J195) -> 0 | K195: =SUM(L195:N195) -> 0 | O195: =SUM(P195:R195) -> 0 | T195: Beginning Inventory | U195: 11650874.8
A196: SALES AIDS | B196: 0 | C196: =SUM(D196:F196) -> 0 | G196: =SUM(H196:J196) -> 0 | K196: =SUM(L196:N196) -> 0 | O196: =SUM(P196:R196) -> 0 | T196: Q1 COGS | U196: 34182109.43
T197: Q2 COGS | U197: 53161734.57
A198: NS_5100 CHINA | B198: =C198+G198+K198+O198 -> 17098394.7 | C198: =SUM(D198:F198) -> 0 | D198: =SUM(D199:D204) -> 0 | E198: =SUM(E199:E204) -> 0 | F198: 0 | G198: =SUM(H198:J198) -> 0 | H198: =SUM(H199:H204) -> 0 | I198: =SUM(I199:I204) -> 0 | J198: 0 | K198: =SUM(L198:N198) -> 13011051.64 | L198: =SUM(L199:L204) -> 5161209.44 | M198: =SUM(M199:M204) -> 4152739.29 | N198: 3697102.91 | O198: =SUM(P198:R198) -> 4087343.06 | P198: =SUM(P199:P204) -> 2143137.34 | Q198: =SUM(Q199:Q204) -> 672781.21 | R198: 1271424.51 | T198: Ending Inventory | U198: 49346713.04
A199: PERSONAL CARE | B199: 17251313.4 | C199: =SUM(D199:F199) -> 0 | G199: =SUM(H199:J199) -> 0 | K199: =SUM(L199:N199) -> 13117431.12 | L199: 5249080.24 | M199: 4171247.97 | N199: 3697102.91 | O199: =SUM(P199:R199) -> 4133882.28 | P199: 2153738 | Q199: 672781.21 | R199: 1307363.07 | T199: 2010 1H Purchases | U199: =+U198-U195+SUM(U196:U197) -> 125039682.2
A200: PHARMANEX | B200: 25201.11 | C200: =SUM(D200:F200) -> 0 | G200: =SUM(H200:J200) -> 0 | K200: =SUM(L200:N200) -> 18901.68 | L200: 18901.68 | O200: =SUM(P200:R200) -> 6299.43 | P200: 6299.43 | U200: =B198/U199 -> 0.1367437472
A201: BIG PLANET | B201: 0 | C201: 0 | G201: 0 | K201: 0 | O201: 0
A202: RETURNS PC | B202: -178119.81 | C202: 0 | G202: 0 | K202: -125281.16 | L202: -106772.48 | M202: -18508.68 | O202: -52838.65 | P202: -16900.09 | R202: -35938.56
A203: RETURNS PX | B203: 0 | C203: =SUM(D203:F203) -> 0 | G203: =SUM(H203:J203) -> 0 | K203: =SUM(L203:N203) -> 0 | O203: =SUM(P203:R203) -> 0
A204: SALES AIDS | B204: 0 | C204: =SUM(D204:F204) -> 0 | G204: =SUM(H204:J204) -> 0 | K204: =SUM(L204:N204) -> 0 | O204: =SUM(P204:R204) -> 0
A206: NS_5106 JINQIAO | B206: =C206+G206+K206+O206 -> 1276523.5 | C206: =SUM(D206:F206) -> 0 | D206: =SUM(D207:D212) -> 0 | E206: =SUM(E207:E212) -> 0 | F206: 0 | G206: =SUM(H206:J206) -> 0 | H206: =SUM(H207:H212) -> 0 | I206: =SUM(I207:I212) -> 0 | J206: 0 | K206: =SUM(L206:N206) -> 1203381.16 | L206: =SUM(L207:L212) -> 88381.03 | M206: =SUM(M207:M212) -> 1063219.96 | N206: 51780.17 | O206: =SUM(P206:R206) -> 73142.34 | P206: =SUM(P207:P212) -> 73142.34 | Q206: =SUM(Q207:Q212) -> 0 | R206: 0
A207: PERSONAL CARE | B207: 0 | C207: =SUM(D207:F207) -> 0 | G207: =SUM(H207:J207) -> 0 | K207: =SUM(L207:N207) -> 0 | O207: =SUM(P207:R207) -> 0
A208: PHARMANEX | B208: 0 | C208: =SUM(D208:F208) -> 0 | G208: =SUM(H208:J208) -> 0 | K208: =SUM(L208:N208) -> 0 | O208: =SUM(P208:R208) -> 0
A209: BIG PLANET | B209: 0 | C209: 0 | G209: 0 | K209: 0 | O209: 0
A210: RETURNS PC | B210: 0 | C210: 0 | G210: 0 | K210: 0 | O210: 0
A211: RETURNS PX | B211: 0 | C211: =SUM(D211:F211) -> 0 | G211: =SUM(H211:J211) -> 0 | K211: =SUM(L211:N211) -> 0 | O211: =SUM(P211:R211) -> 0
A212: SALES AIDS | B212: 1276523.5 | C212: =SUM(D212:F212) -> 0 | G212: =SUM(H212:J212) -> 0 | K212: =SUM(L212:N212) -> 1203381.16 | L212: 88381.03 | M212: 1063219.96 | N212: 51780.17 | O212: =SUM(P212:R212) -> 73142.34 | P212: 73142.34
A214: NS_9100 NSEAP | B214: =C214+G214+K214+O214 -> 24538859.83 | C214: =SUM(D214:F214) -> 0 | D214: =SUM(D215:D220) -> 0 | E214: =SUM(E215:E220) -> 0 | F214: 0 | G214: =SUM(H214:J214) -> 0 | H214: =SUM(H215:H220) -> 0 | I214: =SUM(I215:I220) -> 0 | J214: 0 | K214: =SUM(L214:N214) -> 2827042.37 | L214: =SUM(L215:L220) -> 793764.82 | M214: =SUM(M215:M220) -> 1060611.03 | N214: 972666.52 | O214: =SUM(P214:R214) -> 21711817.46 | P214: =SUM(P215:P220) -> 1242437.79 | Q214: =SUM(Q215:Q220) -> 2067800.38 | R214: =SUM(R215:R220) -> 18401579.29
A215: PERSONAL CARE | B215: 15880722.66 | C215: =SUM(D215:F215) -> 0 | G215: =SUM(H215:J215) -> 0 | K215: =SUM(L215:N215) -> 1037240.79 | L215: 182939.97 | M215: 141364.2 | N215: 712936.62 | O215: =SUM(P215:R215) -> 14843481.87 | P215: 970271.07 | Q215: 1765417.38 | R215: 12107793.42
A216: PHARMANEX | B216: 8657429.32 | C216: =SUM(D216:F216) -> 0 | G216: =SUM(H216:J216) -> 0 | K216: =SUM(L216:N216) -> 1789748.55 | L216: 610824.85 | M216: =867146.77+52093.28 -> 919240.05 | N216: 259683.65 | O216: =SUM(P216:R216) -> 6867680.77 | P216: 272154.67 | Q216: 302371.03 | R216: 6293155.07
A217: BIG PLANET | B217: 0 | C217: 0 | G217: 0 | K217: 0 | O217: 0
A218: RETURNS PC | B218: 0 | C218: 0 | G218: 0 | K218: 0 | O218: 0
A219: RETURNS PX | B219: 0 | C219: =SUM(D219:F219) -> 0 | G219: =SUM(H219:J219) -> 0 | K219: =SUM(L219:N219) -> 0 | O219: =SUM(P219:R219) -> 0
A220: SALES AIDS | B220: 707.85 | C220: =SUM(D220:F220) -> 0 | G220: =SUM(H220:J220) -> 0 | K220: =SUM(L220:N220) -> 53.03 | M220: 6.78 | N220: 46.25 | O220: =SUM(P220:R220) -> 654.82 | P220: 12.05 | Q220: 11.97 | R220: 630.8
A222: NS_9315 NSEP 9315 | B222: =C222+G222+K222+O222 -> 0 | C222: =SUM(D222:F222) -> 0 | D222: =SUM(D223:D228) -> 0 | E222: =SUM(E223:E228) -> 0 | F222: 0 | G222: =SUM(H222:J222) -> 0 | H222: =SUM(H223:H228) -> 0 | I222: =SUM(I223:I228) -> 0 | J222: 0 | K222: =SUM(L222:N222) -> 0 | L222: =SUM(L223:L228) -> 0 | M222: =SUM(M223:M228) -> 0 | N222: 0 | O222: =SUM(P222:R222) -> 0 | P222: =SUM(P223:P228) -> 0 | Q222: =SUM(Q223:Q228) -> 0 | R222: 0
A223: PERSONAL CARE | B223: 0 | C223: =SUM(D223:F223) -> 0 | G223: =SUM(H223:J223) -> 0 | K223: =SUM(L223:N223) -> 0 | O223: =SUM(P223:R223) -> 0
A224: PHARMANEX | B224: 0 | C224: =SUM(D224:F224) -> 0 | G224: =SUM(H224:J224) -> 0 | K224: =SUM(L224:N224) -> 0 | O224: =SUM(P224:R224) -> 0
A225: BIG PLANET | B225: 0 | C225: 0 | G225: 0 | K225: 0 | O225: 0
A226: RETURNS PC | B226: 0 | C226: 0 | G226: 0 | K226: 0 | O226: 0
A227: RETURNS PX | B227: 0 | C227: =SUM(D227:F227) -> 0 | G227: =SUM(H227:J227) -> 0 | K227: =SUM(L227:N227) -> 0 | O227: =SUM(P227:R227) -> 0
A228: SALES AIDS | B228: 0 | C228: =SUM(D228:F228) -> 0 | G228: =SUM(H228:J228) -> 0 | K228: =SUM(L228:N228) -> 0 | O228: =SUM(P228:R228) -> 0
... 15 more rows

Sheet Tax Pool (hidden)
A1: Tax Pool
A2: Year | B2: Taxable Income | C2: Rate | D2: Tax | E2: E & P | F2: Cumulative
A3: 2007
A4: 2008 | B4: 3328278 | C4: 0.23 | D4: 763248
A5: 2009 | B5: 2114867 | C5: =D5/B5 -> 0.2075657713 | D5: 438974
A6: 2010
